Trans No.,Service Area Categorisation,Service Division Categorisation,Responsible Unit,Unit Code,Expenses Type,Expenses Sub Type,Expense Code,Narrative,Amount,Invoice Date,Cap/Rev,Supplier Name
1,Central Services,SupS Health & Safety,Learning and Development,B06146,Employees                     ,Indirect Employee Expenses    ,AB57,EXTERNAL TRAINING COSTS                 ,"6,300.00",25/02/2016,R,24SEVEN GROUP LTD             
2,,,Library Self Service                    ,CC011AB,Vehicles Plant Equipment and Machinery,,D3,Equipment                               ,"1,296.62",23/03/2016,C,3M UNITED KINGDOM PLC         
3,,,Library Self Service                    ,CC011AB,Vehicles Plant Equipment and Machinery,,D3,Equipment                               ,"88,767.00",17/03/2016,C,3M UNITED KINGDOM PLC         
4,CS -Oth Operating Inc & Expend,T/A Vehicle Maintenance etc,Transport-Contract Hire,J01374,Transport Related Expenditure ,Contract Hire and Op Leasing  ,CC64,CSF - SEN CABS (RK02)                   ,736.00,29/02/2016,R,A STAR TRANSPORT LIMITED      
5,CS -Oth Operating Inc & Expend,T/A Vehicle Maintenance etc,Transport-Contract Hire,J01374,Transport Related Expenditure ,Contract Hire and Op Leasing  ,CC67,C&H - ADULTS CABS (RK08)                ,923.00,29/02/2016,R,A STAR TRANSPORT LIMITED      
6,CS -Oth Operating Inc & Expend,T/A Vehicle Maintenance etc,Transport-Contract Hire,J01374,Transport Related Expenditure ,Contract Hire and Op Leasing  ,CC67,C&H - ADULTS CABS (RK08)                ,"1,024.00",29/02/2016,R,A STAR TRANSPORT LIMITED      
7,CS -Oth Operating Inc & Expend,T/A Vehicle Maintenance etc,Transport-Contract Hire,J01374,Transport Related Expenditure ,Contract Hire and Op Leasing  ,CC64,CSF - SEN CABS (RK02)                   ,"1,664.00",29/02/2016,R,A STAR TRANSPORT LIMITED      
8,Childrens & Education Services,Asset Management,Stouthall,K09082,Premises Related Expenditure  ,Ground Maintenance Costs      ,BL03,Maintenance of Grounds                  ,"1,000.00",29/02/2016,R,A Y LANDSCAPES LTD            
9,Adult Social Care,OP 65&Over Resi Care Placement,OP R/Park-Residential Care Ext,W2LR55,Third Party Payments          ,Private Contractors           ,EH01,Miscellaneous Agency Services           ,-575.00,01/03/2016,R,ABBEY HOUSE RESIDENTIAL HOMES 
10,Adult Social Care,OP 65&Over Resi Care Placement,OP R/Park-Residential Care Ext,W2LR55,Third Party Payments          ,Private Contractors           ,EH01,Miscellaneous Agency Services           ,-575.00,01/03/2016,R,ABBEY HOUSE RESIDENTIAL HOMES 
11,Adult Social Care,OP 65&Over Resi Care Placement,OP R/Park-Residential Care Ext,W2LR55,Third Party Payments          ,Private Contractors           ,EH01,Miscellaneous Agency Services           ,-575.00,01/03/2016,R,ABBEY HOUSE RESIDENTIAL HOMES 
12,Adult Social Care,OP 65&Over Resi Care Placement,OP R/Park-Residential Care Ext,W2LR55,Third Party Payments          ,Private Contractors           ,EH01,Miscellaneous Agency Services           ,-575.00,01/03/2016,R,ABBEY HOUSE RESIDENTIAL HOMES 
13,Adult Social Care,OP 65&Over Resi Care Placement,OP R/Park-Residential Care Ext,W2LR55,Third Party Payments          ,Private Contractors           ,EH01,Miscellaneous Agency Services           ,-575.00,01/03/2016,R,ABBEY HOUSE RESIDENTIAL HOMES 
14,Adult Social Care,OP 65&Over Resi Care Placement,OP R/Park-Residential Care Ext,W2LR55,Third Party Payments          ,Private Contractors           ,EH01,Miscellaneous Agency Services           ,-575.00,01/03/2016,R,ABBEY HOUSE RESIDENTIAL HOMES 
15,Adult Social Care,OP 65&Over Resi Care Placement,OP R/Park-Residential Care Ext,W2LR55,Third Party Payments          ,Private Contractors           ,EH01,Miscellaneous Agency Services           ,-575.00,01/03/2016,R,ABBEY HOUSE RESIDENTIAL HOMES 
16,Adult Social Care,OP 65&Over Resi Care Placement,OP R/Park-Residential Care Ext,W2LR55,Third Party Payments          ,Private Contractors           ,EH01,Miscellaneous Agency Services           ,-575.00,01/03/2016,R,ABBEY HOUSE RESIDENTIAL HOMES 
17,Adult Social Care,OP 65&Over Resi Care Placement,OP R/Park-Residential Care Ext,W2LR55,Third Party Payments          ,Private Contractors           ,EH01,Miscellaneous Agency Services           ,-575.00,01/03/2016,R,ABBEY HOUSE RESIDENTIAL HOMES 
18,Adult Social Care,OP 65&Over Resi Care Placement,OP R/Park-Residential Care Ext,W2LR55,Third Party Payments          ,Private Contractors           ,EH01,Miscellaneous Agency Services           ,-575.00,01/03/2016,R,ABBEY HOUSE RESIDENTIAL HOMES 
19,Adult Social Care,OP 65&Over Resi Care Placement,OP R/Park-Residential Care Ext,W2LR55,Third Party Payments          ,Private Contractors           ,EH01,Miscellaneous Agency Services           ,524.22,01/03/2016,R,ABBEY HOUSE RESIDENTIAL HOMES 
20,Adult Social Care,OP 65&Over Resi Care Placement,OP R/Park-Residential Care Ext,W2LR55,Third Party Payments          ,Private Contractors           ,EH01,Miscellaneous Agency Services           ,524.22,01/03/2016,R,ABBEY HOUSE RESIDENTIAL HOMES 
21,Adult Social Care,OP 65&Over Resi Care Placement,OP R/Park-Residential Care Ext,W2LR55,Third Party Payments          ,Private Contractors           ,EH01,Miscellaneous Agency Services           ,524.22,01/03/2016,R,ABBEY HOUSE RESIDENTIAL HOMES 
22,Adult Social Care,OP 65&Over Resi Care Placement,OP R/Park-Residential Care Ext,W2LR55,Third Party Payments          ,Private Contractors           ,EH01,Miscellaneous Agency Services           ,524.22,01/03/2016,R,ABBEY HOUSE RESIDENTIAL HOMES 
23,Adult Social Care,PS u65 Residentl Care Placemnt,PD EAST TEAM-Residential,W2JJ55,Third Party Payments          ,Private Contractors           ,EH01,Miscellaneous Agency Services           ,550.00,01/03/2016,R,ABBEY HOUSE RESIDENTIAL HOMES 
24,Adult Social Care,PS u65 Residentl Care Placemnt,PD EAST TEAM-Residential,W2JJ55,Third Party Payments          ,Private Contractors           ,EH01,Miscellaneous Agency Services           ,550.00,01/03/2016,R,ABBEY HOUSE RESIDENTIAL HOMES 
25,Adult Social Care,PS u65 Residentl Care Placemnt,PD EAST TEAM-Residential,W2JJ55,Third Party Payments          ,Private Contractors           ,EH01,Miscellaneous Agency Services           ,550.00,01/03/2016,R,ABBEY HOUSE RESIDENTIAL HOMES 
26,Adult Social Care,PS u65 Residentl Care Placemnt,PD EAST TEAM-Residential,W2JJ55,Third Party Payments          ,Private Contractors           ,EH01,Miscellaneous Agency Services           ,550.00,01/03/2016,R,ABBEY HOUSE RESIDENTIAL HOMES 
27,Adult Social Care,OP 65&Over Resi Care Placement,OP R/Park-Residential Care Ext,W2LR55,Third Party Payments          ,Private Contractors           ,EH01,Miscellaneous Agency Services           ,550.00,01/03/2016,R,ABBEY HOUSE RESIDENTIAL HOMES 
28,Adult Social Care,OP 65&Over Resi Care Placement,OP R/Park-Residential Care Ext,W2LR55,Third Party Payments          ,Private Contractors           ,EH01,Miscellaneous Agency Services           ,550.00,01/03/2016,R,ABBEY HOUSE RESIDENTIAL HOMES 
29,Adult Social Care,OP 65&Over Resi Care Placement,OP R/Park-Residential Care Ext,W2LR55,Third Party Payments          ,Private Contractors           ,EH01,Miscellaneous Agency Services           ,550.00,01/03/2016,R,ABBEY HOUSE RESIDENTIAL HOMES 
30,Adult Social Care,OP 65&Over Resi Care Placement,OP R/Park-Residential Care Ext,W2LR55,Third Party Payments          ,Private Contractors           ,EH01,Miscellaneous Agency Services           ,550.00,01/03/2016,R,ABBEY HOUSE RESIDENTIAL HOMES 
31,Adult Social Care,OP 65&Over Resi Care Placement,OP R/Park-Residential Care Ext,W2LR55,Third Party Payments          ,Private Contractors           ,EH01,Miscellaneous Agency Services           ,575.00,01/03/2016,R,ABBEY HOUSE RESIDENTIAL HOMES 
32,Adult Social Care,OP 65&Over Resi Care Placement,OP R/Park-Residential Care Ext,W2LR55,Third Party Payments          ,Private Contractors           ,EH01,Miscellaneous Agency Services           ,575.00,01/03/2016,R,ABBEY HOUSE RESIDENTIAL HOMES 
33,Adult Social Care,OP 65&Over Resi Care Placement,OP R/Park-Residential Care Ext,W2LR55,Third Party Payments          ,Private Contractors           ,EH01,Miscellaneous Agency Services           ,575.00,01/03/2016,R,ABBEY HOUSE RESIDENTIAL HOMES 
34,Adult Social Care,OP 65&Over Resi Care Placement,OP R/Park-Residential Care Ext,W2LR55,Third Party Payments          ,Private Contractors           ,EH01,Miscellaneous Agency Services           ,575.00,01/03/2016,R,ABBEY HOUSE RESIDENTIAL HOMES 
35,Adult Social Care,OP 65&Over Resi Care Placement,OP R/Park-Residential Care Ext,W2LR55,Third Party Payments          ,Private Contractors           ,EH01,Miscellaneous Agency Services           ,575.00,01/03/2016,R,ABBEY HOUSE RESIDENTIAL HOMES 
36,Adult Social Care,OP 65&Over Resi Care Placement,OP R/Park-Residential Care Ext,W2LR55,Third Party Payments          ,Private Contractors           ,EH01,Miscellaneous Agency Services           ,575.00,01/03/2016,R,ABBEY HOUSE RESIDENTIAL HOMES 
37,Adult Social Care,OP 65&Over Resi Care Placement,OP R/Park-Residential Care Ext,W2LR55,Third Party Payments          ,Private Contractors           ,EH01,Miscellaneous Agency Services           ,575.00,01/03/2016,R,ABBEY HOUSE RESIDENTIAL HOMES 
38,Adult Social Care,OP 65&Over Resi Care Placement,OP R/Park-Residential Care Ext,W2LR55,Third Party Payments          ,Private Contractors           ,EH01,Miscellaneous Agency Services           ,575.00,01/03/2016,R,ABBEY HOUSE RESIDENTIAL HOMES 
39,Adult Social Care,OP 65&Over Resi Care Placement,OP R/Park-Residential Care Ext,W2LR55,Third Party Payments          ,Private Contractors           ,EH01,Miscellaneous Agency Services           ,575.00,01/03/2016,R,ABBEY HOUSE RESIDENTIAL HOMES 
40,Adult Social Care,OP 65&Over Resi Care Placement,OP R/Park-Residential Care Ext,W2LR55,Third Party Payments          ,Private Contractors           ,EH01,Miscellaneous Agency Services           ,575.00,01/03/2016,R,ABBEY HOUSE RESIDENTIAL HOMES 
41,Adult Social Care,OP 65&Over Resi Care Placement,OP R/Park-Residential Care Ext,W2LR55,Third Party Payments          ,Private Contractors           ,EH01,Miscellaneous Agency Services           ,575.00,01/03/2016,R,ABBEY HOUSE RESIDENTIAL HOMES 
42,Adult Social Care,OP 65&Over Resi Care Placement,OP R/Park-Residential Care Ext,W2LR55,Third Party Payments          ,Private Contractors           ,EH01,Miscellaneous Agency Services           ,575.00,01/03/2016,R,ABBEY HOUSE RESIDENTIAL HOMES 
43,Adult Social Care,OP 65&Over Resi Care Placement,OP R/Park-Residential Care Ext,W2LR55,Third Party Payments          ,Private Contractors           ,EH01,Miscellaneous Agency Services           ,575.00,01/03/2016,R,ABBEY HOUSE RESIDENTIAL HOMES 
44,Adult Social Care,OP 65&Over Resi Care Placement,OP R/Park-Residential Care Ext,W2LR55,Third Party Payments          ,Private Contractors           ,EH01,Miscellaneous Agency Services           ,575.00,01/03/2016,R,ABBEY HOUSE RESIDENTIAL HOMES 
45,Adult Social Care,MH u65 Residentl Care Placemnt,MH ResidentialCare Ext-Morden,W2HB55,Third Party Payments          ,Private Contractors           ,EH01,Miscellaneous Agency Services           ,600.00,01/03/2016,R,ABBEY HOUSE RESIDENTIAL HOMES 
46,Adult Social Care,MH u65 Residentl Care Placemnt,MH ResidentialCare Ext-Morden,W2HB55,Third Party Payments          ,Private Contractors           ,EH01,Miscellaneous Agency Services           ,600.00,01/03/2016,R,ABBEY HOUSE RESIDENTIAL HOMES 
47,Adult Social Care,MH u65 Residentl Care Placemnt,MH ResidentialCare Ext-Morden,W2HB55,Third Party Payments          ,Private Contractors           ,EH01,Miscellaneous Agency Services           ,600.00,01/03/2016,R,ABBEY HOUSE RESIDENTIAL HOMES 
48,Adult Social Care,MH u65 Residentl Care Placemnt,MH ResidentialCare Ext-Morden,W2HB55,Third Party Payments          ,Private Contractors           ,EH01,Miscellaneous Agency Services           ,600.00,01/03/2016,R,ABBEY HOUSE RESIDENTIAL HOMES 
49,Adult Social Care,Other - Other Adult Services,Fixed & Variable Client Paymen,W6AA65,Third Party Payments          ,Private Contractors           ,EH01,Miscellaneous Agency Services           ,"8,342.11",29/02/2016,R,ABILITY HOUSING ASSOCIATION   
50,Adult Social Care,Other - Other Adult Services,Fixed & Variable Client Paymen,W6AA65,Third Party Payments          ,Private Contractors           ,EH01,Miscellaneous Agency Services           ,"25,969.43",29/02/2016,R,ABILITY HOUSING ASSOCIATION   
51,Childrens & Education Services,Support for SEN Pupils,Non-Delegated Statements,K90024,Third Party Payments          ,Other Establishments          ,EG50,Ind Day Schs Payments                   ,"1,980.00",23/03/2016,R,ABINGDON HOUSE SCHOOL         
52,Childrens & Education Services,Support for SEN Pupils,Non-Delegated Statements,K90024,Third Party Payments          ,Other Establishments          ,EG50,Ind Day Schs Payments                   ,"3,027.31",21/03/2016,R,ABINGDON HOUSE SCHOOL         
53,Adult Social Care,LD u65 Home Care,LD Home Care External,W2KB49,Third Party Payments          ,Private Contractors           ,EH01,Miscellaneous Agency Services           ,689.25,07/03/2016,R,ABLE COMMUNITY CARE LTD       
54,Adult Social Care,LD u65 Home Care,LD Home Care External,W2KB49,Third Party Payments          ,Private Contractors           ,EH01,Miscellaneous Agency Services           ,689.25,07/03/2016,R,ABLE COMMUNITY CARE LTD       
55,Adult Social Care,LD u65 Home Care,LD Home Care External,W2KB49,Third Party Payments          ,Private Contractors           ,EH01,Miscellaneous Agency Services           ,689.25,07/03/2016,R,ABLE COMMUNITY CARE LTD       
56,Adult Social Care,LD u65 Home Care,LD Home Care External,W2KB49,Third Party Payments          ,Private Contractors           ,EH01,Miscellaneous Agency Services           ,689.25,07/03/2016,R,ABLE COMMUNITY CARE LTD       
57,Adult Social Care,LD u65 Home Care,LD Home Care External,W2KB49,Third Party Payments          ,Private Contractors           ,EH01,Miscellaneous Agency Services           ,700.00,07/03/2016,R,ABLE COMMUNITY CARE LTD       
58,Adult Social Care,LD u65 Home Care,LD Home Care External,W2KB49,Third Party Payments          ,Private Contractors           ,EH01,Miscellaneous Agency Services           ,700.00,07/03/2016,R,ABLE COMMUNITY CARE LTD       
59,Adult Social Care,LD u65 Home Care,LD Home Care External,W2KB49,Third Party Payments          ,Private Contractors           ,EH01,Miscellaneous Agency Services           ,700.00,07/03/2016,R,ABLE COMMUNITY CARE LTD       
60,Adult Social Care,LD u65 Home Care,LD Home Care External,W2KB49,Third Party Payments          ,Private Contractors           ,EH01,Miscellaneous Agency Services           ,700.00,07/03/2016,R,ABLE COMMUNITY CARE LTD       
61,Childrens & Education Services,Youth Centres (Residential),Duke of Edinburgh Awrds,K06055,Supplies & Services           ,Expenses                      ,DH12,Young Peoples Expenses                  ,520.00,10/03/2016,R,ACCESS EXPEDITIONS            
62,Childrens & Education Services,Youth Centres (Residential),Duke of Edinburgh Awrds,K06055,Supplies & Services           ,Expenses                      ,DH12,Young Peoples Expenses                  ,523.50,10/03/2016,R,ACCESS EXPEDITIONS            
63,Childrens & Education Services,Youth Centres (Residential),Duke of Edinburgh Awrds,K06055,Supplies & Services           ,Expenses                      ,DH12,Young Peoples Expenses                  ,535.00,10/03/2016,R,ACCESS EXPEDITIONS            
64,Childrens & Education Services,Youth Centres (Residential),Duke of Edinburgh Awrds,K06055,Supplies & Services           ,Expenses                      ,DH12,Young Peoples Expenses                  ,675.00,10/03/2016,R,ACCESS EXPEDITIONS            
65,Childrens & Education Services,Youth Centres (Residential),Duke of Edinburgh Awrds,K06055,Supplies & Services           ,Expenses                      ,DH12,Young Peoples Expenses                  ,"1,425.00",10/03/2016,R,ACCESS EXPEDITIONS            
66,Childrens & Education Services,Support for SEN Pupils,Non-Delegated Statements,K90024,Supplies & Services           ,Services                      ,DF09,Miscellaneous Fees                      ,"7,295.37",31/03/2015,R,ACTION FOR CHILDREN SERV.LTD  
67,Childrens & Education Services,Statutory & Regulatory Duties,Governor Support,K09081,Supplies & Services           ,Equip Furniture/Materials     ,DA58,Educn Matrls (Grant Aided)              ,570.00,21/03/2016,R,ADAMSON PUBLISHING            
68,Adult Social Care,MH u65 Supported & Other Accom,MH Adult Placement Cont-Morden,W2HB32,Third Party Payments          ,Private Contractors           ,EH04,Accommodation Based Support             ,795.00,24/03/2016,R,ADMIRAL HEALTHCARE LTD        
69,Adult Social Care,MH u65 Supported & Other Accom,MH Adult Placement Cont-Morden,W2HB32,Third Party Payments          ,Private Contractors           ,EH04,Accommodation Based Support             ,795.00,24/03/2016,R,ADMIRAL HEALTHCARE LTD        
70,Adult Social Care,MH u65 Supported & Other Accom,MH Adult Placement Cont-Morden,W2HB32,Third Party Payments          ,Private Contractors           ,EH04,Accommodation Based Support             ,795.00,09/03/2016,R,ADMIRAL HEALTHCARE LTD        
71,Adult Social Care,MH u65 Supported & Other Accom,MH Adult Placement Cont-Morden,W2HB32,Third Party Payments          ,Private Contractors           ,EH04,Accommodation Based Support             ,795.00,09/03/2016,R,ADMIRAL HEALTHCARE LTD        
72,Adult Social Care,MH u65 Supported & Other Accom,MH Adult Placement Cont-Morden,W2HB32,Third Party Payments          ,Private Contractors           ,EH04,Accommodation Based Support             ,795.00,24/03/2016,R,ADMIRAL HEALTHCARE LTD        
73,Adult Social Care,MH u65 Supported & Other Accom,MH Adult Placement Cont-Morden,W2HB32,Third Party Payments          ,Private Contractors           ,EH04,Accommodation Based Support             ,795.00,09/03/2016,R,ADMIRAL HEALTHCARE LTD        
74,Adult Social Care,MH u65 Supported & Other Accom,MH Adult Placement Cont-Morden,W2HB32,Third Party Payments          ,Private Contractors           ,EH04,Accommodation Based Support             ,795.00,09/03/2016,R,ADMIRAL HEALTHCARE LTD        
75,Adult Social Care,MH u65 Supported & Other Accom,MH Adult Placement Cont-Morden,W2HB32,Third Party Payments          ,Private Contractors           ,EH04,Accommodation Based Support             ,795.00,24/03/2016,R,ADMIRAL HEALTHCARE LTD        
76,Adult Social Care,MH u65 Supported & Other Accom,MH AdultPlacementCont - EIS,W2HM32,Third Party Payments          ,Private Contractors           ,EH04,Accommodation Based Support             ,"1,000.00",29/03/2016,R,ADMIRAL HEALTHCARE LTD        
77,Adult Social Care,MH u65 Supported & Other Accom,MH AdultPlacementCont - EIS,W2HM32,Third Party Payments          ,Private Contractors           ,EH04,Accommodation Based Support             ,"1,000.00",29/03/2016,R,ADMIRAL HEALTHCARE LTD        
78,Adult Social Care,MH u65 Supported & Other Accom,MH AdultPlacementCont - EIS,W2HM32,Third Party Payments          ,Private Contractors           ,EH04,Accommodation Based Support             ,"1,000.00",29/03/2016,R,ADMIRAL HEALTHCARE LTD        
79,Adult Social Care,MH u65 Supported & Other Accom,MH AdultPlacementCont - EIS,W2HM32,Third Party Payments          ,Private Contractors           ,EH04,Accommodation Based Support             ,"1,000.00",29/03/2016,R,ADMIRAL HEALTHCARE LTD        
80,Adult Social Care,MH u65 Supported & Other Accom,MH AdultPlacementCont - EIS,W2HM32,Third Party Payments          ,Private Contractors           ,EH04,Accommodation Based Support             ,"1,000.00",29/03/2016,R,ADMIRAL HEALTHCARE LTD        
81,Adult Social Care,MH u65 Supported & Other Accom,MH AdultPlacementCont - EIS,W2HM32,Third Party Payments          ,Private Contractors           ,EH04,Accommodation Based Support             ,"1,000.00",29/03/2016,R,ADMIRAL HEALTHCARE LTD        
82,Adult Social Care,MH u65 Supported & Other Accom,MH AdultPlacementCont - EIS,W2HM32,Third Party Payments          ,Private Contractors           ,EH04,Accommodation Based Support             ,"1,000.00",29/03/2016,R,ADMIRAL HEALTHCARE LTD        
83,Adult Social Care,MH u65 Supported & Other Accom,MH AdultPlacementCont - EIS,W2HM32,Third Party Payments          ,Private Contractors           ,EH04,Accommodation Based Support             ,"1,000.00",29/03/2016,R,ADMIRAL HEALTHCARE LTD        
84,Adult Social Care,MH u65 Supported & Other Accom,MH AdultPlacementCont - EIS,W2HM32,Third Party Payments          ,Private Contractors           ,EH04,Accommodation Based Support             ,"1,000.00",29/03/2016,R,ADMIRAL HEALTHCARE LTD        
85,Adult Social Care,MH u65 Supported & Other Accom,MH AdultPlacementCont - EIS,W2HM32,Third Party Payments          ,Private Contractors           ,EH04,Accommodation Based Support             ,"1,000.00",29/03/2016,R,ADMIRAL HEALTHCARE LTD        
86,Adult Social Care,MH u65 Supported & Other Accom,MH AdultPlacementCont - EIS,W2HM32,Third Party Payments          ,Private Contractors           ,EH04,Accommodation Based Support             ,"1,000.00",29/03/2016,R,ADMIRAL HEALTHCARE LTD        
87,Adult Social Care,MH u65 Supported & Other Accom,MH AdultPlacementCont - EIS,W2HM32,Third Party Payments          ,Private Contractors           ,EH04,Accommodation Based Support             ,"1,000.00",29/03/2016,R,ADMIRAL HEALTHCARE LTD        
88,Adult Social Care,MH u65 Supported & Other Accom,MH AdultPlacementCont - EIS,W2HM32,Third Party Payments          ,Private Contractors           ,EH04,Accommodation Based Support             ,"1,000.00",29/03/2016,R,ADMIRAL HEALTHCARE LTD        
89,Adult Social Care,MH u65 Supported & Other Accom,MH AdultPlacementCont - EIS,W2HM32,Third Party Payments          ,Private Contractors           ,EH04,Accommodation Based Support             ,"1,000.00",29/03/2016,R,ADMIRAL HEALTHCARE LTD        
90,Adult Social Care,MH u65 Supported & Other Accom,MH AdultPlacementCont - EIS,W2HM32,Third Party Payments          ,Private Contractors           ,EH04,Accommodation Based Support             ,"1,000.00",29/03/2016,R,ADMIRAL HEALTHCARE LTD        
91,Adult Social Care,MH u65 Supported & Other Accom,MH AdultPlacementCont - EIS,W2HM32,Third Party Payments          ,Private Contractors           ,EH04,Accommodation Based Support             ,"1,000.00",29/03/2016,R,ADMIRAL HEALTHCARE LTD        
92,Adult Social Care,MH u65 Supported & Other Accom,MH AdultPlacementCont - EIS,W2HM32,Third Party Payments          ,Private Contractors           ,EH04,Accommodation Based Support             ,"1,000.00",29/03/2016,R,ADMIRAL HEALTHCARE LTD        
93,Adult Social Care,MH u65 Supported & Other Accom,MH AdultPlacementCont - EIS,W2HM32,Third Party Payments          ,Private Contractors           ,EH04,Accommodation Based Support             ,"1,000.00",29/03/2016,R,ADMIRAL HEALTHCARE LTD        
94,Adult Social Care,MH u65 Supported & Other Accom,MH AdultPlacementCont - EIS,W2HM32,Third Party Payments          ,Private Contractors           ,EH04,Accommodation Based Support             ,"1,000.00",29/03/2016,R,ADMIRAL HEALTHCARE LTD        
95,Adult Social Care,MH u65 Supported & Other Accom,MH AdultPlacementCont - EIS,W2HM32,Third Party Payments          ,Private Contractors           ,EH04,Accommodation Based Support             ,"1,000.00",29/03/2016,R,ADMIRAL HEALTHCARE LTD        
96,Adult Social Care,MH u65 Supported & Other Accom,MH AdultPlacementCont - EIS,W2HM32,Third Party Payments          ,Private Contractors           ,EH04,Accommodation Based Support             ,"1,000.00",29/03/2016,R,ADMIRAL HEALTHCARE LTD        
97,Adult Social Care,MH u65 Supported & Other Accom,MH AdultPlacementCont - EIS,W2HM32,Third Party Payments          ,Private Contractors           ,EH04,Accommodation Based Support             ,"1,000.00",29/03/2016,R,ADMIRAL HEALTHCARE LTD        
98,Adult Social Care,MH u65 Supported & Other Accom,MH AdultPlacementCont - EIS,W2HM32,Third Party Payments          ,Private Contractors           ,EH04,Accommodation Based Support             ,"1,000.00",29/03/2016,R,ADMIRAL HEALTHCARE LTD        
99,Adult Social Care,MH u65 Supported & Other Accom,MH AdultPlacementCont - EIS,W2HM32,Third Party Payments          ,Private Contractors           ,EH04,Accommodation Based Support             ,"1,000.00",29/03/2016,R,ADMIRAL HEALTHCARE LTD        
100,Adult Social Care,MH u65 Supported & Other Accom,MH AdultPlacementCont - EIS,W2HM32,Third Party Payments          ,Private Contractors           ,EH04,Accommodation Based Support             ,"1,000.00",29/03/2016,R,ADMIRAL HEALTHCARE LTD        
101,Adult Social Care,MH u65 Supported & Other Accom,MH AdultPlacementCont - EIS,W2HM32,Third Party Payments          ,Private Contractors           ,EH04,Accommodation Based Support             ,"1,000.00",29/03/2016,R,ADMIRAL HEALTHCARE LTD        
102,,,Improving Information Systems           ,CT020NB,Vehicles Plant Equipment and Machinery,,D5,Software                                ,"3,000.00",29/02/2016,C,ADVANCED BUSINESS SOLUTIONS   
103,,,Improving Information Systems           ,CT020NB,Vehicles Plant Equipment and Machinery,,D5,Software                                ,"15,000.00",29/02/2016,C,ADVANCED BUSINESS SOLUTIONS   
104,,,Improving Information Systems           ,CT020NB,Vehicles Plant Equipment and Machinery,,D5,Software                                ,"57,898.00",15/02/2016,C,ADVANCED BUSINESS SOLUTIONS   
105,,,Improving Information Systems           ,CT020NB,Vehicles Plant Equipment and Machinery,,D5,Software                                ,"57,898.00",15/02/2016,C,ADVANCED BUSINESS SOLUTIONS   
106,Childrens & Education Services,CS - Commiss'ing & Social Work,SD Finance & Admin,W1BE02,Supplies & Services           ,Services                      ,DF56,Bank and Giro Charges                   ,654.19,31/03/2016,R,ADVANCED PAYMENT SOLUTIONS LTD
107,Childrens & Education Services,CS - Commiss'ing & Social Work,SD Finance & Admin,W1BE02,Supplies & Services           ,Services                      ,DF56,Bank and Giro Charges                   ,655.08,31/03/2016,R,ADVANCED PAYMENT SOLUTIONS LTD
108,Adult Social Care,SS Management & Administration,SP Direct Payments,W3VA08,Supplies & Services           ,Prntng Stnry Gen Off Exp      ,DE03,Stationery                              ,"1,069.75",22/02/2016,R,ADVANCED PAYMENT SOLUTIONS LTD
109,Childrens & Education Services,CS - Commiss'ing & Social Work,SD Finance & Admin,W1BE02,Supplies & Services           ,Services                      ,DF56,Bank and Giro Charges                   ,"1,110.95",19/03/2016,R,ADVANCED PAYMENT SOLUTIONS LTD
110,Childrens & Education Services,CS - Commiss'ing & Social Work,SD Finance & Admin,W1BE02,Supplies & Services           ,Services                      ,DF56,Bank and Giro Charges                   ,"1,386.94",07/03/2016,R,ADVANCED PAYMENT SOLUTIONS LTD
111,Childrens & Education Services,CS - Commiss'ing & Social Work,SD Finance & Admin,W1BE02,Supplies & Services           ,Services                      ,DF56,Bank and Giro Charges                   ,"1,539.16",19/03/2016,R,ADVANCED PAYMENT SOLUTIONS LTD
112,Childrens & Education Services,CS - Commiss'ing & Social Work,SD Finance & Admin,W1BE02,Supplies & Services           ,Services                      ,DF56,Bank and Giro Charges                   ,"1,582.20",24/03/2016,R,ADVANCED PAYMENT SOLUTIONS LTD
113,Childrens & Education Services,CS - Commiss'ing & Social Work,SD Finance & Admin,W1BE02,Supplies & Services           ,Services                      ,DF56,Bank and Giro Charges                   ,"1,805.08",31/03/2016,R,ADVANCED PAYMENT SOLUTIONS LTD
114,Childrens & Education Services,CS - Commiss'ing & Social Work,SD Finance & Admin,W1BE02,Supplies & Services           ,Services                      ,DF56,Bank and Giro Charges                   ,"2,102.53",16/03/2016,R,ADVANCED PAYMENT SOLUTIONS LTD
115,Childrens & Education Services,CS - Commiss'ing & Social Work,SD Finance & Admin,W1BE02,Supplies & Services           ,Services                      ,DF56,Bank and Giro Charges                   ,"2,496.77",24/03/2016,R,ADVANCED PAYMENT SOLUTIONS LTD
116,Childrens & Education Services,CS - Commiss'ing & Social Work,SD Finance & Admin,W1BE02,Supplies & Services           ,Services                      ,DF56,Bank and Giro Charges                   ,"4,097.91",16/03/2016,R,ADVANCED PAYMENT SOLUTIONS LTD
117,Childrens & Education Services,CS - Commiss'ing & Social Work,SD Finance & Admin,W1BE02,Supplies & Services           ,Services                      ,DF56,Bank and Giro Charges                   ,"5,839.94",03/03/2016,R,ADVANCED PAYMENT SOLUTIONS LTD
118,Highways & Transport Services,Repair prin/oth rds not split,FDGIA - Cottenham Park                  ,G00351,Third Party Payments          ,Private Contractors           ,EH10,Contract Payments                       ,"17,022.50",04/03/2016,R,AECOM                         
119,Highways & Transport Services,Repair prin/oth rds not split,FDGIA - Seely Rd                        ,G00352,Third Party Payments          ,Private Contractors           ,EH10,Contract Payments                       ,"17,022.50",04/03/2016,R,AECOM                         
120,Cultural Env Reg&Plan Services,Planning Policy not split,Spatial Policy,H01173,Third Party Payments          ,Private Contractors           ,EH10,Contract Payments                       ,"35,000.00",23/03/2016,R,AECOM                         
121,Childrens & Education Services,Fostering Services,ART Independent Agency Foster,W1DE46,Supplies & Services           ,Services                      ,DF53,Task Based Fostering                    ,-985.71,24/02/2016,R,AFFINITY FOSTERING SERV LTD   
122,Childrens & Education Services,Fostering Services,ART Independent Agency Foster,W1DE46,Supplies & Services           ,Services                      ,DF53,Task Based Fostering                    ,"1,150.00",24/02/2016,R,AFFINITY FOSTERING SERV LTD   
123,Childrens & Education Services,Fostering Services,ART Independent Agency Foster,W1DE46,Supplies & Services           ,Services                      ,DF53,Task Based Fostering                    ,"1,150.00",24/02/2016,R,AFFINITY FOSTERING SERV LTD   
124,Childrens & Education Services,Fostering Services,ART Independent Agency Foster,W1DE46,Supplies & Services           ,Services                      ,DF53,Task Based Fostering                    ,"1,150.00",24/02/2016,R,AFFINITY FOSTERING SERV LTD   
125,Childrens & Education Services,Fostering Services,ART Independent Agency Foster,W1DE46,Supplies & Services           ,Services                      ,DF53,Task Based Fostering                    ,"1,150.00",24/02/2016,R,AFFINITY FOSTERING SERV LTD   
126,Childrens & Education Services,Fostering Services,ART Independent Agency Foster,W1DE46,Supplies & Services           ,Services                      ,DF53,Task Based Fostering                    ,"1,150.00",24/02/2016,R,AFFINITY FOSTERING SERV LTD   
127,Central Services,SupS Health & Safety,Learning and Development,B06146,Employees                     ,Indirect Employee Expenses    ,AB57,EXTERNAL TRAINING COSTS                 ,"1,035.00",15/03/2016,R,AGILEKRC LIMITED              
128,Cultural Env Reg&Plan Services,Recycling (Collection),WCSS Recycl Encourgmnt&Incentv          ,G00650,Supplies & Services           ,Prntng Stnry Gen Off Exp      ,DE22,Marketing                               ,"-3,880.00",01/03/2016,R,AGRIPA SOLUTIONS LIMITED      
129,Cultural Env Reg&Plan Services,Recycling (Collection),WCSS Recycl Encourgmnt&Incentv          ,G00650,Supplies & Services           ,Prntng Stnry Gen Off Exp      ,DE22,Marketing                               ,"1,500.00",01/03/2016,R,AGRIPA SOLUTIONS LIMITED      
130,Childrens & Education Services,Statutory & Regulatory Duties,Governor Support,K09081,Supplies & Services           ,Expenses                      ,DH02,Conferences                             ,750.00,02/03/2016,R,AID TRAINING & OPERATIONS LTD 
131,Childrens & Education Services,Statutory & Regulatory Duties,Governor Support,K09081,Supplies & Services           ,Expenses                      ,DH02,Conferences                             ,750.00,02/03/2016,R,AID TRAINING & OPERATIONS LTD 
132,Childrens & Education Services,Statutory & Regulatory Duties,Governor Support,K09081,Supplies & Services           ,Expenses                      ,DH02,Conferences                             ,750.00,02/03/2016,R,AID TRAINING & OPERATIONS LTD 
133,Adult Social Care,LD u65 Residentl Care Placemnt,LD Residential Care External,W2KB55,Third Party Payments          ,Private Contractors           ,EH01,Miscellaneous Agency Services           ,"2,748.92",20/02/2016,R,AIMS CARE PARTNERSHIP         
134,Adult Social Care,LD u65 Residentl Care Placemnt,LD Residential Care External,W2KB55,Third Party Payments          ,Private Contractors           ,EH01,Miscellaneous Agency Services           ,"2,748.92",20/03/2016,R,AIMS CARE PARTNERSHIP         
135,Adult Social Care,LD u65 Residentl Care Placemnt,LD Residential Care External,W2KB55,Third Party Payments          ,Private Contractors           ,EH01,Miscellaneous Agency Services           ,"2,748.92",20/03/2016,R,AIMS CARE PARTNERSHIP         
136,Adult Social Care,LD u65 Residentl Care Placemnt,LD Residential Care External,W2KB55,Third Party Payments          ,Private Contractors           ,EH01,Miscellaneous Agency Services           ,"2,748.92",20/02/2016,R,AIMS CARE PARTNERSHIP         
137,Adult Social Care,LD u65 Residentl Care Placemnt,LD Residential Care External,W2KB55,Third Party Payments          ,Private Contractors           ,EH01,Miscellaneous Agency Services           ,"2,748.92",20/02/2016,R,AIMS CARE PARTNERSHIP         
138,Adult Social Care,LD u65 Residentl Care Placemnt,LD Residential Care External,W2KB55,Third Party Payments          ,Private Contractors           ,EH01,Miscellaneous Agency Services           ,"2,748.92",20/03/2016,R,AIMS CARE PARTNERSHIP         
139,Adult Social Care,LD u65 Residentl Care Placemnt,LD Residential Care External,W2KB55,Third Party Payments          ,Private Contractors           ,EH01,Miscellaneous Agency Services           ,"2,748.92",20/03/2016,R,AIMS CARE PARTNERSHIP         
140,Adult Social Care,LD u65 Residentl Care Placemnt,LD Residential Care External,W2KB55,Third Party Payments          ,Private Contractors           ,EH01,Miscellaneous Agency Services           ,"2,748.92",20/02/2016,R,AIMS CARE PARTNERSHIP         
141,,,Morden Leisure Centre                   ,CE045AA,New Construction Conversion and Renovation,,B2,Site Surveys D&S Structure              ,"2,700.00",14/03/2016,C,AIR QUALITY CONSULTANTS LTD   
142,Public Health,PH - Substance Misuse,PH � Substance Misuse                   ,WPHD01,Third Party Payments          ,Private Contractors           ,EH20,Drugs Misuse                            ,"1,132.50",14/03/2016,R,ALCOHOL CONCERN               
143,Adult Social Care,LD u65 Residentl Care Placemnt,LD Residential Care External,W2KB55,Third Party Payments          ,Private Contractors           ,EH01,Miscellaneous Agency Services           ,"6,312.50",01/03/2016,R,ALDERWOOD LIMITED             
144,Adult Social Care,LD u65 Residentl Care Placemnt,LD Residential Care External,W2KB55,Third Party Payments          ,Private Contractors           ,EH01,Miscellaneous Agency Services           ,"6,312.50",01/03/2016,R,ALDERWOOD LIMITED             
145,Adult Social Care,LD u65 Residentl Care Placemnt,LD Residential Care External,W2KB55,Third Party Payments          ,Private Contractors           ,EH01,Miscellaneous Agency Services           ,"6,312.50",01/03/2016,R,ALDERWOOD LIMITED             
146,Adult Social Care,LD u65 Residentl Care Placemnt,LD Residential Care External,W2KB55,Third Party Payments          ,Private Contractors           ,EH01,Miscellaneous Agency Services           ,"6,312.50",01/03/2016,R,ALDERWOOD LIMITED             
147,Public Health,PH � Obesity                            ,PH � Obesity                            ,WPHO01,Supplies & Services           ,Expenses                      ,DH50,Special Projects                        ,586.00,17/03/2016,R,ALL NATIONS REVIVAL CHURCH -  
148,Childrens & Education Services,Support for SEN Pupils,Non-Delegated Statements,K90024,Third Party Payments          ,Other Local Authorities       ,EB48,OLA PAYMENTS-STATEMENTS                 ,"2,207.34",04/03/2016,R,ALL SAINTS BENHILTON C.E.SCH  
149,Central Services,SupS IT,Corp Saving-Print Strategy,E14359,Supplies & Services           ,Equip Furniture/Materials     ,DA77,Photocopier Rental                      ,"7,255.94",29/02/2016,R,ALTODIGITAL NETWORKS LTD      
150,Central Services,SupS IT,Corp Saving-Print Strategy,E14359,Supplies & Services           ,Prntng Stnry Gen Off Exp      ,DE06,MULTI-FUNCTIONAL PRINTERS               ,"39,777.00",29/02/2016,R,ALTODIGITAL NETWORKS LTD      
151,Central Services,SupS IT,Corp Saving-Print Strategy,E14359,Supplies & Services           ,Equip Furniture/Materials     ,DA77,Photocopier Rental                      ,"50,977.60",29/02/2016,R,ALTODIGITAL NETWORKS LTD      
152,Adult Social Care,OP 65 & Over Day Care,OP Merton Mind Contr-Dementia,W2LB03,Third Party Payments          ,Private Contractors           ,EH10,Contract Payments                       ,"59,659.50",14/01/2016,R,ALZHEIMER'S SOCIETY           
153,Childrens & Education Services,Family - Other Services,CS SWD Personal support                 ,W1CF49,Third Party Payments          ,Private Contractors           ,EH01,Miscellaneous Contrct Services          ,"-3,419.94",17/02/2016,R,AMBITION RECRUITMENT          
154,Childrens & Education Services,Family - Other Services,CS SWD Personal support                 ,W1CF49,Third Party Payments          ,Private Contractors           ,EH01,Miscellaneous Contrct Services          ,"-2,559.90",16/03/2016,R,AMBITION RECRUITMENT          
155,Childrens & Education Services,Family - Other Services,CS SWD Personal support                 ,W1CF49,Third Party Payments          ,Private Contractors           ,EH01,Miscellaneous Contrct Services          ,"-1,713.56",09/03/2016,R,AMBITION RECRUITMENT          
156,Childrens & Education Services,Family - Other Services,CS SWD Personal support                 ,W1CF49,Third Party Payments          ,Private Contractors           ,EH01,Miscellaneous Contrct Services          ,"-1,713.56",02/03/2016,R,AMBITION RECRUITMENT          
157,Childrens & Education Services,Family - Other Services,CS SWD Personal support                 ,W1CF49,Third Party Payments          ,Private Contractors           ,EH01,Miscellaneous Contrct Services          ,-853.52,17/02/2016,R,AMBITION RECRUITMENT          
158,Childrens & Education Services,Family - Other Services,CS SWD Personal support                 ,W1CF49,Third Party Payments          ,Private Contractors           ,EH01,Miscellaneous Contrct Services          ,-853.52,16/03/2016,R,AMBITION RECRUITMENT          
159,Childrens & Education Services,Family - Other Services,CS SWD Personal support                 ,W1CF49,Third Party Payments          ,Private Contractors           ,EH01,Miscellaneous Contrct Services          ,853.52,24/02/2016,R,AMBITION RECRUITMENT          
160,Childrens & Education Services,Family - Other Services,CS SWD Personal support                 ,W1CF49,Third Party Payments          ,Private Contractors           ,EH01,Miscellaneous Contrct Services          ,860.37,17/02/2016,R,AMBITION RECRUITMENT          
161,Childrens & Education Services,Family - Other Services,CS SWD Personal support                 ,W1CF49,Third Party Payments          ,Private Contractors           ,EH01,Miscellaneous Contrct Services          ,"2,559.90",16/03/2016,R,AMBITION RECRUITMENT          
162,Childrens & Education Services,Family - Other Services,CS SWD Personal support                 ,W1CF49,Third Party Payments          ,Private Contractors           ,EH01,Miscellaneous Contrct Services          ,"3,419.94",17/02/2016,R,AMBITION RECRUITMENT          
163,Childrens & Education Services,Family - Other Services,CS SWD Personal support                 ,W1CF49,Third Party Payments          ,Private Contractors           ,EH01,Miscellaneous Contrct Services          ,"4,273.13",17/02/2016,R,AMBITION RECRUITMENT          
164,Childrens & Education Services,Family - Other Services,CS SWD Personal support                 ,W1CF49,Third Party Payments          ,Private Contractors           ,EH01,Miscellaneous Contrct Services          ,"4,273.13",16/03/2016,R,AMBITION RECRUITMENT          
165,Childrens & Education Services,Family - Other Services,CS SWD Personal support                 ,W1CF49,Third Party Payments          ,Private Contractors           ,EH01,Miscellaneous Contrct Services          ,"4,273.13",02/03/2016,R,AMBITION RECRUITMENT          
166,Childrens & Education Services,Family - Other Services,CS SWD Personal support                 ,W1CF49,Third Party Payments          ,Private Contractors           ,EH01,Miscellaneous Contrct Services          ,"4,273.13",24/02/2016,R,AMBITION RECRUITMENT          
167,Childrens & Education Services,Family - Other Services,CS SWD Personal support                 ,W1CF49,Third Party Payments          ,Private Contractors           ,EH01,Miscellaneous Contrct Services          ,"4,273.13",09/03/2016,R,AMBITION RECRUITMENT          
168,Adult Social Care,PS u65 Residentl Care Placemnt,PD WEST TEAM-Residential Care,W2JK55,Third Party Payments          ,Private Contractors           ,EH01,Miscellaneous Agency Services           ,585.46,03/02/2016,R,ANGEL LODGE                   
169,Adult Social Care,PS u65 Residentl Care Placemnt,PD WEST TEAM-Residential Care,W2JK55,Third Party Payments          ,Private Contractors           ,EH01,Miscellaneous Agency Services           ,585.46,03/02/2016,R,ANGEL LODGE                   
170,Adult Social Care,PS u65 Residentl Care Placemnt,PD WEST TEAM-Residential Care,W2JK55,Third Party Payments          ,Private Contractors           ,EH01,Miscellaneous Agency Services           ,585.46,03/02/2016,R,ANGEL LODGE                   
171,Adult Social Care,PS u65 Residentl Care Placemnt,PD WEST TEAM-Residential Care,W2JK55,Third Party Payments          ,Private Contractors           ,EH01,Miscellaneous Agency Services           ,585.46,03/02/2016,R,ANGEL LODGE                   
172,Childrens & Education Services,CS - Commiss'ing & Social Work,CL IndepAssess Expert Witness,W1DJ63,Supplies & Services           ,Services                      ,DF14,Doctors and Other Fees                  ,"1,145.70",25/02/2016,R,ANNE CAVA FAMILY ASSESSMENTS  
173,,,Leisure Centre Plant & Machine          ,CE038MA,New Construction Conversion and Renovation,,B4,Contractor - Site works                 ,"17,067.00",10/03/2016,C,APA CONCRETE REPAIRS LTD      
174,Housing Services,Bed / breakfast accommodation,TEMPORARY ACCOMMODATION,N47160,Third Party Payments          ,Private Contractors           ,EH01,Miscellaneous Agency Services           ,"2,454.80",01/03/2016,R,APEX HOUSING SOLUTIONS        
175,Childrens & Education Services,Vocational - Adult Education,AE-Adult Education Main,K06049,Supplies & Services           ,Services                      ,DF27,Examination Fees                        ,"2,306.80",15/02/2016,R,AQA                           
176,Childrens & Education Services,Nursery schools,EARLY YEARS NURSERY GRANTS,K90042,Supplies & Services           ,Grants and Subscriptions      ,DJ58,Nursery Grant Payment-3yr olds          ,648.00,30/03/2016,R,ARK AT SHERWOOD LTD           
177,Childrens & Education Services,Nursery schools,EARLY YEARS NURSERY GRANTS,K90042,Supplies & Services           ,Grants and Subscriptions      ,DJ57,Nursery Grant Payment-4yr olds          ,745.86,30/03/2016,R,ARK AT SHERWOOD LTD           
178,Childrens & Education Services,Vocational - Adult Education,AE-Adult Education Main,K06049,Supplies & Services           ,Services                      ,DF27,Examination Fees                        ,720.00,09/02/2016,R,ASCENTIS                      
179,Central Services,SupS Strategic Finance,New Financial System                    ,E06229,Supplies & Services           ,Comms and Computing           ,DG50,Other IT Expenditure                    ,"2,783.00",27/03/2016,R,ASH INFORMATION SYSTEMS LTD   
180,Central Services,SupS Strategic Finance,New Financial System                    ,E06229,Supplies & Services           ,Comms and Computing           ,DG50,Other IT Expenditure                    ,"7,285.00",27/03/2016,R,ASH INFORMATION SYSTEMS LTD   
181,Adult Social Care,OP 65&Over NursingCarePlacemts,OP R/Park - Nursing Care,W2LR53,Third Party Payments          ,Private Contractors           ,EH01,Miscellaneous Agency Services           ,652.38,01/03/2016,R,ASHCOMBE HOUSE NURSING HOME   
182,Adult Social Care,OP 65&Over NursingCarePlacemts,OP R/Park - Nursing Care,W2LR53,Third Party Payments          ,Private Contractors           ,EH01,Miscellaneous Agency Services           ,652.38,01/03/2016,R,ASHCOMBE HOUSE NURSING HOME   
183,Adult Social Care,OP 65&Over NursingCarePlacemts,OP R/Park - Nursing Care,W2LR53,Third Party Payments          ,Private Contractors           ,EH01,Miscellaneous Agency Services           ,652.38,01/03/2016,R,ASHCOMBE HOUSE NURSING HOME   
184,Adult Social Care,OP 65&Over NursingCarePlacemts,OP R/Park - Nursing Care,W2LR53,Third Party Payments          ,Private Contractors           ,EH01,Miscellaneous Agency Services           ,652.38,01/03/2016,R,ASHCOMBE HOUSE NURSING HOME   
185,Adult Social Care,LD u65 Residentl Care Placemnt,LD Residential Care External,W2KB55,Third Party Payments          ,Private Contractors           ,EH01,Miscellaneous Agency Services           ,"1,074.97",01/03/2016,R,ASHCROFT CARE SERVICES        
186,Adult Social Care,LD u65 Residentl Care Placemnt,LD Residential Care External,W2KB55,Third Party Payments          ,Private Contractors           ,EH01,Miscellaneous Agency Services           ,"1,074.97",01/03/2016,R,ASHCROFT CARE SERVICES        
187,Adult Social Care,LD u65 Residentl Care Placemnt,LD Residential Care External,W2KB55,Third Party Payments          ,Private Contractors           ,EH01,Miscellaneous Agency Services           ,"1,074.97",01/03/2016,R,ASHCROFT CARE SERVICES        
188,Adult Social Care,LD u65 Residentl Care Placemnt,LD Residential Care External,W2KB55,Third Party Payments          ,Private Contractors           ,EH01,Miscellaneous Agency Services           ,"1,074.97",01/03/2016,R,ASHCROFT CARE SERVICES        
189,Adult Social Care,LD u65 Residentl Care Placemnt,LD Residential Care External,W2KB55,Third Party Payments          ,Private Contractors           ,EH01,Miscellaneous Agency Services           ,"1,343.73",01/03/2016,R,ASHCROFT CARE SERVICES        
190,Adult Social Care,LD u65 Residentl Care Placemnt,LD Residential Care External,W2KB55,Third Party Payments          ,Private Contractors           ,EH01,Miscellaneous Agency Services           ,"1,343.73",01/03/2016,R,ASHCROFT CARE SERVICES        
191,Adult Social Care,LD u65 Residentl Care Placemnt,LD Residential Care External,W2KB55,Third Party Payments          ,Private Contractors           ,EH01,Miscellaneous Agency Services           ,"1,343.73",01/03/2016,R,ASHCROFT CARE SERVICES        
192,Adult Social Care,LD u65 Residentl Care Placemnt,LD Residential Care External,W2KB55,Third Party Payments          ,Private Contractors           ,EH01,Miscellaneous Agency Services           ,"1,343.73",01/03/2016,R,ASHCROFT CARE SERVICES        
193,Adult Social Care,LD u65 Residentl Care Placemnt,LD Residential Care External,W2KB55,Third Party Payments          ,Private Contractors           ,EH01,Miscellaneous Agency Services           ,"1,016.47",01/03/2016,R,ASHINGTON HOUSE               
194,Adult Social Care,LD u65 Residentl Care Placemnt,LD Residential Care External,W2KB55,Third Party Payments          ,Private Contractors           ,EH01,Miscellaneous Agency Services           ,"1,016.47",01/03/2016,R,ASHINGTON HOUSE               
195,Adult Social Care,LD u65 Residentl Care Placemnt,LD Residential Care External,W2KB55,Third Party Payments          ,Private Contractors           ,EH01,Miscellaneous Agency Services           ,"1,016.47",01/03/2016,R,ASHINGTON HOUSE               
196,Adult Social Care,LD u65 Residentl Care Placemnt,LD Residential Care External,W2KB55,Third Party Payments          ,Private Contractors           ,EH01,Miscellaneous Agency Services           ,"1,016.47",01/03/2016,R,ASHINGTON HOUSE               
197,Adult Social Care,OP 65&Over NursingCarePlacemts,OP West - Nursing Care,W2LG53,Third Party Payments          ,Private Contractors           ,EH01,Miscellaneous Agency Services           ,610.90,05/03/2016,R,ASHTON LODGE CARE HOME        
198,Adult Social Care,OP 65&Over NursingCarePlacemts,OP West - Nursing Care,W2LG53,Third Party Payments          ,Private Contractors           ,EH01,Miscellaneous Agency Services           ,610.90,05/03/2016,R,ASHTON LODGE CARE HOME        
199,Adult Social Care,OP 65&Over NursingCarePlacemts,OP West - Nursing Care,W2LG53,Third Party Payments          ,Private Contractors           ,EH01,Miscellaneous Agency Services           ,610.90,05/03/2016,R,ASHTON LODGE CARE HOME        
200,Adult Social Care,OP 65&Over NursingCarePlacemts,OP West - Nursing Care,W2LG53,Third Party Payments          ,Private Contractors           ,EH01,Miscellaneous Agency Services           ,610.90,05/03/2016,R,ASHTON LODGE CARE HOME        
201,Adult Social Care,Other - Other Adult Services,Fixed & Variable Client Paymen,W6AA65,Third Party Payments          ,Private Contractors           ,EH01,Miscellaneous Agency Services           ,"1,522.50",29/02/2016,R,ASIAN ELDERLY GROUP OF MERTON 
202,Adult Social Care,OP 65&Over NursingCarePlacemts,OP West - Nursing Care,W2LG53,Third Party Payments          ,Private Contractors           ,EH01,Miscellaneous Agency Services           ,654.55,01/03/2016,R,ASLOCKTON HALL                
203,Adult Social Care,OP 65&Over NursingCarePlacemts,OP West - Nursing Care,W2LG53,Third Party Payments          ,Private Contractors           ,EH01,Miscellaneous Agency Services           ,654.55,01/03/2016,R,ASLOCKTON HALL                
204,Adult Social Care,OP 65&Over NursingCarePlacemts,OP West - Nursing Care,W2LG53,Third Party Payments          ,Private Contractors           ,EH01,Miscellaneous Agency Services           ,654.55,01/03/2016,R,ASLOCKTON HALL                
205,Adult Social Care,OP 65&Over NursingCarePlacemts,OP West - Nursing Care,W2LG53,Third Party Payments          ,Private Contractors           ,EH01,Miscellaneous Agency Services           ,654.55,01/03/2016,R,ASLOCKTON HALL                
206,Housing Services,Bed / breakfast accommodation,TEMPORARY ACCOMMODATION,N47160,Third Party Payments          ,Private Contractors           ,EH01,Miscellaneous Agency Services           ,"1,363.00",01/03/2016,R,ASSETGROVE LETTINGS LTD       
207,Housing Services,Bed / breakfast accommodation,TEMPORARY ACCOMMODATION,N47160,Third Party Payments          ,Private Contractors           ,EH01,Miscellaneous Agency Services           ,"1,363.00",01/03/2016,R,ASSETGROVE LETTINGS LTD       
208,Housing Services,Bed / breakfast accommodation,TEMPORARY ACCOMMODATION,N47160,Third Party Payments          ,Private Contractors           ,EH01,Miscellaneous Agency Services           ,"1,363.00",01/03/2016,R,ASSETGROVE LETTINGS LTD       
209,Housing Services,Bed / breakfast accommodation,TEMPORARY ACCOMMODATION,N47160,Third Party Payments          ,Private Contractors           ,EH01,Miscellaneous Agency Services           ,"1,363.00",01/03/2016,R,ASSETGROVE LETTINGS LTD       
210,Housing Services,Bed / breakfast accommodation,TEMPORARY ACCOMMODATION,N47160,Third Party Payments          ,Private Contractors           ,EH01,Miscellaneous Agency Services           ,"1,363.00",01/03/2016,R,ASSETGROVE LETTINGS LTD       
211,Housing Services,Bed / breakfast accommodation,TEMPORARY ACCOMMODATION,N47160,Third Party Payments          ,Private Contractors           ,EH01,Miscellaneous Agency Services           ,"1,363.00",01/03/2016,R,ASSETGROVE LETTINGS LTD       
212,Housing Services,Bed / breakfast accommodation,TEMPORARY ACCOMMODATION,N47160,Third Party Payments          ,Private Contractors           ,EH01,Miscellaneous Agency Services           ,"1,885.00",01/03/2016,R,ASSETGROVE LETTINGS LTD       
213,Childrens & Education Services,Education Psychology Service,Education Psychology.,K04018,Employees                     ,Indirect Employee Expenses    ,AB02,Recruitment Adverts                     ,700.00,16/03/2016,R,ASSOC OF EDUC.PSYCHOLOGIST    
214,Childrens & Education Services,Youth Centres (Residential),Youth Opps Fund (GF C G),K06093,Supplies & Services           ,Grants and Subscriptions      ,DJ01,Grants                                  ,551.60,29/02/2016,R,ASSOC. FOR THE POLISH FAMILY  
215,Adult Social Care,MH u65 Residentl Care Placemnt,MH Res Care Ext- Mitcham West,W2HD55,Third Party Payments          ,Private Contractors           ,EH01,Miscellaneous Agency Services           ,518.68,10/03/2016,R,ASTRA HOMES                   
216,Adult Social Care,MH u65 Residentl Care Placemnt,MH Res Care Ext- Mitcham West,W2HD55,Third Party Payments          ,Private Contractors           ,EH01,Miscellaneous Agency Services           ,518.68,10/03/2016,R,ASTRA HOMES                   
217,Adult Social Care,MH u65 Residentl Care Placemnt,MH Res Care Ext- Mitcham West,W2HD55,Third Party Payments          ,Private Contractors           ,EH01,Miscellaneous Agency Services           ,518.68,10/03/2016,R,ASTRA HOMES                   
218,Adult Social Care,MH u65 Residentl Care Placemnt,MH Res Care Ext- Mitcham West,W2HD55,Third Party Payments          ,Private Contractors           ,EH01,Miscellaneous Agency Services           ,518.68,10/03/2016,R,ASTRA HOMES                   
219,,,Singlegate expansion                    ,CS049AA,New Construction Conversion and Renovation,,B1,Consultants Fees D&S Structure          ,"4,741.71",31/03/2016,C,ATKINS LIMITED                
220,,,Singlegate expansion                    ,CS049AA,New Construction Conversion and Renovation,,B1,Consultants Fees D&S Structure          ,"16,301.90",19/02/2016,C,ATKINS LIMITED                
221,Childrens & Education Services,Statutory & Regulatory Duties,Schools IT Support,K02008,Supplies & Services           ,Comms and Computing           ,DG50,Other IT Expenditure                    ,"1,250.00",09/02/2016,R,ATOMWIDE LTD                  
222,,,Civic Centre Windows                    ,CF001AK,Vehicles Plant Equipment and Machinery,,D5,Software                                ,"1,045.00",23/02/2016,C,AUDITEL RENTAL & SERVICE LTD  
223,,,Civic Centre Windows                    ,CF001AK,Vehicles Plant Equipment and Machinery,,D5,Software                                ,"1,440.00",22/03/2016,C,AUDITEL RENTAL & SERVICE LTD  
224,,,Civic Centre Windows                    ,CF001AK,Vehicles Plant Equipment and Machinery,,D5,Software                                ,"3,150.00",23/03/2016,C,AUDITEL RENTAL & SERVICE LTD  
225,,,Civic Centre Windows                    ,CF001AK,Vehicles Plant Equipment and Machinery,,D5,Software                                ,"10,819.00",22/03/2016,C,AUDITEL RENTAL & SERVICE LTD  
226,Central Services,SupS Audit and Fraud,Internal Audit&Service Review,E05101,Supplies & Services           ,Comms and Computing           ,DG09,Computer Purchases - Misc               ,670.00,18/02/2016,R,AUDITWARE SYSTEMS LTD         
227,Cultural Env Reg&Plan Services,Library DoS not split,Libraries Service-Civic Centre,L50001,Supplies & Services           ,Comms and Computing           ,DG07,Computer Software                       ,529.20,31/01/2016,R,AXIELL                        
228,,,Civic Centre- Upgrading lifts           ,CF001AL,New Construction Conversion and Renovation,,B4,Contractor - Site works                 ,"6,398.25",25/02/2016,C,AXIS ELEVATORS LTD            
229,,,Civic Centre- Upgrading lifts           ,CF001AL,New Construction Conversion and Renovation,,B4,Contractor - Site works                 ,"90,060.00",16/03/2016,C,AXIS ELEVATORS LTD            
230,CS -Oth Operating Inc & Expend,T/A Vehicle Maintenance etc,Transport-Contract Hire,J01374,Transport Related Expenditure ,Contract Hire and Op Leasing  ,CC53,Plant Hire for MRCS                     ,"1,008.00",29/02/2016,R,B&T PLANT HIRE LTD            
231,Cultural Env Reg&Plan Services,Recycling (Collection),BARROW AND BINS REPLACEMENT,G00641,Supplies & Services           ,Equip Furniture/Materials     ,DA31,RESIDENTIAL RECYCLING SACKS             ,935.51,25/02/2016,R,BAG MAGIC UK LTD              
232,Central Services,GENERATED ACCOUNT,Establishments' Cash Collect'n,E06226,Third Party Payments          ,Private Contractors           ,EH02,Miscellaneous Hired Services            ,585.90,29/02/2016,R,BANKING AUTOMATION LTD        
233,Central Services,GENERATED ACCOUNT,Parking Cash Collect'n Contrct,E06225,Third Party Payments          ,Private Contractors           ,EH02,Miscellaneous Hired Services            ,"10,940.59",29/02/2016,R,BANKING AUTOMATION LTD        
234,Adult Social Care,OP 65&Over NursingCarePlacemts,OP West - Nursing Care,W2LG53,Third Party Payments          ,Private Contractors           ,EH01,Miscellaneous Agency Services           ,-550.00,02/03/2016,R,BARCHESTER H'LTHCARE HOMES LTD
235,Adult Social Care,PS u65 Nursing Care Placements,PD WEST TEAM-Nursing,W2JK53,Third Party Payments          ,Private Contractors           ,EH01,Miscellaneous Agency Services           ,550.00,02/03/2016,R,BARCHESTER H'LTHCARE HOMES LTD
236,Adult Social Care,PS u65 Nursing Care Placements,PD WEST TEAM-Nursing,W2JK53,Third Party Payments          ,Private Contractors           ,EH01,Miscellaneous Agency Services           ,770.00,02/03/2016,R,BARCHESTER H'LTHCARE HOMES LTD
237,Adult Social Care,PS u65 Nursing Care Placements,PD WEST TEAM-Nursing,W2JK53,Third Party Payments          ,Private Contractors           ,EH01,Miscellaneous Agency Services           ,770.00,02/03/2016,R,BARCHESTER H'LTHCARE HOMES LTD
238,Adult Social Care,PS u65 Nursing Care Placements,PD WEST TEAM-Nursing,W2JK53,Third Party Payments          ,Private Contractors           ,EH01,Miscellaneous Agency Services           ,770.00,02/03/2016,R,BARCHESTER H'LTHCARE HOMES LTD
239,Adult Social Care,PS u65 Nursing Care Placements,PD WEST TEAM-Nursing,W2JK53,Third Party Payments          ,Private Contractors           ,EH01,Miscellaneous Agency Services           ,770.00,02/03/2016,R,BARCHESTER H'LTHCARE HOMES LTD
240,CS -Oth Operating Inc & Expend,T/A Vehicle Maintenance etc,Transport-Workshop,J01376,Transport Related Expenditure ,Contract Hire and Op Leasing  ,CC60,Vehicle Hire for LB Sutton              ,"1,260.00",29/02/2016,R,BARCLAYS ASSET & SALES FINANCE
241,CS -Oth Operating Inc & Expend,T/A Vehicle Maintenance etc,Transport-Contract Hire,J01374,Transport Related Expenditure ,Contract Hire and Op Leasing  ,CC64,CSF - SEN CABS (RK02)                   ,"1,296.00",29/02/2016,R,BARCLAYS ASSET & SALES FINANCE
242,CS -Oth Operating Inc & Expend,T/A Vehicle Maintenance etc,Transport-Contract Hire,J01374,Transport Related Expenditure ,Contract Hire and Op Leasing  ,CC64,CSF - SEN CABS (RK02)                   ,"1,344.00",29/02/2016,R,BARCLAYS ASSET & SALES FINANCE
243,CS -Oth Operating Inc & Expend,T/A Vehicle Maintenance etc,Transport-Contract Hire,J01374,Transport Related Expenditure ,Contract Hire and Op Leasing  ,CC64,CSF - SEN CABS (RK02)                   ,"1,344.00",29/02/2016,R,BARCLAYS ASSET & SALES FINANCE
244,CS -Oth Operating Inc & Expend,T/A Vehicle Maintenance etc,Transport-Contract Hire,J01374,Transport Related Expenditure ,Contract Hire and Op Leasing  ,CC64,CSF - SEN CABS (RK02)                   ,"1,578.50",29/02/2016,R,BARCLAYS ASSET & SALES FINANCE
245,CS -Oth Operating Inc & Expend,T/A Vehicle Maintenance etc,Transport-Contract Hire,J01374,Transport Related Expenditure ,Contract Hire and Op Leasing  ,CC64,CSF - SEN CABS (RK02)                   ,"1,750.00",29/02/2016,R,BARCLAYS ASSET & SALES FINANCE
246,CS -Oth Operating Inc & Expend,T/A Vehicle Maintenance etc,Transport-Workshop,J01376,Transport Related Expenditure ,Contract Hire and Op Leasing  ,CC60,Vehicle Hire for LB Sutton              ,"1,792.00",29/02/2016,R,BARCLAYS ASSET & SALES FINANCE
247,CS -Oth Operating Inc & Expend,T/A Vehicle Maintenance etc,Transport-Contract Hire,J01374,Transport Related Expenditure ,Contract Hire and Op Leasing  ,CC64,CSF - SEN CABS (RK02)                   ,"1,900.00",29/02/2016,R,BARCLAYS ASSET & SALES FINANCE
248,CS -Oth Operating Inc & Expend,T/A Vehicle Maintenance etc,Transport-Contract Hire,J01374,Transport Related Expenditure ,Contract Hire and Op Leasing  ,CC64,CSF - SEN CABS (RK02)                   ,"2,400.00",29/02/2016,R,BARCLAYS ASSET & SALES FINANCE
249,CS -Oth Operating Inc & Expend,T/A Vehicle Maintenance etc,Transport-Workshop,J01376,Transport Related Expenditure ,Contract Hire and Op Leasing  ,CC60,Vehicle Hire for LB Sutton              ,"2,480.00",29/02/2016,R,BARCLAYS ASSET & SALES FINANCE
250,CS -Oth Operating Inc & Expend,T/A Vehicle Maintenance etc,Transport-Contract Hire,J01374,Transport Related Expenditure ,Contract Hire and Op Leasing  ,CC64,CSF - SEN CABS (RK02)                   ,"2,720.00",29/02/2016,R,BARCLAYS ASSET & SALES FINANCE
251,CS -Oth Operating Inc & Expend,T/A Vehicle Maintenance etc,Transport-Contract Hire,J01374,Transport Related Expenditure ,Contract Hire and Op Leasing  ,CC64,CSF - SEN CABS (RK02)                   ,"2,720.00",29/02/2016,R,BARCLAYS ASSET & SALES FINANCE
252,CS -Oth Operating Inc & Expend,T/A Vehicle Maintenance etc,Transport-Contract Hire,J01374,Transport Related Expenditure ,Contract Hire and Op Leasing  ,CC64,CSF - SEN CABS (RK02)                   ,"2,880.00",29/02/2016,R,BARCLAYS ASSET & SALES FINANCE
253,Highways & Transport Services,Saf mtc prin/oth rds not split,Highways GM Contract                    ,P04006,Premises Related Expenditure  ,Ground Maintenance Costs      ,BL50,Nature Conservation                     ,864.75,05/02/2016,R,BARKLANDS TREE SPECIALISTS    
254,Highways & Transport Services,Saf mtc prin/oth rds not split,Highways GM Contract                    ,P04006,Premises Related Expenditure  ,Ground Maintenance Costs      ,BL50,Nature Conservation                     ,"1,577.00",24/02/2016,R,BARKLANDS TREE SPECIALISTS    
255,Highways & Transport Services,Saf mtc prin/oth rds not split,Highways GM Contract                    ,P04006,Premises Related Expenditure  ,Ground Maintenance Costs      ,BL50,Nature Conservation                     ,"3,025.00",05/02/2016,R,BARKLANDS TREE SPECIALISTS    
256,Adult Social Care,OP 65&Over NursingCarePlacemts,OP R/Park - Nursing Care,W2LR53,Third Party Payments          ,Private Contractors           ,EH01,Miscellaneous Agency Services           ,574.29,05/01/2016,R,BARONS LODGE NURSING HOME     
257,Adult Social Care,LD u65 Residentl Care Placemnt,LD Residential Care External,W2KB55,Third Party Payments          ,Private Contractors           ,EH01,Miscellaneous Agency Services           ,650.00,25/02/2016,R,BARONS LODGE NURSING HOME     
258,Adult Social Care,LD u65 Residentl Care Placemnt,LD Residential Care External,W2KB55,Third Party Payments          ,Private Contractors           ,EH01,Miscellaneous Agency Services           ,650.00,25/02/2016,R,BARONS LODGE NURSING HOME     
259,Adult Social Care,LD u65 Residentl Care Placemnt,LD Residential Care External,W2KB55,Third Party Payments          ,Private Contractors           ,EH01,Miscellaneous Agency Services           ,650.00,25/02/2016,R,BARONS LODGE NURSING HOME     
260,Adult Social Care,LD u65 Residentl Care Placemnt,LD Residential Care External,W2KB55,Third Party Payments          ,Private Contractors           ,EH01,Miscellaneous Agency Services           ,650.00,25/02/2016,R,BARONS LODGE NURSING HOME     
261,Adult Social Care,OP 65&Over NursingCarePlacemts,OP R/Park - Nursing Care,W2LR53,Third Party Payments          ,Private Contractors           ,EH01,Miscellaneous Agency Services           ,670.00,05/01/2016,R,BARONS LODGE NURSING HOME     
262,Adult Social Care,OP 65&Over NursingCarePlacemts,OP R/Park - Nursing Care,W2LR53,Third Party Payments          ,Private Contractors           ,EH01,Miscellaneous Agency Services           ,670.00,05/01/2016,R,BARONS LODGE NURSING HOME     
263,Adult Social Care,OP 65&Over NursingCarePlacemts,OP R/Park - Nursing Care,W2LR53,Third Party Payments          ,Private Contractors           ,EH01,Miscellaneous Agency Services           ,670.00,05/01/2016,R,BARONS LODGE NURSING HOME     
264,Adult Social Care,OP 65&Over NursingCarePlacemts,OP R/Park - Nursing Care,W2LR53,Third Party Payments          ,Private Contractors           ,EH01,Miscellaneous Agency Services           ,670.00,05/01/2016,R,BARONS LODGE NURSING HOME     
265,Adult Social Care,OP 65&Over NursingCarePlacemts,OP R/Park - Nursing Care,W2LR53,Third Party Payments          ,Private Contractors           ,EH01,Miscellaneous Agency Services           ,670.00,05/01/2016,R,BARONS LODGE NURSING HOME     
266,Adult Social Care,OP 65&Over NursingCarePlacemts,OP R/Park - Nursing Care,W2LR53,Third Party Payments          ,Private Contractors           ,EH01,Miscellaneous Agency Services           ,670.00,05/01/2016,R,BARONS LODGE NURSING HOME     
267,Adult Social Care,OP 65&Over NursingCarePlacemts,OP R/Park - Nursing Care,W2LR53,Third Party Payments          ,Private Contractors           ,EH01,Miscellaneous Agency Services           ,670.00,05/01/2016,R,BARONS LODGE NURSING HOME     
268,Adult Social Care,OP 65&Over NursingCarePlacemts,OP R/Park - Nursing Care,W2LR53,Third Party Payments          ,Private Contractors           ,EH01,Miscellaneous Agency Services           ,670.00,25/01/2016,R,BARONS LODGE NURSING HOME     
269,Adult Social Care,OP 65&Over NursingCarePlacemts,OP R/Park - Nursing Care,W2LR53,Third Party Payments          ,Private Contractors           ,EH01,Miscellaneous Agency Services           ,670.00,01/03/2016,R,BARONS LODGE NURSING HOME     
270,Adult Social Care,OP 65&Over NursingCarePlacemts,OP R/Park - Nursing Care,W2LR53,Third Party Payments          ,Private Contractors           ,EH01,Miscellaneous Agency Services           ,670.00,05/01/2016,R,BARONS LODGE NURSING HOME     
271,Adult Social Care,OP 65&Over NursingCarePlacemts,OP R/Park - Nursing Care,W2LR53,Third Party Payments          ,Private Contractors           ,EH01,Miscellaneous Agency Services           ,670.00,25/01/2016,R,BARONS LODGE NURSING HOME     
272,Adult Social Care,OP 65&Over NursingCarePlacemts,OP R/Park - Nursing Care,W2LR53,Third Party Payments          ,Private Contractors           ,EH01,Miscellaneous Agency Services           ,670.00,25/01/2016,R,BARONS LODGE NURSING HOME     
273,Adult Social Care,OP 65&Over NursingCarePlacemts,OP R/Park - Nursing Care,W2LR53,Third Party Payments          ,Private Contractors           ,EH01,Miscellaneous Agency Services           ,670.00,01/03/2016,R,BARONS LODGE NURSING HOME     
274,Adult Social Care,OP 65&Over NursingCarePlacemts,OP R/Park - Nursing Care,W2LR53,Third Party Payments          ,Private Contractors           ,EH01,Miscellaneous Agency Services           ,670.00,01/03/2016,R,BARONS LODGE NURSING HOME     
275,Adult Social Care,OP 65&Over NursingCarePlacemts,OP R/Park - Nursing Care,W2LR53,Third Party Payments          ,Private Contractors           ,EH01,Miscellaneous Agency Services           ,670.00,05/01/2016,R,BARONS LODGE NURSING HOME     
276,Adult Social Care,OP 65&Over NursingCarePlacemts,OP R/Park - Nursing Care,W2LR53,Third Party Payments          ,Private Contractors           ,EH01,Miscellaneous Agency Services           ,670.00,25/01/2016,R,BARONS LODGE NURSING HOME     
277,Adult Social Care,OP 65&Over NursingCarePlacemts,OP R/Park - Nursing Care,W2LR53,Third Party Payments          ,Private Contractors           ,EH01,Miscellaneous Agency Services           ,670.00,01/03/2016,R,BARONS LODGE NURSING HOME     
278,Adult Social Care,PS u65 Nursing Care Placements,PD R/Park-Nursing                       ,W2JM53,Third Party Payments          ,Private Contractors           ,EH01,Miscellaneous Contrct Services          ,850.00,25/02/2016,R,BARONS LODGE NURSING HOME     
279,Adult Social Care,PS u65 Nursing Care Placements,PD R/Park-Nursing                       ,W2JM53,Third Party Payments          ,Private Contractors           ,EH01,Miscellaneous Contrct Services          ,850.00,25/02/2016,R,BARONS LODGE NURSING HOME     
280,Adult Social Care,PS u65 Nursing Care Placements,PD R/Park-Nursing                       ,W2JM53,Third Party Payments          ,Private Contractors           ,EH01,Miscellaneous Contrct Services          ,850.00,25/02/2016,R,BARONS LODGE NURSING HOME     
281,Adult Social Care,PS u65 Nursing Care Placements,PD R/Park-Nursing                       ,W2JM53,Third Party Payments          ,Private Contractors           ,EH01,Miscellaneous Contrct Services          ,850.00,25/02/2016,R,BARONS LODGE NURSING HOME     
282,Adult Social Care,OP 65&Over NursingCarePlacemts,OP R/Park - Nursing Care,W2LR53,Third Party Payments          ,Private Contractors           ,EH01,Miscellaneous Agency Services           ,875.00,25/02/2016,R,BARONS LODGE NURSING HOME     
283,Adult Social Care,OP 65&Over NursingCarePlacemts,OP R/Park - Nursing Care,W2LR53,Third Party Payments          ,Private Contractors           ,EH01,Miscellaneous Agency Services           ,875.00,25/02/2016,R,BARONS LODGE NURSING HOME     
284,Adult Social Care,OP 65&Over NursingCarePlacemts,OP R/Park - Nursing Care,W2LR53,Third Party Payments          ,Private Contractors           ,EH01,Miscellaneous Agency Services           ,875.00,25/02/2016,R,BARONS LODGE NURSING HOME     
285,Adult Social Care,OP 65&Over NursingCarePlacemts,OP R/Park - Nursing Care,W2LR53,Third Party Payments          ,Private Contractors           ,EH01,Miscellaneous Agency Services           ,875.00,25/02/2016,R,BARONS LODGE NURSING HOME     
286,Adult Social Care,LD u65 Nursing Care Placements,LD Nursing Care,W2KB53,Third Party Payments          ,Private Contractors           ,EH01,Miscellaneous Agency Services           ,924.08,29/02/2016,R,BARONS LODGE NURSING HOME     
287,Adult Social Care,LD u65 Nursing Care Placements,LD Nursing Care,W2KB53,Third Party Payments          ,Private Contractors           ,EH01,Miscellaneous Agency Services           ,924.08,29/02/2016,R,BARONS LODGE NURSING HOME     
288,Adult Social Care,LD u65 Nursing Care Placements,LD Nursing Care,W2KB53,Third Party Payments          ,Private Contractors           ,EH01,Miscellaneous Agency Services           ,924.08,29/02/2016,R,BARONS LODGE NURSING HOME     
289,Adult Social Care,LD u65 Nursing Care Placements,LD Nursing Care,W2KB53,Third Party Payments          ,Private Contractors           ,EH01,Miscellaneous Agency Services           ,924.08,29/02/2016,R,BARONS LODGE NURSING HOME     
290,Adult Social Care,PS u65 Nursing Care Placements,PD R/Park-Nursing                       ,W2JM53,Third Party Payments          ,Private Contractors           ,EH01,Miscellaneous Contrct Services          ,"1,012.00",25/02/2016,R,BARONS LODGE NURSING HOME     
291,Adult Social Care,PS u65 Nursing Care Placements,PD R/Park-Nursing                       ,W2JM53,Third Party Payments          ,Private Contractors           ,EH01,Miscellaneous Contrct Services          ,"1,012.00",25/02/2016,R,BARONS LODGE NURSING HOME     
292,Adult Social Care,PS u65 Nursing Care Placements,PD R/Park-Nursing                       ,W2JM53,Third Party Payments          ,Private Contractors           ,EH01,Miscellaneous Contrct Services          ,"1,012.00",25/02/2016,R,BARONS LODGE NURSING HOME     
293,Adult Social Care,PS u65 Nursing Care Placements,PD R/Park-Nursing                       ,W2JM53,Third Party Payments          ,Private Contractors           ,EH01,Miscellaneous Contrct Services          ,"1,012.00",25/02/2016,R,BARONS LODGE NURSING HOME     
294,Public Health,PH - Sexual Health,PH � STI Testing and Treatment          ,WPHS02,Supplies & Services           ,Public Health Subjectives,DQ04,GUM                                     ,"-13,485.80",12/02/2016,R,BARTS HEALTH NHS TRUST        
295,Public Health,PH - Sexual Health,PH � STI Testing and Treatment          ,WPHS02,Supplies & Services           ,Public Health Subjectives,DQ04,GUM                                     ,"4,940.20",12/02/2016,R,BARTS HEALTH NHS TRUST        
296,Public Health,PH - Sexual Health,PH � STI Testing and Treatment          ,WPHS02,Supplies & Services           ,Public Health Subjectives,DQ04,GUM                                     ,"13,485.80",12/02/2016,R,BARTS HEALTH NHS TRUST        
297,Cultural Env Reg&Plan Services,Economic Dev (Not separated),Capt Ambition-Suburban Opprt Z,H01231,Supplies & Services           ,Services                      ,DF02,Misc Advertising/Publicity              ,"3,344.00",29/03/2016,R,BAY MEDIA (OUTDOOR)LTD        
298,Cultural Env Reg&Plan Services,Planning Policy not split,HPDG - Spatial Policy,H01183,Third Party Payments          ,Private Contractors           ,EH10,Contract Payments                       ,"9,292.81",17/02/2016,R,BBP REGENERATION              
299,Cultural Env Reg&Plan Services,Planning Policy not split,REGENERATION & INVESTMENT,H01174,Third Party Payments          ,Private Contractors           ,EH10,Contract Payments                       ,"11,141.00",10/03/2016,R,BBP REGENERATION              
300,Childrens & Education Services,Support for SEN Pupils,Non-Delegated Statements,K90024,Third Party Payments          ,Other Local Authorities       ,EB50,OLA-Payments - Day Schools              ,"18,920.62",30/03/2016,R,BECKMEAD SCHOOL               
301,Childrens & Education Services,Support for SEN Pupils,Non-Delegated Statements,K90024,Third Party Payments          ,Other Local Authorities       ,EB50,OLA-Payments - Day Schools              ,"31,138.00",16/03/2016,R,BEDELSFORD SCHOOL             
302,Adult Social Care,LD u65 Home Care,LD Home Care External,W2KB49,Third Party Payments          ,Private Contractors           ,EH01,Miscellaneous Agency Services           ,656.39,03/03/2016,R,BEECH HOME CARE SERVICES      
303,Adult Social Care,LD u65 Home Care,LD Home Care External,W2KB49,Third Party Payments          ,Private Contractors           ,EH01,Miscellaneous Agency Services           ,656.39,15/03/2016,R,BEECH HOME CARE SERVICES      
304,Adult Social Care,LD u65 Home Care,LD Home Care External,W2KB49,Third Party Payments          ,Private Contractors           ,EH01,Miscellaneous Agency Services           ,656.39,14/03/2016,R,BEECH HOME CARE SERVICES      
305,Adult Social Care,LD u65 Home Care,LD Home Care External,W2KB49,Third Party Payments          ,Private Contractors           ,EH01,Miscellaneous Agency Services           ,656.39,03/03/2016,R,BEECH HOME CARE SERVICES      
306,Adult Social Care,OP 65&Over Resi Care Placement,OP R/Park-Residential Care Ext,W2LR55,Third Party Payments          ,Private Contractors           ,EH01,Miscellaneous Agency Services           ,500.00,03/03/2016,R,BEECHWOOD HOUSE               
307,Adult Social Care,OP 65&Over Resi Care Placement,OP R/Park-Residential Care Ext,W2LR55,Third Party Payments          ,Private Contractors           ,EH01,Miscellaneous Agency Services           ,500.00,03/03/2016,R,BEECHWOOD HOUSE               
308,Adult Social Care,OP 65&Over Resi Care Placement,OP R/Park-Residential Care Ext,W2LR55,Third Party Payments          ,Private Contractors           ,EH01,Miscellaneous Agency Services           ,500.00,03/03/2016,R,BEECHWOOD HOUSE               
309,Adult Social Care,OP 65&Over Resi Care Placement,OP R/Park-Residential Care Ext,W2LR55,Third Party Payments          ,Private Contractors           ,EH01,Miscellaneous Agency Services           ,500.00,03/03/2016,R,BEECHWOOD HOUSE               
310,Adult Social Care,OP 65&Over Resi Care Placement,OP East - Residential Care Ext,W2LH55,Third Party Payments          ,Private Contractors           ,EH01,Miscellaneous Agency Services           ,540.00,03/03/2016,R,BEECHWOOD HOUSE               
311,Adult Social Care,OP 65&Over Resi Care Placement,OP East - Residential Care Ext,W2LH55,Third Party Payments          ,Private Contractors           ,EH01,Miscellaneous Agency Services           ,540.00,03/03/2016,R,BEECHWOOD HOUSE               
312,Adult Social Care,OP 65&Over Resi Care Placement,OP East - Residential Care Ext,W2LH55,Third Party Payments          ,Private Contractors           ,EH01,Miscellaneous Agency Services           ,540.00,03/03/2016,R,BEECHWOOD HOUSE               
313,Adult Social Care,OP 65&Over Resi Care Placement,OP East - Residential Care Ext,W2LH55,Third Party Payments          ,Private Contractors           ,EH01,Miscellaneous Agency Services           ,540.00,03/03/2016,R,BEECHWOOD HOUSE               
314,Childrens & Education Services,Facilitating School Improvemnt,SSQ,K09077,Supplies & Services           ,Expenses                      ,DH02,Conferences                             ,500.00,03/03/2016,R,BELLAMY CONSULTANCY & COACHING
315,Childrens & Education Services,Facilitating School Improvemnt,SSQ,K09077,Supplies & Services           ,Expenses                      ,DH02,Conferences                             ,"1,650.00",24/02/2016,R,BELLAMY CONSULTANCY & COACHING
316,Central Services,SupS IT,Systems & Projects,E14366,Supplies & Services           ,Services                      ,DF03,Consultants                             ,"4,770.00",10/03/2016,R,BESPATIAL LTD                 
317,Adult Social Care,OP 65&Over Resi Care Placement,OP East - Residential Care Ext,W2LH55,Third Party Payments          ,Private Contractors           ,EH01,Miscellaneous Agency Services           ,524.22,01/03/2016,R,BHAKTI SHYAMA CARE CENTRE     
318,Adult Social Care,OP 65&Over Resi Care Placement,OP East - Residential Care Ext,W2LH55,Third Party Payments          ,Private Contractors           ,EH01,Miscellaneous Agency Services           ,524.22,01/03/2016,R,BHAKTI SHYAMA CARE CENTRE     
319,Adult Social Care,OP 65&Over Resi Care Placement,OP East - Residential Care Ext,W2LH55,Third Party Payments          ,Private Contractors           ,EH01,Miscellaneous Agency Services           ,524.22,01/03/2016,R,BHAKTI SHYAMA CARE CENTRE     
320,Adult Social Care,OP 65&Over Resi Care Placement,OP East - Residential Care Ext,W2LH55,Third Party Payments          ,Private Contractors           ,EH01,Miscellaneous Agency Services           ,524.22,01/03/2016,R,BHAKTI SHYAMA CARE CENTRE     
321,Central Services,SupS IT,Systems & Projects,E14366,Employees                     ,Direct Employee Expenses      ,AA17,Agency Staff & Casual Paymts            ,"1,250.67",25/02/2016,R,BIBBY FACTORS LEICESTER       
322,Central Services,SupS IT,Systems & Projects,E14366,Employees                     ,Direct Employee Expenses      ,AA17,Agency Staff & Casual Paymts            ,"1,288.00",08/03/2016,R,BIBBY FACTORS LEICESTER       
323,Central Services,SupS IT,Systems & Projects,E14366,Employees                     ,Direct Employee Expenses      ,AA17,Agency Staff & Casual Paymts            ,"1,288.00",21/03/2016,R,BIBBY FACTORS LEICESTER       
324,Central Services,SupS IT,Systems & Projects,E14366,Employees                     ,Direct Employee Expenses      ,AA17,Agency Staff & Casual Paymts            ,"1,400.00",21/03/2016,R,BIBBY FACTORS LEICESTER       
325,Central Services,SupS IT,Systems & Projects,E14366,Employees                     ,Direct Employee Expenses      ,AA17,Agency Staff & Casual Paymts            ,"1,400.00",29/02/2016,R,BIBBY FACTORS LEICESTER       
326,Central Services,SupS IT,Systems & Projects,E14366,Employees                     ,Direct Employee Expenses      ,AA17,Agency Staff & Casual Paymts            ,"1,400.00",31/03/2016,R,BIBBY FACTORS LEICESTER       
327,Adult Social Care,Asylum Unacc Children,UASC Res Care (Non Grant),W4TE58,Third Party Payments          ,Private Contractors           ,EH01,Miscellaneous Contrct Services          ,"-5,775.00",10/03/2016,R,BIBBY FACTORS SUSSEX LTD      
328,Childrens & Education Services,,ART Residential Secure accommo,W1DE58,Third Party Payments          ,Private Contractors           ,EH01,Miscellaneous Agency Services           ,"-1,800.00",01/03/2016,R,BIBBY FACTORS SUSSEX LTD      
329,Childrens & Education Services,,ART Residential Secure accommo,W1DE58,Third Party Payments          ,Private Contractors           ,EH01,Miscellaneous Agency Services           ,"-1,028.57",01/03/2016,R,BIBBY FACTORS SUSSEX LTD      
330,Childrens & Education Services,,ART Residential Secure accommo,W1DE58,Third Party Payments          ,Private Contractors           ,EH01,Miscellaneous Agency Services           ,850.00,01/02/2016,R,BIBBY FACTORS SUSSEX LTD      
331,Childrens & Education Services,,ART Residential Secure accommo,W1DE58,Third Party Payments          ,Private Contractors           ,EH01,Miscellaneous Agency Services           ,850.00,01/02/2016,R,BIBBY FACTORS SUSSEX LTD      
332,Childrens & Education Services,,ART Residential Secure accommo,W1DE58,Third Party Payments          ,Private Contractors           ,EH01,Miscellaneous Agency Services           ,850.00,01/03/2016,R,BIBBY FACTORS SUSSEX LTD      
333,Childrens & Education Services,,ART Residential Secure accommo,W1DE58,Third Party Payments          ,Private Contractors           ,EH01,Miscellaneous Agency Services           ,850.00,01/03/2016,R,BIBBY FACTORS SUSSEX LTD      
334,Childrens & Education Services,,ART Residential Secure accommo,W1DE58,Third Party Payments          ,Private Contractors           ,EH01,Miscellaneous Agency Services           ,850.00,01/02/2016,R,BIBBY FACTORS SUSSEX LTD      
335,Childrens & Education Services,,ART Residential Secure accommo,W1DE58,Third Party Payments          ,Private Contractors           ,EH01,Miscellaneous Agency Services           ,850.00,01/02/2016,R,BIBBY FACTORS SUSSEX LTD      
336,Childrens & Education Services,,ART Residential Secure accommo,W1DE58,Third Party Payments          ,Private Contractors           ,EH01,Miscellaneous Agency Services           ,850.00,01/02/2016,R,BIBBY FACTORS SUSSEX LTD      
337,Childrens & Education Services,,ART Residential Secure accommo,W1DE58,Third Party Payments          ,Private Contractors           ,EH01,Miscellaneous Agency Services           ,850.00,01/03/2016,R,BIBBY FACTORS SUSSEX LTD      
338,Childrens & Education Services,,ART Residential Secure accommo,W1DE58,Third Party Payments          ,Private Contractors           ,EH01,Miscellaneous Agency Services           ,900.00,01/03/2016,R,BIBBY FACTORS SUSSEX LTD      
339,Childrens & Education Services,,ART Residential Secure accommo,W1DE58,Third Party Payments          ,Private Contractors           ,EH01,Miscellaneous Agency Services           ,"1,200.00",01/03/2016,R,BIBBY FACTORS SUSSEX LTD      
340,Childrens & Education Services,,ART Residential Secure accommo,W1DE58,Third Party Payments          ,Private Contractors           ,EH01,Miscellaneous Agency Services           ,"1,200.00",01/03/2016,R,BIBBY FACTORS SUSSEX LTD      
341,Childrens & Education Services,,ART Residential Secure accommo,W1DE58,Third Party Payments          ,Private Contractors           ,EH01,Miscellaneous Agency Services           ,"1,200.00",01/03/2016,R,BIBBY FACTORS SUSSEX LTD      
342,Childrens & Education Services,,ART Residential Secure accommo,W1DE58,Third Party Payments          ,Private Contractors           ,EH01,Miscellaneous Agency Services           ,"1,200.00",01/03/2016,R,BIBBY FACTORS SUSSEX LTD      
343,Childrens & Education Services,,ART Residential Secure accommo,W1DE58,Third Party Payments          ,Private Contractors           ,EH01,Miscellaneous Agency Services           ,"1,200.00",01/03/2016,R,BIBBY FACTORS SUSSEX LTD      
344,Childrens & Education Services,,ART Residential Secure accommo,W1DE58,Third Party Payments          ,Private Contractors           ,EH01,Miscellaneous Agency Services           ,"2,100.00",01/03/2016,R,BIBBY FACTORS SUSSEX LTD      
345,Childrens & Education Services,,ART Residential Secure accommo,W1DE58,Third Party Payments          ,Private Contractors           ,EH01,Miscellaneous Agency Services           ,"2,100.00",01/03/2016,R,BIBBY FACTORS SUSSEX LTD      
346,Childrens & Education Services,,ART Residential Secure accommo,W1DE58,Third Party Payments          ,Private Contractors           ,EH01,Miscellaneous Agency Services           ,"2,100.00",01/03/2016,R,BIBBY FACTORS SUSSEX LTD      
347,Central Services,SupS Legal,Sutton Legal                            ,E10293,Supplies & Services           ,Services                      ,DF14,Doctors and Other Fees                  ,690.30,24/02/2016,R,BIBBY FACTORS YORKSHIRE LTD   
348,Childrens & Education Services,Family - Other Services,SPECIAL GUARDIANSHIP ORDERS,W1DC37,Third Party Payments          ,Private Contractors           ,EH01,Miscellaneous Contrct Services          ,500.00,16/03/2016,R,BIMM INSTITUTE LONDON         
349,Childrens & Education Services,Youth Centres (Residential),Youth Service,K06053,Premises Related Expenditure  ,Cleaning and Domestic Supplies,BH03,Cleaning Services                       ,506.69,24/03/2016,R,BIRKIN CLEANING SERVICES LTD  
350,Childrens & Education Services,Youth Centres (Residential),Youth Service,K06053,Premises Related Expenditure  ,Cleaning and Domestic Supplies,BH03,Cleaning Services                       ,506.69,01/03/2016,R,BIRKIN CLEANING SERVICES LTD  
351,Childrens & Education Services,Chidren's Homes,CS Brightwell,W1CG00,Premises Related Expenditure  ,Cleaning and Domestic Supplies,BH03,Cleaning Services                       ,522.34,01/03/2016,R,BIRKIN CLEANING SERVICES LTD  
352,Childrens & Education Services,Chidren's Homes,CS Brightwell,W1CG00,Premises Related Expenditure  ,Cleaning and Domestic Supplies,BH03,Cleaning Services                       ,522.34,24/03/2016,R,BIRKIN CLEANING SERVICES LTD  
353,Cultural Env Reg&Plan Services,Library DoS not split,Raynes Park Library,L84083,Premises Related Expenditure  ,Cleaning and Domestic Supplies,BH03,Cleaning Services                       ,585.74,24/03/2016,R,BIRKIN CLEANING SERVICES LTD  
354,Cultural Env Reg&Plan Services,Library DoS not split,Raynes Park Library,L84083,Premises Related Expenditure  ,Cleaning and Domestic Supplies,BH03,Cleaning Services                       ,585.74,01/03/2016,R,BIRKIN CLEANING SERVICES LTD  
355,Adult Social Care,OP 65 & Over Day Care,Pollards Hill Day Centre,E02270,Premises Related Expenditure  ,Cleaning and Domestic Supplies,BH03,Cleaning Services                       ,674.17,01/03/2016,R,BIRKIN CLEANING SERVICES LTD  
356,Adult Social Care,OP 65 & Over Day Care,Pollards Hill Day Centre,E02270,Premises Related Expenditure  ,Cleaning and Domestic Supplies,BH03,Cleaning Services                       ,674.17,24/03/2016,R,BIRKIN CLEANING SERVICES LTD  
357,Childrens & Education Services,Nursery schools,E.Years-Intergenerational Cntr,K05416,Premises Related Expenditure  ,Cleaning and Domestic Supplies,BH03,Cleaning Services                       ,811.96,01/03/2016,R,BIRKIN CLEANING SERVICES LTD  
358,Childrens & Education Services,Nursery schools,E.Years-Intergenerational Cntr,K05416,Premises Related Expenditure  ,Cleaning and Domestic Supplies,BH03,Cleaning Services                       ,811.96,24/03/2016,R,BIRKIN CLEANING SERVICES LTD  
359,Adult Social Care,OP 65 & Over Day Care,Pollards Hill Day Centre,E02270,Premises Related Expenditure  ,Cleaning and Domestic Supplies,BH03,Cleaning Services                       ,835.04,24/03/2016,R,BIRKIN CLEANING SERVICES LTD  
360,Adult Social Care,OP 65 & Over Day Care,Pollards Hill Day Centre,E02270,Premises Related Expenditure  ,Cleaning and Domestic Supplies,BH03,Cleaning Services                       ,835.04,01/03/2016,R,BIRKIN CLEANING SERVICES LTD  
361,Childrens & Education Services,GENERATED ACCOUNT,Mitcham MAT (Premises),K05412,Premises Related Expenditure  ,Cleaning and Domestic Supplies,BH03,Cleaning Services                       ,900.64,24/03/2016,R,BIRKIN CLEANING SERVICES LTD  
362,Cultural Env Reg&Plan Services,Library DoS not split,MITCHAM LIBRARY,L83071,Premises Related Expenditure  ,Cleaning and Domestic Supplies,BH03,Cleaning Services                       ,992.31,01/03/2016,R,BIRKIN CLEANING SERVICES LTD  
363,Cultural Env Reg&Plan Services,Library DoS not split,MITCHAM LIBRARY,L83071,Premises Related Expenditure  ,Cleaning and Domestic Supplies,BH03,Cleaning Services                       ,992.31,24/03/2016,R,BIRKIN CLEANING SERVICES LTD  
364,Cultural Env Reg&Plan Services,Library DoS not split,Morden Library,L84081,Premises Related Expenditure  ,Cleaning and Domestic Supplies,BH03,Cleaning Services                       ,995.41,01/03/2016,R,BIRKIN CLEANING SERVICES LTD  
365,Cultural Env Reg&Plan Services,Library DoS not split,Morden Library,L84081,Premises Related Expenditure  ,Cleaning and Domestic Supplies,BH03,Cleaning Services                       ,995.41,24/03/2016,R,BIRKIN CLEANING SERVICES LTD  
366,Cultural Env Reg&Plan Services,Library DoS not split,Pollards Hill Library,L83073,Premises Related Expenditure  ,Cleaning and Domestic Supplies,BH03,Cleaning Services                       ,"1,034.40",24/03/2016,R,BIRKIN CLEANING SERVICES LTD  
367,,,LD High Path DC                         ,WPKB02,Premises Related Expenditure  ,Cleaning and Domestic Supplies,BH03,Cleaning Services                       ,"1,036.34",01/03/2016,R,BIRKIN CLEANING SERVICES LTD  
368,,,LD High Path DC                         ,WPKB02,Premises Related Expenditure  ,Cleaning and Domestic Supplies,BH03,Cleaning Services                       ,"1,036.34",24/03/2016,R,BIRKIN CLEANING SERVICES LTD  
369,Cultural Env Reg&Plan Services,Library DoS not split,Wimbledon Library,L85091,Premises Related Expenditure  ,Cleaning and Domestic Supplies,BH03,Cleaning Services                       ,"1,084.04",01/03/2016,R,BIRKIN CLEANING SERVICES LTD  
370,Cultural Env Reg&Plan Services,Library DoS not split,Pollards Hill Library,L83073,Premises Related Expenditure  ,Cleaning and Domestic Supplies,BH03,Cleaning Services                       ,"1,148.60",01/03/2016,R,BIRKIN CLEANING SERVICES LTD  
371,Adult Social Care,PS u65 Day Care,PS All Saints DC,W2JC00,Premises Related Expenditure  ,Cleaning and Domestic Supplies,BH03,Cleaning Services                       ,"1,172.11",24/03/2016,R,BIRKIN CLEANING SERVICES LTD  
372,Adult Social Care,PS u65 Day Care,PS All Saints DC,W2JC00,Premises Related Expenditure  ,Cleaning and Domestic Supplies,BH03,Cleaning Services                       ,"1,172.11",01/03/2016,R,BIRKIN CLEANING SERVICES LTD  
373,Childrens & Education Services,GENERATED ACCOUNT,Morden MAT,K05413,Premises Related Expenditure  ,Cleaning and Domestic Supplies,BH03,Cleaning Services                       ,"1,212.14",01/03/2016,R,BIRKIN CLEANING SERVICES LTD  
374,Childrens & Education Services,GENERATED ACCOUNT,Morden MAT,K05413,Premises Related Expenditure  ,Cleaning and Domestic Supplies,BH03,Cleaning Services                       ,"1,212.14",24/03/2016,R,BIRKIN CLEANING SERVICES LTD  
375,Adult Social Care,OP 65 & Over Day Care,Pollards Hill Day Centre,E02270,Premises Related Expenditure  ,Cleaning and Domestic Supplies,BH03,Cleaning Services                       ,"1,222.20",24/03/2016,R,BIRKIN CLEANING SERVICES LTD  
376,Adult Social Care,OP 65 & Over Day Care,Pollards Hill Day Centre,E02270,Premises Related Expenditure  ,Cleaning and Domestic Supplies,BH03,Cleaning Services                       ,"1,222.20",01/03/2016,R,BIRKIN CLEANING SERVICES LTD  
377,Adult Social Care,OP 65 & Over Day Care,Pollards Hill Day Centre,E02270,Premises Related Expenditure  ,Cleaning and Domestic Supplies,BH03,Cleaning Services                       ,"1,239.08",01/03/2016,R,BIRKIN CLEANING SERVICES LTD  
378,Adult Social Care,OP 65 & Over Day Care,Pollards Hill Day Centre,E02270,Premises Related Expenditure  ,Cleaning and Domestic Supplies,BH03,Cleaning Services                       ,"1,239.08",24/03/2016,R,BIRKIN CLEANING SERVICES LTD  
379,Childrens & Education Services,GENERATED ACCOUNT,Mitcham MAT (Premises),K05412,Premises Related Expenditure  ,Cleaning and Domestic Supplies,BH03,Cleaning Services                       ,"1,321.36",01/03/2016,R,BIRKIN CLEANING SERVICES LTD  
380,Cultural Env Reg&Plan Services,Library DoS not split,Wimbledon Library,L85091,Premises Related Expenditure  ,Cleaning and Domestic Supplies,BH03,Cleaning Services                       ,"1,370.76",24/03/2016,R,BIRKIN CLEANING SERVICES LTD  
381,,,LD JMC                                  ,WPKB00,Premises Related Expenditure  ,Cleaning and Domestic Supplies,BH03,Cleaning Services                       ,"1,411.07",01/03/2016,R,BIRKIN CLEANING SERVICES LTD  
382,,,LD JMC                                  ,WPKB00,Premises Related Expenditure  ,Cleaning and Domestic Supplies,BH03,Cleaning Services                       ,"1,411.07",24/03/2016,R,BIRKIN CLEANING SERVICES LTD  
383,Adult Social Care,OP 65 & Over Day Care,Pollards Hill Day Centre,E02270,Premises Related Expenditure  ,Cleaning and Domestic Supplies,BH03,Cleaning Services                       ,"1,421.80",01/03/2016,R,BIRKIN CLEANING SERVICES LTD  
384,Adult Social Care,OP 65 & Over Day Care,Pollards Hill Day Centre,E02270,Premises Related Expenditure  ,Cleaning and Domestic Supplies,BH03,Cleaning Services                       ,"1,421.80",24/03/2016,R,BIRKIN CLEANING SERVICES LTD  
385,Adult Social Care,OP 65 & Over Day Care,Pollards Hill Day Centre,E02270,Premises Related Expenditure  ,Cleaning and Domestic Supplies,BH03,Cleaning Services                       ,"1,492.52",24/03/2016,R,BIRKIN CLEANING SERVICES LTD  
386,Adult Social Care,OP 65 & Over Day Care,Pollards Hill Day Centre,E02270,Premises Related Expenditure  ,Cleaning and Domestic Supplies,BH03,Cleaning Services                       ,"1,492.52",01/03/2016,R,BIRKIN CLEANING SERVICES LTD  
387,Adult Social Care,OP 65 & Over Day Care,Pollards Hill Day Centre,E02270,Premises Related Expenditure  ,Cleaning and Domestic Supplies,BH03,Cleaning Services                       ,"1,540.02",01/03/2016,R,BIRKIN CLEANING SERVICES LTD  
388,Adult Social Care,OP 65 & Over Day Care,Pollards Hill Day Centre,E02270,Premises Related Expenditure  ,Cleaning and Domestic Supplies,BH03,Cleaning Services                       ,"1,540.02",24/03/2016,R,BIRKIN CLEANING SERVICES LTD  
389,Adult Social Care,OP 65 & Over Day Care,Pollards Hill Day Centre,E02270,Premises Related Expenditure  ,Cleaning and Domestic Supplies,BH03,Cleaning Services                       ,"1,673.61",01/03/2016,R,BIRKIN CLEANING SERVICES LTD  
390,Adult Social Care,OP 65 & Over Day Care,Pollards Hill Day Centre,E02270,Premises Related Expenditure  ,Cleaning and Domestic Supplies,BH03,Cleaning Services                       ,"1,673.61",24/03/2016,R,BIRKIN CLEANING SERVICES LTD  
391,Central Services,Grants - Voluntary Groups,Vestry Hall,G19290,Premises Related Expenditure  ,Cleaning and Domestic Supplies,BH03,Cleaning Services                       ,"1,849.23",24/03/2016,R,BIRKIN CLEANING SERVICES LTD  
392,Central Services,Grants - Voluntary Groups,Vestry Hall,G19290,Premises Related Expenditure  ,Cleaning and Domestic Supplies,BH03,Cleaning Services                       ,"1,849.23",01/03/2016,R,BIRKIN CLEANING SERVICES LTD  
393,Adult Social Care,OP 65 & Over Day Care,Pollards Hill Day Centre,E02270,Premises Related Expenditure  ,Cleaning and Domestic Supplies,BH03,Cleaning Services                       ,"3,093.61",24/03/2016,R,BIRKIN CLEANING SERVICES LTD  
394,Adult Social Care,OP 65 & Over Day Care,Pollards Hill Day Centre,E02270,Premises Related Expenditure  ,Cleaning and Domestic Supplies,BH03,Cleaning Services                       ,"3,093.61",01/03/2016,R,BIRKIN CLEANING SERVICES LTD  
395,Adult Social Care,OP 65 & Over Day Care,Pollards Hill Day Centre,E02270,Premises Related Expenditure  ,Cleaning and Domestic Supplies,BH03,Cleaning Services                       ,"6,596.17",01/03/2016,R,BIRKIN CLEANING SERVICES LTD  
396,Adult Social Care,OP 65 & Over Day Care,Pollards Hill Day Centre,E02270,Premises Related Expenditure  ,Cleaning and Domestic Supplies,BH03,Cleaning Services                       ,"6,596.17",24/03/2016,R,BIRKIN CLEANING SERVICES LTD  
397,Childrens & Education Services,Support for SEN Pupils,Non-Delegated Statements,K90024,Third Party Payments          ,Other Local Authorities       ,EB48,OLA PAYMENTS-STATEMENTS                 ,"9,961.00",15/03/2016,R,BISHOPS THOMAS GRANT SCHOOL   
398,Childrens & Education Services,Support for SEN Pupils,Non-Delegated Statements,K90024,Third Party Payments          ,Other Establishments          ,EG01,Alternative SEN Provision               ,"1,575.00",21/03/2016,R,BLESSED LTD                   
399,Childrens & Education Services,Support for SEN Pupils,Non-Delegated Statements,K90024,Third Party Payments          ,Other Establishments          ,EG01,Alternative SEN Provision               ,"5,775.00",09/12/2015,R,BLESSED LTD                   
400,Childrens & Education Services,Nursery schools,EARLY YEARS NURSERY GRANTS,K90042,Supplies & Services           ,Grants and Subscriptions      ,DJ58,Nursery Grant Payment-3yr olds          ,777.60,30/03/2016,R,BLOOMING YEARS DAY NURSERY    
401,Childrens & Education Services,Support for SEN Pupils,Non-Delegated Statements,K90024,Third Party Payments          ,Other Establishments          ,EG50,Ind Day Schs Payments                   ,"-15,500.00",01/07/2015,R,BLOSSOM HOUSE SCHOOL          
402,Childrens & Education Services,Support for SEN Pupils,Non-Delegated Statements,K90024,Third Party Payments          ,Other Establishments          ,EG50,Ind Day Schs Payments                   ,"9,166.67",01/12/2015,R,BLOSSOM HOUSE SCHOOL          
403,Childrens & Education Services,Support for SEN Pupils,Non-Delegated Statements,K90024,Third Party Payments          ,Other Establishments          ,EG50,Ind Day Schs Payments                   ,"10,100.00",01/12/2015,R,BLOSSOM HOUSE SCHOOL          
404,Childrens & Education Services,Support for SEN Pupils,Non-Delegated Statements,K90024,Third Party Payments          ,Other Establishments          ,EG50,Ind Day Schs Payments                   ,"10,366.67",01/12/2015,R,BLOSSOM HOUSE SCHOOL          
405,Childrens & Education Services,Other - Other Ch & Fam,SD Corporate Parenting,W1BF03,Supplies & Services           ,Services                      ,DF04,Miscellaneous Expenses                  ,500.00,09/03/2016,R,BOVINGDONS CATERING LTD       
406,Childrens & Education Services,Other - Other Ch & Fam,SD Corporate Parenting,W1BF03,Supplies & Services           ,Services                      ,DF04,Miscellaneous Expenses                  ,"1,200.00",09/03/2016,R,BOVINGDONS CATERING LTD       
407,Childrens & Education Services,Other - Other Ch & Fam,SD Corporate Parenting,W1BF03,Supplies & Services           ,Services                      ,DF04,Miscellaneous Expenses                  ,"1,300.00",29/03/2016,R,BOVINGDONS CATERING LTD       
408,Central Services,SupS Health & Safety,Learning and Development,B06146,Employees                     ,Indirect Employee Expenses    ,AB57,EXTERNAL TRAINING COSTS                 ,"1,177.50",17/03/2016,R,BPP PROFESSIONAL EDUCATION    
409,Adult Social Care,PS u65 Residentl Care Placemnt,PD EAST TEAM-Residential,W2JJ55,Third Party Payments          ,Private Contractors           ,EH01,Miscellaneous Agency Services           ,"1,559.95",15/02/2015,R,BRAMBLEDOWN CARE HOME         
410,Adult Social Care,PS u65 Residentl Care Placemnt,PD EAST TEAM-Residential,W2JJ55,Third Party Payments          ,Private Contractors           ,EH01,Miscellaneous Agency Services           ,"1,559.95",15/02/2015,R,BRAMBLEDOWN CARE HOME         
411,Adult Social Care,PS u65 Residentl Care Placemnt,PD EAST TEAM-Residential,W2JJ55,Third Party Payments          ,Private Contractors           ,EH01,Miscellaneous Agency Services           ,"1,559.95",15/02/2015,R,BRAMBLEDOWN CARE HOME         
412,Adult Social Care,PS u65 Residentl Care Placemnt,PD EAST TEAM-Residential,W2JJ55,Third Party Payments          ,Private Contractors           ,EH01,Miscellaneous Agency Services           ,"1,559.95",15/02/2015,R,BRAMBLEDOWN CARE HOME         
413,Adult Social Care,PS u65 Residentl Care Placemnt,PD EAST TEAM-Residential,W2JJ55,Third Party Payments          ,Private Contractors           ,EH01,Miscellaneous Agency Services           ,"1,588.50",14/03/2016,R,BRAMBLEDOWN CARE HOME         
414,Adult Social Care,PS u65 Residentl Care Placemnt,PD EAST TEAM-Residential,W2JJ55,Third Party Payments          ,Private Contractors           ,EH01,Miscellaneous Agency Services           ,"1,588.50",14/03/2016,R,BRAMBLEDOWN CARE HOME         
415,Adult Social Care,PS u65 Residentl Care Placemnt,PD EAST TEAM-Residential,W2JJ55,Third Party Payments          ,Private Contractors           ,EH01,Miscellaneous Agency Services           ,"1,588.50",14/03/2016,R,BRAMBLEDOWN CARE HOME         
416,Adult Social Care,PS u65 Residentl Care Placemnt,PD EAST TEAM-Residential,W2JJ55,Third Party Payments          ,Private Contractors           ,EH01,Miscellaneous Agency Services           ,"1,588.50",14/03/2016,R,BRAMBLEDOWN CARE HOME         
417,Cultural Env Reg&Plan Services,Mgt & Support (Env),SLWP (rechargeable)                     ,G00905,Supplies & Services           ,Services                      ,DF03,Consultants                             ,"1,434.65",29/02/2016,R,BRAND NARRATIVE LIMITED       
418,Childrens & Education Services,Services for Under 8s,CS Family Support at Bond Road,W1CD00,Supplies & Services           ,Services                      ,DF03,Consultants                             ,"7,800.00",24/03/2016,R,BRAY VALLEY ASSOCIATES        
419,Central Services,SupS Facilities,Facilities,E02231,Premises Related Expenditure  ,RepairsAlterations&MtceOfBldgs,BA02,ENERGY CONSERVATION                     ,775.00,26/02/2016,R,BRIAR ASSOCIATES              
420,Cultural Env Reg&Plan Services,Library DoS not split,Media Fund,L83081,Supplies & Services           ,Grants and Subscriptions      ,DJ04,Subscriptions                           ,"7,475.00",04/03/2016,R,BRIDGEAL LIBRARIES LTD        
421,Childrens & Education Services,Fostering Services,ART Independent Agency Foster,W1DE46,Supplies & Services           ,Services                      ,DF53,Task Based Fostering                    ,-651.42,01/02/2016,R,BRIGHTER FUTURES FOSTER CARE  
422,Childrens & Education Services,Fostering Services,ART Independent Agency Foster,W1DE46,Supplies & Services           ,Services                      ,DF53,Task Based Fostering                    ,760.00,01/02/2016,R,BRIGHTER FUTURES FOSTER CARE  
423,Childrens & Education Services,Fostering Services,ART Independent Agency Foster,W1DE46,Supplies & Services           ,Services                      ,DF53,Task Based Fostering                    ,760.00,01/02/2016,R,BRIGHTER FUTURES FOSTER CARE  
424,Childrens & Education Services,Fostering Services,ART Independent Agency Foster,W1DE46,Supplies & Services           ,Services                      ,DF53,Task Based Fostering                    ,760.00,01/02/2016,R,BRIGHTER FUTURES FOSTER CARE  
425,Childrens & Education Services,Fostering Services,ART Independent Agency Foster,W1DE46,Supplies & Services           ,Services                      ,DF53,Task Based Fostering                    ,760.00,01/02/2016,R,BRIGHTER FUTURES FOSTER CARE  
426,Childrens & Education Services,Fostering Services,ART Independent Agency Foster,W1DE46,Supplies & Services           ,Services                      ,DF53,Task Based Fostering                    ,760.00,01/02/2016,R,BRIGHTER FUTURES FOSTER CARE  
427,Adult Social Care,LD u65 Residentl Care Placemnt,LD Residential Care External,W2KB55,Third Party Payments          ,Private Contractors           ,EH01,Miscellaneous Agency Services           ,949.51,18/03/2016,R,BRIGSTOCK HOUSE               
428,Adult Social Care,LD u65 Residentl Care Placemnt,LD Residential Care External,W2KB55,Third Party Payments          ,Private Contractors           ,EH01,Miscellaneous Agency Services           ,949.51,18/03/2016,R,BRIGSTOCK HOUSE               
429,Adult Social Care,LD u65 Residentl Care Placemnt,LD Residential Care External,W2KB55,Third Party Payments          ,Private Contractors           ,EH01,Miscellaneous Agency Services           ,949.51,18/03/2016,R,BRIGSTOCK HOUSE               
430,Adult Social Care,LD u65 Residentl Care Placemnt,LD Residential Care External,W2KB55,Third Party Payments          ,Private Contractors           ,EH01,Miscellaneous Agency Services           ,949.51,18/03/2016,R,BRIGSTOCK HOUSE               
431,Adult Social Care,OP 65&Over NursingCarePlacemts,OP East - Nursing Care,W2LH53,Third Party Payments          ,Private Contractors           ,EH01,Miscellaneous Agency Services           ,693.94,21/03/2016,R,BRITISH HOME                  
432,Adult Social Care,OP 65&Over NursingCarePlacemts,OP East - Nursing Care,W2LH53,Third Party Payments          ,Private Contractors           ,EH01,Miscellaneous Agency Services           ,693.94,21/03/2016,R,BRITISH HOME                  
433,Adult Social Care,OP 65&Over NursingCarePlacemts,OP East - Nursing Care,W2LH53,Third Party Payments          ,Private Contractors           ,EH01,Miscellaneous Agency Services           ,693.94,21/03/2016,R,BRITISH HOME                  
434,Adult Social Care,OP 65&Over NursingCarePlacemts,OP East - Nursing Care,W2LH53,Third Party Payments          ,Private Contractors           ,EH01,Miscellaneous Agency Services           ,693.94,21/03/2016,R,BRITISH HOME                  
435,Central Services,SupS IT,Operations & Telecomms,E14367,Supplies & Services           ,Comms and Computing           ,DG54,Corporate Telephones                    ,"42,169.57",27/02/2016,R,BRITISH TELECOMMUNICATIONS PLC
436,Adult Social Care,LD u65 Residentl Care Placemnt,LD Residential Care External,W2KB55,Third Party Payments          ,Private Contractors           ,EH01,Miscellaneous Agency Services           ,"1,420.00",21/03/2016,R,BROADHAM CARE LTD             
437,Adult Social Care,LD u65 Residentl Care Placemnt,LD Residential Care External,W2KB55,Third Party Payments          ,Private Contractors           ,EH01,Miscellaneous Agency Services           ,"1,420.00",21/03/2016,R,BROADHAM CARE LTD             
438,Adult Social Care,LD u65 Residentl Care Placemnt,LD Residential Care External,W2KB55,Third Party Payments          ,Private Contractors           ,EH01,Miscellaneous Agency Services           ,"1,420.00",21/03/2016,R,BROADHAM CARE LTD             
439,Adult Social Care,LD u65 Residentl Care Placemnt,LD Residential Care External,W2KB55,Third Party Payments          ,Private Contractors           ,EH01,Miscellaneous Agency Services           ,"1,420.00",21/03/2016,R,BROADHAM CARE LTD             
440,Adult Social Care,LD u65 Residentl Care Placemnt,LD Residential Care External,W2KB55,Third Party Payments          ,Private Contractors           ,EH01,Miscellaneous Agency Services           ,"1,681.31",21/03/2016,R,BROADHAM CARE LTD             
441,Adult Social Care,LD u65 Residentl Care Placemnt,LD Residential Care External,W2KB55,Third Party Payments          ,Private Contractors           ,EH01,Miscellaneous Agency Services           ,"1,681.31",21/03/2016,R,BROADHAM CARE LTD             
442,Adult Social Care,LD u65 Residentl Care Placemnt,LD Residential Care External,W2KB55,Third Party Payments          ,Private Contractors           ,EH01,Miscellaneous Agency Services           ,"1,681.31",21/03/2016,R,BROADHAM CARE LTD             
443,Adult Social Care,LD u65 Residentl Care Placemnt,LD Residential Care External,W2KB55,Third Party Payments          ,Private Contractors           ,EH01,Miscellaneous Agency Services           ,"1,681.31",21/03/2016,R,BROADHAM CARE LTD             
444,Adult Social Care,OP 65&Over NursingCarePlacemts,OP East - Nursing Care,W2LH53,Third Party Payments          ,Private Contractors           ,EH01,Miscellaneous Agency Services           ,687.17,01/03/2016,R,BROADLANDS NURSING HOME       
445,Adult Social Care,OP 65&Over NursingCarePlacemts,OP East - Nursing Care,W2LH53,Third Party Payments          ,Private Contractors           ,EH01,Miscellaneous Agency Services           ,687.17,01/03/2016,R,BROADLANDS NURSING HOME       
446,Adult Social Care,OP 65&Over NursingCarePlacemts,OP East - Nursing Care,W2LH53,Third Party Payments          ,Private Contractors           ,EH01,Miscellaneous Agency Services           ,687.17,01/03/2016,R,BROADLANDS NURSING HOME       
447,Adult Social Care,OP 65&Over NursingCarePlacemts,OP East - Nursing Care,W2LH53,Third Party Payments          ,Private Contractors           ,EH01,Miscellaneous Agency Services           ,687.17,01/03/2016,R,BROADLANDS NURSING HOME       
448,Adult Social Care,MH u65 Residentl Care Placemnt,MH ResidentialCare Ext - Wim,W2HC55,Third Party Payments          ,Private Contractors           ,EH01,Miscellaneous Agency Services           ,-780.00,01/03/2016,R,BROOKDALE HEALTH CARE         
449,Adult Social Care,MH u65 Home Care,MH Home Care External -Morden,W2HB49,Third Party Payments          ,Private Contractors           ,EH01,Miscellaneous Agency Services           ,524.28,01/03/2016,R,BROOKDALE HEALTH CARE         
450,Adult Social Care,MH u65 Home Care,MH Home Care External -Morden,W2HB49,Third Party Payments          ,Private Contractors           ,EH01,Miscellaneous Agency Services           ,524.28,01/03/2016,R,BROOKDALE HEALTH CARE         
451,Adult Social Care,MH u65 Home Care,MH Home Care External -Morden,W2HB49,Third Party Payments          ,Private Contractors           ,EH01,Miscellaneous Agency Services           ,524.28,01/03/2016,R,BROOKDALE HEALTH CARE         
452,Adult Social Care,MH u65 Home Care,MH Home Care External -Morden,W2HB49,Third Party Payments          ,Private Contractors           ,EH01,Miscellaneous Agency Services           ,524.28,01/04/2016,R,BROOKDALE HEALTH CARE         
453,Adult Social Care,MH u65 Home Care,MH Home Care External -Morden,W2HB49,Third Party Payments          ,Private Contractors           ,EH01,Miscellaneous Agency Services           ,524.28,01/04/2016,R,BROOKDALE HEALTH CARE         
454,Adult Social Care,MH u65 Home Care,MH Home Care External -Morden,W2HB49,Third Party Payments          ,Private Contractors           ,EH01,Miscellaneous Agency Services           ,524.28,01/04/2016,R,BROOKDALE HEALTH CARE         
455,Adult Social Care,MH u65 Home Care,MH Home Care External -Morden,W2HB49,Third Party Payments          ,Private Contractors           ,EH01,Miscellaneous Agency Services           ,524.28,01/04/2016,R,BROOKDALE HEALTH CARE         
456,Adult Social Care,MH u65 Home Care,MH Home Care External -Morden,W2HB49,Third Party Payments          ,Private Contractors           ,EH01,Miscellaneous Agency Services           ,524.28,01/03/2016,R,BROOKDALE HEALTH CARE         
457,Adult Social Care,MH u65 Residentl Care Placemnt,MH ResidentialCare Ext - Wim,W2HC55,Third Party Payments          ,Private Contractors           ,EH01,Miscellaneous Agency Services           ,780.00,01/04/2016,R,BROOKDALE HEALTH CARE         
458,Adult Social Care,MH u65 Residentl Care Placemnt,MH ResidentialCare Ext - Wim,W2HC55,Third Party Payments          ,Private Contractors           ,EH01,Miscellaneous Agency Services           ,"1,560.00",01/03/2016,R,BROOKDALE HEALTH CARE         
459,Adult Social Care,MH u65 Residentl Care Placemnt,MH ResidentialCare Ext - Wim,W2HC55,Third Party Payments          ,Private Contractors           ,EH01,Miscellaneous Agency Services           ,"1,820.00",01/04/2016,R,BROOKDALE HEALTH CARE         
460,Adult Social Care,MH u65 Residentl Care Placemnt,MH ResidentialCare Ext - Wim,W2HC55,Third Party Payments          ,Private Contractors           ,EH01,Miscellaneous Agency Services           ,"1,820.00",01/03/2016,R,BROOKDALE HEALTH CARE         
461,Adult Social Care,MH u65 Residentl Care Placemnt,MH ResidentialCare Ext - Wim,W2HC55,Third Party Payments          ,Private Contractors           ,EH01,Miscellaneous Agency Services           ,"1,820.00",01/04/2016,R,BROOKDALE HEALTH CARE         
462,Adult Social Care,MH u65 Residentl Care Placemnt,MH ResidentialCare Ext - Wim,W2HC55,Third Party Payments          ,Private Contractors           ,EH01,Miscellaneous Agency Services           ,"1,820.00",01/03/2016,R,BROOKDALE HEALTH CARE         
463,Adult Social Care,MH u65 Residentl Care Placemnt,MH ResidentialCare Ext - Wim,W2HC55,Third Party Payments          ,Private Contractors           ,EH01,Miscellaneous Agency Services           ,"1,820.00",01/03/2016,R,BROOKDALE HEALTH CARE         
464,Adult Social Care,MH u65 Residentl Care Placemnt,MH ResidentialCare Ext - Wim,W2HC55,Third Party Payments          ,Private Contractors           ,EH01,Miscellaneous Agency Services           ,"1,820.00",01/04/2016,R,BROOKDALE HEALTH CARE         
465,Adult Social Care,MH u65 Residentl Care Placemnt,MH ResidentialCare Ext - Wim,W2HC55,Third Party Payments          ,Private Contractors           ,EH01,Miscellaneous Agency Services           ,"1,820.00",01/03/2016,R,BROOKDALE HEALTH CARE         
466,Adult Social Care,MH u65 Residentl Care Placemnt,MH ResidentialCare Ext - Wim,W2HC55,Third Party Payments          ,Private Contractors           ,EH01,Miscellaneous Agency Services           ,"1,820.00",01/04/2016,R,BROOKDALE HEALTH CARE         
467,Childrens & Education Services,Support for SEN Pupils,Non-Maintained Post 16 SEN              ,K90052,Third Party Payments          ,Other Establishments          ,EG54,FE Colleges                             ,"4,248.00",31/07/2015,R,BROOKLANDS COLLEGE            
468,CS -Oth Operating Inc & Expend,T/A Vehicle Maintenance etc,Transport-Contract Hire,J01374,Transport Related Expenditure ,Contract Hire and Op Leasing  ,CC64,CSF - SEN CABS (RK02)                   ,"1,020.00",29/02/2016,R,BRUNSWICK CARS LTD            
469,CS -Oth Operating Inc & Expend,T/A Vehicle Maintenance etc,Transport-Contract Hire,J01374,Transport Related Expenditure ,Contract Hire and Op Leasing  ,CC64,CSF - SEN CABS (RK02)                   ,"1,050.00",29/02/2016,R,BRUNSWICK CARS LTD            
470,CS -Oth Operating Inc & Expend,T/A Vehicle Maintenance etc,Transport-Contract Hire,J01374,Transport Related Expenditure ,Contract Hire and Op Leasing  ,CC64,CSF - SEN CABS (RK02)                   ,"1,056.00",29/02/2016,R,BRUNSWICK CARS LTD            
471,CS -Oth Operating Inc & Expend,T/A Vehicle Maintenance etc,Transport-Contract Hire,J01374,Transport Related Expenditure ,Contract Hire and Op Leasing  ,CC64,CSF - SEN CABS (RK02)                   ,"1,104.00",29/02/2016,R,BRUNSWICK CARS LTD            
472,CS -Oth Operating Inc & Expend,T/A Vehicle Maintenance etc,Transport-Contract Hire,J01374,Transport Related Expenditure ,Contract Hire and Op Leasing  ,CC64,CSF - SEN CABS (RK02)                   ,"1,184.00",29/02/2016,R,BRUNSWICK CARS LTD            
473,CS -Oth Operating Inc & Expend,T/A Vehicle Maintenance etc,Transport-Contract Hire,J01374,Transport Related Expenditure ,Contract Hire and Op Leasing  ,CC64,CSF - SEN CABS (RK02)                   ,"1,232.00",29/02/2016,R,BRUNSWICK CARS LTD            
474,CS -Oth Operating Inc & Expend,T/A Vehicle Maintenance etc,Transport-Contract Hire,J01374,Transport Related Expenditure ,Contract Hire and Op Leasing  ,CC67,C&H - ADULTS CABS (RK08)                ,"1,258.00",29/02/2016,R,BRUNSWICK CARS LTD            
475,CS -Oth Operating Inc & Expend,T/A Vehicle Maintenance etc,Transport-Contract Hire,J01374,Transport Related Expenditure ,Contract Hire and Op Leasing  ,CC64,CSF - SEN CABS (RK02)                   ,"1,300.00",29/02/2016,R,BRUNSWICK CARS LTD            
476,CS -Oth Operating Inc & Expend,T/A Vehicle Maintenance etc,Transport-Contract Hire,J01374,Transport Related Expenditure ,Contract Hire and Op Leasing  ,CC64,CSF - SEN CABS (RK02)                   ,"1,395.00",29/02/2016,R,BRUNSWICK CARS LTD            
477,CS -Oth Operating Inc & Expend,T/A Vehicle Maintenance etc,Transport-Contract Hire,J01374,Transport Related Expenditure ,Contract Hire and Op Leasing  ,CC64,CSF - SEN CABS (RK02)                   ,"1,440.00",29/02/2016,R,BRUNSWICK CARS LTD            
478,CS -Oth Operating Inc & Expend,T/A Vehicle Maintenance etc,Transport-Contract Hire,J01374,Transport Related Expenditure ,Contract Hire and Op Leasing  ,CC64,CSF - SEN CABS (RK02)                   ,"1,488.00",29/02/2016,R,BRUNSWICK CARS LTD            
479,CS -Oth Operating Inc & Expend,T/A Vehicle Maintenance etc,Transport-Contract Hire,J01374,Transport Related Expenditure ,Contract Hire and Op Leasing  ,CC64,CSF - SEN CABS (RK02)                   ,"1,512.00",29/02/2016,R,BRUNSWICK CARS LTD            
480,CS -Oth Operating Inc & Expend,T/A Vehicle Maintenance etc,Transport-Contract Hire,J01374,Transport Related Expenditure ,Contract Hire and Op Leasing  ,CC64,CSF - SEN CABS (RK02)                   ,"1,568.00",29/02/2016,R,BRUNSWICK CARS LTD            
481,CS -Oth Operating Inc & Expend,T/A Vehicle Maintenance etc,Transport-Contract Hire,J01374,Transport Related Expenditure ,Contract Hire and Op Leasing  ,CC64,CSF - SEN CABS (RK02)                   ,"1,624.00",29/02/2016,R,BRUNSWICK CARS LTD            
482,CS -Oth Operating Inc & Expend,T/A Vehicle Maintenance etc,Transport-Contract Hire,J01374,Transport Related Expenditure ,Contract Hire and Op Leasing  ,CC64,CSF - SEN CABS (RK02)                   ,"1,680.00",29/02/2016,R,BRUNSWICK CARS LTD            
483,CS -Oth Operating Inc & Expend,T/A Vehicle Maintenance etc,Transport-Contract Hire,J01374,Transport Related Expenditure ,Contract Hire and Op Leasing  ,CC64,CSF - SEN CABS (RK02)                   ,"1,725.00",29/02/2016,R,BRUNSWICK CARS LTD            
484,CS -Oth Operating Inc & Expend,T/A Vehicle Maintenance etc,Transport-Contract Hire,J01374,Transport Related Expenditure ,Contract Hire and Op Leasing  ,CC64,CSF - SEN CABS (RK02)                   ,"2,128.00",29/02/2016,R,BRUNSWICK CARS LTD            
485,CS -Oth Operating Inc & Expend,T/A Vehicle Maintenance etc,Transport-Contract Hire,J01374,Transport Related Expenditure ,Contract Hire and Op Leasing  ,CC64,CSF - SEN CABS (RK02)                   ,"2,224.00",29/02/2016,R,BRUNSWICK CARS LTD            
486,CS -Oth Operating Inc & Expend,T/A Vehicle Maintenance etc,Transport-Contract Hire,J01374,Transport Related Expenditure ,Contract Hire and Op Leasing  ,CC64,CSF - SEN CABS (RK02)                   ,"2,288.00",29/02/2016,R,BRUNSWICK CARS LTD            
487,CS -Oth Operating Inc & Expend,T/A Vehicle Maintenance etc,Transport-Contract Hire,J01374,Transport Related Expenditure ,Contract Hire and Op Leasing  ,CC64,CSF - SEN CABS (RK02)                   ,"2,752.00",29/02/2016,R,BRUNSWICK CARS LTD            
488,CS -Oth Operating Inc & Expend,T/A Vehicle Maintenance etc,Transport-Contract Hire,J01374,Transport Related Expenditure ,Contract Hire and Op Leasing  ,CC64,CSF - SEN CABS (RK02)                   ,"3,152.00",29/02/2016,R,BRUNSWICK CARS LTD            
489,,,Mitcham Major schemes                   ,CE006FD,New Construction Conversion and Renovation,,B4,Contractor - Site works                 ,"2,107.20",17/03/2016,C,BT OPENREACH                  
490,Central Services,SupS Health & Safety,Learning and Development,B06146,Employees                     ,Indirect Employee Expenses    ,AB57,EXTERNAL TRAINING COSTS                 ,"1,850.00",24/02/2016,R,BTFI LIMITED                  
491,Childrens & Education Services,Nursery schools,EARLY YEARS NURSERY GRANTS,K90042,Supplies & Services           ,Grants and Subscriptions      ,DJ58,Nursery Grant Payment-3yr olds          ,"1,302.84",30/03/2016,R,BUILDING BLOCKS KIDS CLUB PLUS
492,Childrens & Education Services,Nursery schools,EARLY YEARS NURSERY GRANTS,K90042,Supplies & Services           ,Grants and Subscriptions      ,DJ57,Nursery Grant Payment-4yr olds          ,508.86,30/03/2016,R,BUMPSA-DAISIES NURSERY        
493,Adult Social Care,OP 65&Over NursingCarePlacemts,OP R/Park - Nursing Care,W2LR53,Third Party Payments          ,Private Contractors           ,EH01,Miscellaneous Agency Services           ,-647.00,28/10/2015,R,BUPA CARE HOMES               
494,Adult Social Care,OP 65&Over Resi Care Placement,OP East - Residential Care Ext,W2LH55,Third Party Payments          ,Private Contractors           ,EH01,Miscellaneous Agency Services           ,560.00,08/03/2016,R,BUPA CARE HOMES               
495,Adult Social Care,MH u65 Nursing Care Placements,OP Nursing Care - NRTPF,W7AE53,Third Party Payments          ,Private Contractors           ,EH01,Miscellaneous Agency Services           ,616.69,08/03/2016,R,BUPA CARE HOMES               
496,Adult Social Care,MH u65 Nursing Care Placements,OP Nursing Care - NRTPF,W7AE53,Third Party Payments          ,Private Contractors           ,EH01,Miscellaneous Agency Services           ,616.69,08/03/2016,R,BUPA CARE HOMES               
497,Adult Social Care,MH u65 Nursing Care Placements,OP Nursing Care - NRTPF,W7AE53,Third Party Payments          ,Private Contractors           ,EH01,Miscellaneous Agency Services           ,616.69,08/03/2016,R,BUPA CARE HOMES               
498,Adult Social Care,MH u65 Nursing Care Placements,OP Nursing Care - NRTPF,W7AE53,Third Party Payments          ,Private Contractors           ,EH01,Miscellaneous Agency Services           ,616.69,08/03/2016,R,BUPA CARE HOMES               
499,Adult Social Care,OP 65&Over NursingCarePlacemts,OP West - Nursing Care,W2LG53,Third Party Payments          ,Private Contractors           ,EH01,Miscellaneous Agency Services           ,617.83,08/03/2016,R,BUPA CARE HOMES               
500,Adult Social Care,OP 65&Over NursingCarePlacemts,OP West - Nursing Care,W2LG53,Third Party Payments          ,Private Contractors           ,EH01,Miscellaneous Agency Services           ,617.83,08/03/2016,R,BUPA CARE HOMES               
501,Adult Social Care,OP 65&Over NursingCarePlacemts,OP West - Nursing Care,W2LG53,Third Party Payments          ,Private Contractors           ,EH01,Miscellaneous Agency Services           ,617.83,08/03/2016,R,BUPA CARE HOMES               
502,Adult Social Care,OP 65&Over NursingCarePlacemts,OP West - Nursing Care,W2LG53,Third Party Payments          ,Private Contractors           ,EH01,Miscellaneous Agency Services           ,617.83,08/03/2016,R,BUPA CARE HOMES               
503,Adult Social Care,OP 65&Over NursingCarePlacemts,OP East - Nursing Care,W2LH53,Third Party Payments          ,Private Contractors           ,EH01,Miscellaneous Agency Services           ,618.96,20/04/2015,R,BUPA CARE HOMES               
504,Adult Social Care,OP 65&Over NursingCarePlacemts,OP East - Nursing Care,W2LH53,Third Party Payments          ,Private Contractors           ,EH01,Miscellaneous Agency Services           ,618.96,28/08/2015,R,BUPA CARE HOMES               
505,Adult Social Care,OP 65&Over NursingCarePlacemts,OP West - Nursing Care,W2LG53,Third Party Payments          ,Private Contractors           ,EH01,Miscellaneous Agency Services           ,620.05,25/02/2016,R,BUPA CARE HOMES               
506,Adult Social Care,OP 65&Over NursingCarePlacemts,OP West - Nursing Care,W2LG53,Third Party Payments          ,Private Contractors           ,EH01,Miscellaneous Agency Services           ,620.05,25/02/2016,R,BUPA CARE HOMES               
507,Adult Social Care,OP 65&Over NursingCarePlacemts,OP West - Nursing Care,W2LG53,Third Party Payments          ,Private Contractors           ,EH01,Miscellaneous Agency Services           ,620.05,25/02/2016,R,BUPA CARE HOMES               
508,Adult Social Care,OP 65&Over NursingCarePlacemts,OP West - Nursing Care,W2LG53,Third Party Payments          ,Private Contractors           ,EH01,Miscellaneous Agency Services           ,620.05,25/02/2016,R,BUPA CARE HOMES               
509,Adult Social Care,OP 65&Over NursingCarePlacemts,OP West - Nursing Care,W2LG53,Third Party Payments          ,Private Contractors           ,EH01,Miscellaneous Agency Services           ,620.07,25/02/2016,R,BUPA CARE HOMES               
510,Adult Social Care,OP 65&Over NursingCarePlacemts,OP West - Nursing Care,W2LG53,Third Party Payments          ,Private Contractors           ,EH01,Miscellaneous Agency Services           ,620.07,25/02/2016,R,BUPA CARE HOMES               
511,Adult Social Care,OP 65&Over NursingCarePlacemts,OP West - Nursing Care,W2LG53,Third Party Payments          ,Private Contractors           ,EH01,Miscellaneous Agency Services           ,620.07,25/02/2016,R,BUPA CARE HOMES               
512,Adult Social Care,OP 65&Over NursingCarePlacemts,OP West - Nursing Care,W2LG53,Third Party Payments          ,Private Contractors           ,EH01,Miscellaneous Agency Services           ,620.07,25/02/2016,R,BUPA CARE HOMES               
513,Adult Social Care,OP 65&Over NursingCarePlacemts,OP West - Nursing Care,W2LG53,Third Party Payments          ,Private Contractors           ,EH01,Miscellaneous Agency Services           ,620.07,25/02/2016,R,BUPA CARE HOMES               
514,Adult Social Care,OP 65&Over NursingCarePlacemts,OP West - Nursing Care,W2LG53,Third Party Payments          ,Private Contractors           ,EH01,Miscellaneous Agency Services           ,620.07,25/02/2016,R,BUPA CARE HOMES               
515,Adult Social Care,OP 65&Over NursingCarePlacemts,OP West - Nursing Care,W2LG53,Third Party Payments          ,Private Contractors           ,EH01,Miscellaneous Agency Services           ,620.07,25/02/2016,R,BUPA CARE HOMES               
516,Adult Social Care,OP 65&Over NursingCarePlacemts,OP West - Nursing Care,W2LG53,Third Party Payments          ,Private Contractors           ,EH01,Miscellaneous Agency Services           ,620.07,25/02/2016,R,BUPA CARE HOMES               
517,Adult Social Care,OP 65&Over NursingCarePlacemts,OP West - Nursing Care,W2LG53,Third Party Payments          ,Private Contractors           ,EH01,Miscellaneous Agency Services           ,620.07,25/02/2016,R,BUPA CARE HOMES               
518,Adult Social Care,OP 65&Over NursingCarePlacemts,OP West - Nursing Care,W2LG53,Third Party Payments          ,Private Contractors           ,EH01,Miscellaneous Agency Services           ,620.07,25/02/2016,R,BUPA CARE HOMES               
519,Adult Social Care,OP 65&Over NursingCarePlacemts,OP West - Nursing Care,W2LG53,Third Party Payments          ,Private Contractors           ,EH01,Miscellaneous Agency Services           ,620.07,25/02/2016,R,BUPA CARE HOMES               
520,Adult Social Care,OP 65&Over NursingCarePlacemts,OP West - Nursing Care,W2LG53,Third Party Payments          ,Private Contractors           ,EH01,Miscellaneous Agency Services           ,620.07,25/02/2016,R,BUPA CARE HOMES               
521,Adult Social Care,OP 65&Over NursingCarePlacemts,OP West - Nursing Care,W2LG53,Third Party Payments          ,Private Contractors           ,EH01,Miscellaneous Agency Services           ,620.07,25/02/2016,R,BUPA CARE HOMES               
522,Adult Social Care,OP 65&Over NursingCarePlacemts,OP West - Nursing Care,W2LG53,Third Party Payments          ,Private Contractors           ,EH01,Miscellaneous Agency Services           ,620.07,25/02/2016,R,BUPA CARE HOMES               
523,Adult Social Care,OP 65&Over NursingCarePlacemts,OP West - Nursing Care,W2LG53,Third Party Payments          ,Private Contractors           ,EH01,Miscellaneous Agency Services           ,620.07,25/02/2016,R,BUPA CARE HOMES               
524,Adult Social Care,OP 65&Over NursingCarePlacemts,OP West - Nursing Care,W2LG53,Third Party Payments          ,Private Contractors           ,EH01,Miscellaneous Agency Services           ,620.07,25/02/2016,R,BUPA CARE HOMES               
525,Adult Social Care,OP 65&Over NursingCarePlacemts,OP East - Nursing Care,W2LH53,Third Party Payments          ,Private Contractors           ,EH01,Miscellaneous Agency Services           ,620.07,25/02/2016,R,BUPA CARE HOMES               
526,Adult Social Care,OP 65&Over NursingCarePlacemts,OP East - Nursing Care,W2LH53,Third Party Payments          ,Private Contractors           ,EH01,Miscellaneous Agency Services           ,620.07,25/02/2016,R,BUPA CARE HOMES               
527,Adult Social Care,OP 65&Over NursingCarePlacemts,OP East - Nursing Care,W2LH53,Third Party Payments          ,Private Contractors           ,EH01,Miscellaneous Agency Services           ,620.07,25/02/2016,R,BUPA CARE HOMES               
528,Adult Social Care,OP 65&Over NursingCarePlacemts,OP East - Nursing Care,W2LH53,Third Party Payments          ,Private Contractors           ,EH01,Miscellaneous Agency Services           ,620.07,25/02/2016,R,BUPA CARE HOMES               
529,Adult Social Care,OP 65&Over NursingCarePlacemts,OP East - Nursing Care,W2LH53,Third Party Payments          ,Private Contractors           ,EH01,Miscellaneous Agency Services           ,620.07,25/02/2016,R,BUPA CARE HOMES               
530,Adult Social Care,OP 65&Over NursingCarePlacemts,OP East - Nursing Care,W2LH53,Third Party Payments          ,Private Contractors           ,EH01,Miscellaneous Agency Services           ,620.07,25/02/2016,R,BUPA CARE HOMES               
531,Adult Social Care,OP 65&Over NursingCarePlacemts,OP East - Nursing Care,W2LH53,Third Party Payments          ,Private Contractors           ,EH01,Miscellaneous Agency Services           ,620.07,25/02/2016,R,BUPA CARE HOMES               
532,Adult Social Care,OP 65&Over NursingCarePlacemts,OP East - Nursing Care,W2LH53,Third Party Payments          ,Private Contractors           ,EH01,Miscellaneous Agency Services           ,620.07,25/02/2016,R,BUPA CARE HOMES               
533,Adult Social Care,OP 65&Over NursingCarePlacemts,OP East - Nursing Care,W2LH53,Third Party Payments          ,Private Contractors           ,EH01,Miscellaneous Agency Services           ,620.07,25/02/2016,R,BUPA CARE HOMES               
534,Adult Social Care,OP 65&Over NursingCarePlacemts,OP East - Nursing Care,W2LH53,Third Party Payments          ,Private Contractors           ,EH01,Miscellaneous Agency Services           ,620.07,25/02/2016,R,BUPA CARE HOMES               
535,Adult Social Care,OP 65&Over NursingCarePlacemts,OP East - Nursing Care,W2LH53,Third Party Payments          ,Private Contractors           ,EH01,Miscellaneous Agency Services           ,620.07,09/03/2016,R,BUPA CARE HOMES               
536,Adult Social Care,OP 65&Over NursingCarePlacemts,OP East - Nursing Care,W2LH53,Third Party Payments          ,Private Contractors           ,EH01,Miscellaneous Agency Services           ,620.07,21/10/2015,R,BUPA CARE HOMES               
537,Adult Social Care,OP 65&Over NursingCarePlacemts,OP East - Nursing Care,W2LH53,Third Party Payments          ,Private Contractors           ,EH01,Miscellaneous Agency Services           ,620.07,25/02/2016,R,BUPA CARE HOMES               
538,Adult Social Care,OP 65&Over NursingCarePlacemts,OP East - Nursing Care,W2LH53,Third Party Payments          ,Private Contractors           ,EH01,Miscellaneous Agency Services           ,620.07,25/02/2016,R,BUPA CARE HOMES               
539,Adult Social Care,OP 65&Over NursingCarePlacemts,OP East - Nursing Care,W2LH53,Third Party Payments          ,Private Contractors           ,EH01,Miscellaneous Agency Services           ,620.07,25/02/2016,R,BUPA CARE HOMES               
540,Adult Social Care,OP 65&Over NursingCarePlacemts,OP East - Nursing Care,W2LH53,Third Party Payments          ,Private Contractors           ,EH01,Miscellaneous Agency Services           ,620.07,25/02/2016,R,BUPA CARE HOMES               
541,Adult Social Care,OP 65&Over NursingCarePlacemts,OP East - Nursing Care,W2LH53,Third Party Payments          ,Private Contractors           ,EH01,Miscellaneous Agency Services           ,620.07,25/02/2016,R,BUPA CARE HOMES               
542,Adult Social Care,OP 65&Over NursingCarePlacemts,OP East - Nursing Care,W2LH53,Third Party Payments          ,Private Contractors           ,EH01,Miscellaneous Agency Services           ,620.07,25/02/2016,R,BUPA CARE HOMES               
543,Adult Social Care,OP 65&Over NursingCarePlacemts,OP East - Nursing Care,W2LH53,Third Party Payments          ,Private Contractors           ,EH01,Miscellaneous Agency Services           ,620.07,25/02/2016,R,BUPA CARE HOMES               
544,Adult Social Care,OP 65&Over NursingCarePlacemts,OP East - Nursing Care,W2LH53,Third Party Payments          ,Private Contractors           ,EH01,Miscellaneous Agency Services           ,620.07,25/02/2016,R,BUPA CARE HOMES               
545,Adult Social Care,OP 65&Over NursingCarePlacemts,OP East - Nursing Care,W2LH53,Third Party Payments          ,Private Contractors           ,EH01,Miscellaneous Agency Services           ,620.07,25/02/2016,R,BUPA CARE HOMES               
546,Adult Social Care,OP 65&Over NursingCarePlacemts,OP East - Nursing Care,W2LH53,Third Party Payments          ,Private Contractors           ,EH01,Miscellaneous Agency Services           ,620.07,25/02/2016,R,BUPA CARE HOMES               
547,Adult Social Care,OP 65&Over NursingCarePlacemts,OP East - Nursing Care,W2LH53,Third Party Payments          ,Private Contractors           ,EH01,Miscellaneous Agency Services           ,620.07,25/02/2016,R,BUPA CARE HOMES               
548,Adult Social Care,OP 65&Over NursingCarePlacemts,OP East - Nursing Care,W2LH53,Third Party Payments          ,Private Contractors           ,EH01,Miscellaneous Agency Services           ,620.07,25/02/2016,R,BUPA CARE HOMES               
549,Adult Social Care,OP 65&Over NursingCarePlacemts,OP East - Nursing Care,W2LH53,Third Party Payments          ,Private Contractors           ,EH01,Miscellaneous Agency Services           ,620.07,25/02/2016,R,BUPA CARE HOMES               
550,Adult Social Care,OP 65&Over NursingCarePlacemts,OP East - Nursing Care,W2LH53,Third Party Payments          ,Private Contractors           ,EH01,Miscellaneous Agency Services           ,620.07,25/02/2016,R,BUPA CARE HOMES               
551,Adult Social Care,OP 65&Over NursingCarePlacemts,OP East - Nursing Care,W2LH53,Third Party Payments          ,Private Contractors           ,EH01,Miscellaneous Agency Services           ,620.07,25/02/2016,R,BUPA CARE HOMES               
552,Adult Social Care,OP 65&Over NursingCarePlacemts,OP East - Nursing Care,W2LH53,Third Party Payments          ,Private Contractors           ,EH01,Miscellaneous Agency Services           ,620.07,09/03/2016,R,BUPA CARE HOMES               
553,Adult Social Care,OP 65&Over NursingCarePlacemts,OP East - Nursing Care,W2LH53,Third Party Payments          ,Private Contractors           ,EH01,Miscellaneous Agency Services           ,620.07,25/02/2016,R,BUPA CARE HOMES               
554,Adult Social Care,OP 65&Over NursingCarePlacemts,OP East - Nursing Care,W2LH53,Third Party Payments          ,Private Contractors           ,EH01,Miscellaneous Agency Services           ,620.07,25/02/2016,R,BUPA CARE HOMES               
555,Adult Social Care,OP 65&Over NursingCarePlacemts,OP East - Nursing Care,W2LH53,Third Party Payments          ,Private Contractors           ,EH01,Miscellaneous Agency Services           ,620.07,25/02/2016,R,BUPA CARE HOMES               
556,Adult Social Care,OP 65&Over NursingCarePlacemts,OP East - Nursing Care,W2LH53,Third Party Payments          ,Private Contractors           ,EH01,Miscellaneous Agency Services           ,620.07,25/02/2016,R,BUPA CARE HOMES               
557,Adult Social Care,OP 65&Over NursingCarePlacemts,OP East - Nursing Care,W2LH53,Third Party Payments          ,Private Contractors           ,EH01,Miscellaneous Agency Services           ,620.07,25/02/2016,R,BUPA CARE HOMES               
558,Adult Social Care,OP 65&Over NursingCarePlacemts,OP East - Nursing Care,W2LH53,Third Party Payments          ,Private Contractors           ,EH01,Miscellaneous Agency Services           ,620.07,25/02/2016,R,BUPA CARE HOMES               
559,Adult Social Care,OP 65&Over NursingCarePlacemts,OP East - Nursing Care,W2LH53,Third Party Payments          ,Private Contractors           ,EH01,Miscellaneous Agency Services           ,620.07,25/02/2016,R,BUPA CARE HOMES               
560,Adult Social Care,OP 65&Over NursingCarePlacemts,OP East - Nursing Care,W2LH53,Third Party Payments          ,Private Contractors           ,EH01,Miscellaneous Agency Services           ,620.07,25/02/2016,R,BUPA CARE HOMES               
561,Adult Social Care,OP 65&Over NursingCarePlacemts,OP East - Nursing Care,W2LH53,Third Party Payments          ,Private Contractors           ,EH01,Miscellaneous Agency Services           ,620.07,25/02/2016,R,BUPA CARE HOMES               
562,Adult Social Care,OP 65&Over NursingCarePlacemts,OP East - Nursing Care,W2LH53,Third Party Payments          ,Private Contractors           ,EH01,Miscellaneous Agency Services           ,620.07,25/02/2016,R,BUPA CARE HOMES               
563,Adult Social Care,OP 65&Over NursingCarePlacemts,OP East - Nursing Care,W2LH53,Third Party Payments          ,Private Contractors           ,EH01,Miscellaneous Agency Services           ,620.07,25/02/2016,R,BUPA CARE HOMES               
564,Adult Social Care,OP 65&Over NursingCarePlacemts,OP East - Nursing Care,W2LH53,Third Party Payments          ,Private Contractors           ,EH01,Miscellaneous Agency Services           ,620.07,09/03/2016,R,BUPA CARE HOMES               
565,Adult Social Care,OP 65&Over NursingCarePlacemts,OP East - Nursing Care,W2LH53,Third Party Payments          ,Private Contractors           ,EH01,Miscellaneous Agency Services           ,620.07,09/03/2016,R,BUPA CARE HOMES               
566,Adult Social Care,OP 65&Over NursingCarePlacemts,OP R/Park - Nursing Care,W2LR53,Third Party Payments          ,Private Contractors           ,EH01,Miscellaneous Agency Services           ,620.07,25/02/2016,R,BUPA CARE HOMES               
567,Adult Social Care,OP 65&Over NursingCarePlacemts,OP R/Park - Nursing Care,W2LR53,Third Party Payments          ,Private Contractors           ,EH01,Miscellaneous Agency Services           ,620.07,25/02/2016,R,BUPA CARE HOMES               
568,Adult Social Care,OP 65&Over NursingCarePlacemts,OP R/Park - Nursing Care,W2LR53,Third Party Payments          ,Private Contractors           ,EH01,Miscellaneous Agency Services           ,620.07,25/02/2016,R,BUPA CARE HOMES               
569,Adult Social Care,OP 65&Over NursingCarePlacemts,OP R/Park - Nursing Care,W2LR53,Third Party Payments          ,Private Contractors           ,EH01,Miscellaneous Agency Services           ,620.07,25/02/2016,R,BUPA CARE HOMES               
570,Adult Social Care,OP 65&Over NursingCarePlacemts,OP R/Park - Nursing Care,W2LR53,Third Party Payments          ,Private Contractors           ,EH01,Miscellaneous Agency Services           ,620.07,25/02/2016,R,BUPA CARE HOMES               
571,Adult Social Care,OP 65&Over NursingCarePlacemts,OP R/Park - Nursing Care,W2LR53,Third Party Payments          ,Private Contractors           ,EH01,Miscellaneous Agency Services           ,620.07,25/02/2016,R,BUPA CARE HOMES               
572,Adult Social Care,OP 65&Over NursingCarePlacemts,OP R/Park - Nursing Care,W2LR53,Third Party Payments          ,Private Contractors           ,EH01,Miscellaneous Agency Services           ,620.07,25/02/2016,R,BUPA CARE HOMES               
573,Adult Social Care,OP 65&Over NursingCarePlacemts,OP R/Park - Nursing Care,W2LR53,Third Party Payments          ,Private Contractors           ,EH01,Miscellaneous Agency Services           ,620.07,25/02/2016,R,BUPA CARE HOMES               
574,Adult Social Care,OP 65&Over NursingCarePlacemts,OP R/Park - Nursing Care,W2LR53,Third Party Payments          ,Private Contractors           ,EH01,Miscellaneous Agency Services           ,620.07,25/02/2016,R,BUPA CARE HOMES               
575,Adult Social Care,OP 65&Over NursingCarePlacemts,OP R/Park - Nursing Care,W2LR53,Third Party Payments          ,Private Contractors           ,EH01,Miscellaneous Agency Services           ,620.07,25/02/2016,R,BUPA CARE HOMES               
576,Adult Social Care,OP 65&Over NursingCarePlacemts,OP R/Park - Nursing Care,W2LR53,Third Party Payments          ,Private Contractors           ,EH01,Miscellaneous Agency Services           ,620.07,25/02/2016,R,BUPA CARE HOMES               
577,Adult Social Care,OP 65&Over NursingCarePlacemts,OP R/Park - Nursing Care,W2LR53,Third Party Payments          ,Private Contractors           ,EH01,Miscellaneous Agency Services           ,620.07,25/02/2016,R,BUPA CARE HOMES               
578,Adult Social Care,OP 65&Over NursingCarePlacemts,OP R/Park - Nursing Care,W2LR53,Third Party Payments          ,Private Contractors           ,EH01,Miscellaneous Agency Services           ,620.07,25/02/2016,R,BUPA CARE HOMES               
579,Adult Social Care,OP 65&Over NursingCarePlacemts,OP R/Park - Nursing Care,W2LR53,Third Party Payments          ,Private Contractors           ,EH01,Miscellaneous Agency Services           ,620.07,25/02/2016,R,BUPA CARE HOMES               
580,Adult Social Care,OP 65&Over NursingCarePlacemts,OP R/Park - Nursing Care,W2LR53,Third Party Payments          ,Private Contractors           ,EH01,Miscellaneous Agency Services           ,620.07,25/02/2016,R,BUPA CARE HOMES               
581,Adult Social Care,OP 65&Over NursingCarePlacemts,OP R/Park - Nursing Care,W2LR53,Third Party Payments          ,Private Contractors           ,EH01,Miscellaneous Agency Services           ,620.07,25/02/2016,R,BUPA CARE HOMES               
582,Adult Social Care,OP 65&Over NursingCarePlacemts,OP R/Park - Nursing Care,W2LR53,Third Party Payments          ,Private Contractors           ,EH01,Miscellaneous Agency Services           ,650.57,28/10/2015,R,BUPA CARE HOMES               
583,Adult Social Care,OP 65&Over NursingCarePlacemts,OP West - Nursing Care,W2LG53,Third Party Payments          ,Private Contractors           ,EH01,Miscellaneous Agency Services           ,667.39,08/03/2016,R,BUPA CARE HOMES               
584,Adult Social Care,OP 65&Over NursingCarePlacemts,OP West - Nursing Care,W2LG53,Third Party Payments          ,Private Contractors           ,EH01,Miscellaneous Agency Services           ,667.39,08/03/2016,R,BUPA CARE HOMES               
585,Adult Social Care,OP 65&Over NursingCarePlacemts,OP West - Nursing Care,W2LG53,Third Party Payments          ,Private Contractors           ,EH01,Miscellaneous Agency Services           ,667.39,08/03/2016,R,BUPA CARE HOMES               
586,Adult Social Care,OP 65&Over NursingCarePlacemts,OP West - Nursing Care,W2LG53,Third Party Payments          ,Private Contractors           ,EH01,Miscellaneous Agency Services           ,667.39,08/03/2016,R,BUPA CARE HOMES               
587,Adult Social Care,OP 65&Over NursingCarePlacemts,OP West - Nursing Care,W2LG53,Third Party Payments          ,Private Contractors           ,EH01,Miscellaneous Agency Services           ,686.75,08/03/2016,R,BUPA CARE HOMES               
588,Adult Social Care,OP 65&Over NursingCarePlacemts,OP West - Nursing Care,W2LG53,Third Party Payments          ,Private Contractors           ,EH01,Miscellaneous Agency Services           ,686.75,08/03/2016,R,BUPA CARE HOMES               
589,Adult Social Care,OP 65&Over NursingCarePlacemts,OP West - Nursing Care,W2LG53,Third Party Payments          ,Private Contractors           ,EH01,Miscellaneous Agency Services           ,686.75,08/03/2016,R,BUPA CARE HOMES               
590,Adult Social Care,OP 65&Over NursingCarePlacemts,OP West - Nursing Care,W2LG53,Third Party Payments          ,Private Contractors           ,EH01,Miscellaneous Agency Services           ,686.75,08/03/2016,R,BUPA CARE HOMES               
591,Adult Social Care,PS u65 Nursing Care Placements,PD WEST TEAM-Nursing,W2JK53,Third Party Payments          ,Private Contractors           ,EH01,Miscellaneous Agency Services           ,698.14,08/03/2016,R,BUPA CARE HOMES               
592,Adult Social Care,PS u65 Nursing Care Placements,PD WEST TEAM-Nursing,W2JK53,Third Party Payments          ,Private Contractors           ,EH01,Miscellaneous Agency Services           ,698.14,08/03/2016,R,BUPA CARE HOMES               
593,Adult Social Care,PS u65 Nursing Care Placements,PD WEST TEAM-Nursing,W2JK53,Third Party Payments          ,Private Contractors           ,EH01,Miscellaneous Agency Services           ,698.14,08/03/2016,R,BUPA CARE HOMES               
594,Adult Social Care,PS u65 Nursing Care Placements,PD WEST TEAM-Nursing,W2JK53,Third Party Payments          ,Private Contractors           ,EH01,Miscellaneous Agency Services           ,698.14,08/03/2016,R,BUPA CARE HOMES               
595,Adult Social Care,OP 65&Over NursingCarePlacemts,OP East - Nursing Care,W2LH53,Third Party Payments          ,Private Contractors           ,EH01,Miscellaneous Agency Services           ,724.32,25/02/2016,R,BUPA CARE HOMES               
596,Adult Social Care,OP 65&Over NursingCarePlacemts,OP East - Nursing Care,W2LH53,Third Party Payments          ,Private Contractors           ,EH01,Miscellaneous Agency Services           ,724.32,25/02/2016,R,BUPA CARE HOMES               
597,Adult Social Care,OP 65&Over NursingCarePlacemts,OP East - Nursing Care,W2LH53,Third Party Payments          ,Private Contractors           ,EH01,Miscellaneous Agency Services           ,724.32,25/02/2016,R,BUPA CARE HOMES               
598,Adult Social Care,OP 65&Over NursingCarePlacemts,OP East - Nursing Care,W2LH53,Third Party Payments          ,Private Contractors           ,EH01,Miscellaneous Agency Services           ,724.32,25/02/2016,R,BUPA CARE HOMES               
599,Adult Social Care,OP 65&Over NursingCarePlacemts,OP R/Park - Nursing Care,W2LR53,Third Party Payments          ,Private Contractors           ,EH01,Miscellaneous Agency Services           ,725.45,25/02/2016,R,BUPA CARE HOMES               
600,Adult Social Care,OP 65&Over NursingCarePlacemts,OP R/Park - Nursing Care,W2LR53,Third Party Payments          ,Private Contractors           ,EH01,Miscellaneous Agency Services           ,725.45,25/02/2016,R,BUPA CARE HOMES               
601,Adult Social Care,OP 65&Over NursingCarePlacemts,OP R/Park - Nursing Care,W2LR53,Third Party Payments          ,Private Contractors           ,EH01,Miscellaneous Agency Services           ,725.45,25/02/2016,R,BUPA CARE HOMES               
602,Adult Social Care,OP 65&Over NursingCarePlacemts,OP R/Park - Nursing Care,W2LR53,Third Party Payments          ,Private Contractors           ,EH01,Miscellaneous Agency Services           ,725.45,25/02/2016,R,BUPA CARE HOMES               
603,Adult Social Care,PS u65 Nursing Care Placements,PS Nursing Care - NRTPF,W7AD53,Third Party Payments          ,Private Contractors           ,EH01,Miscellaneous Agency Services           ,739.00,25/02/2016,R,BUPA CARE HOMES               
604,Adult Social Care,PS u65 Nursing Care Placements,PS Nursing Care - NRTPF,W7AD53,Third Party Payments          ,Private Contractors           ,EH01,Miscellaneous Agency Services           ,739.00,25/02/2016,R,BUPA CARE HOMES               
605,Adult Social Care,PS u65 Nursing Care Placements,PS Nursing Care - NRTPF,W7AD53,Third Party Payments          ,Private Contractors           ,EH01,Miscellaneous Agency Services           ,739.00,25/02/2016,R,BUPA CARE HOMES               
606,Adult Social Care,PS u65 Nursing Care Placements,PS Nursing Care - NRTPF,W7AD53,Third Party Payments          ,Private Contractors           ,EH01,Miscellaneous Agency Services           ,739.00,25/02/2016,R,BUPA CARE HOMES               
607,Adult Social Care,OP 65&Over NursingCarePlacemts,OP East - Nursing Care,W2LH53,Third Party Payments          ,Private Contractors           ,EH01,Miscellaneous Agency Services           ,759.00,25/02/2016,R,BUPA CARE HOMES               
608,Adult Social Care,OP 65&Over NursingCarePlacemts,OP East - Nursing Care,W2LH53,Third Party Payments          ,Private Contractors           ,EH01,Miscellaneous Agency Services           ,759.00,25/02/2016,R,BUPA CARE HOMES               
609,Adult Social Care,OP 65&Over NursingCarePlacemts,OP East - Nursing Care,W2LH53,Third Party Payments          ,Private Contractors           ,EH01,Miscellaneous Agency Services           ,759.00,01/02/2016,R,BUPA CARE HOMES               
610,Adult Social Care,OP 65&Over NursingCarePlacemts,OP East - Nursing Care,W2LH53,Third Party Payments          ,Private Contractors           ,EH01,Miscellaneous Agency Services           ,759.00,25/02/2016,R,BUPA CARE HOMES               
611,Adult Social Care,OP 65&Over NursingCarePlacemts,OP East - Nursing Care,W2LH53,Third Party Payments          ,Private Contractors           ,EH01,Miscellaneous Agency Services           ,759.00,01/02/2016,R,BUPA CARE HOMES               
612,Adult Social Care,OP 65&Over NursingCarePlacemts,OP East - Nursing Care,W2LH53,Third Party Payments          ,Private Contractors           ,EH01,Miscellaneous Agency Services           ,759.00,01/02/2016,R,BUPA CARE HOMES               
613,Adult Social Care,OP 65&Over NursingCarePlacemts,OP East - Nursing Care,W2LH53,Third Party Payments          ,Private Contractors           ,EH01,Miscellaneous Agency Services           ,759.00,25/02/2016,R,BUPA CARE HOMES               
614,Adult Social Care,OP 65&Over NursingCarePlacemts,OP R/Park - Nursing Care,W2LR53,Third Party Payments          ,Private Contractors           ,EH01,Miscellaneous Agency Services           ,759.00,28/10/2015,R,BUPA CARE HOMES               
615,Adult Social Care,OP 65&Over NursingCarePlacemts,OP East - Nursing Care,W2LH53,Third Party Payments          ,Private Contractors           ,EH01,Miscellaneous Agency Services           ,820.00,25/02/2016,R,BUPA CARE HOMES               
616,Adult Social Care,OP 65&Over NursingCarePlacemts,OP East - Nursing Care,W2LH53,Third Party Payments          ,Private Contractors           ,EH01,Miscellaneous Agency Services           ,820.00,25/02/2016,R,BUPA CARE HOMES               
617,Adult Social Care,OP 65&Over NursingCarePlacemts,OP East - Nursing Care,W2LH53,Third Party Payments          ,Private Contractors           ,EH01,Miscellaneous Agency Services           ,820.00,25/02/2016,R,BUPA CARE HOMES               
618,Adult Social Care,OP 65&Over NursingCarePlacemts,OP East - Nursing Care,W2LH53,Third Party Payments          ,Private Contractors           ,EH01,Miscellaneous Agency Services           ,820.00,25/02/2016,R,BUPA CARE HOMES               
619,Adult Social Care,PS u65 Nursing Care Placements,PD EAST TEAM-Nursing,W2JJ53,Third Party Payments          ,Private Contractors           ,EH01,Miscellaneous Agency Services           ,837.99,25/02/2016,R,BUPA CARE HOMES               
620,Adult Social Care,PS u65 Nursing Care Placements,PD EAST TEAM-Nursing,W2JJ53,Third Party Payments          ,Private Contractors           ,EH01,Miscellaneous Agency Services           ,837.99,25/02/2016,R,BUPA CARE HOMES               
621,Adult Social Care,PS u65 Nursing Care Placements,PD EAST TEAM-Nursing,W2JJ53,Third Party Payments          ,Private Contractors           ,EH01,Miscellaneous Agency Services           ,837.99,25/02/2016,R,BUPA CARE HOMES               
622,Adult Social Care,PS u65 Nursing Care Placements,PD EAST TEAM-Nursing,W2JJ53,Third Party Payments          ,Private Contractors           ,EH01,Miscellaneous Agency Services           ,837.99,25/02/2016,R,BUPA CARE HOMES               
623,Adult Social Care,OP 65&Over NursingCarePlacemts,OP West - Nursing Care,W2LG53,Third Party Payments          ,Private Contractors           ,EH01,Miscellaneous Agency Services           ,846.76,08/03/2016,R,BUPA CARE HOMES               
624,Adult Social Care,OP 65&Over NursingCarePlacemts,OP West - Nursing Care,W2LG53,Third Party Payments          ,Private Contractors           ,EH01,Miscellaneous Agency Services           ,846.76,08/03/2016,R,BUPA CARE HOMES               
625,Adult Social Care,OP 65&Over NursingCarePlacemts,OP West - Nursing Care,W2LG53,Third Party Payments          ,Private Contractors           ,EH01,Miscellaneous Agency Services           ,846.76,08/03/2016,R,BUPA CARE HOMES               
626,Adult Social Care,OP 65&Over NursingCarePlacemts,OP West - Nursing Care,W2LG53,Third Party Payments          ,Private Contractors           ,EH01,Miscellaneous Agency Services           ,846.76,08/03/2016,R,BUPA CARE HOMES               
627,Adult Social Care,PS u65 Nursing Care Placements,PD EAST TEAM-Nursing,W2JJ53,Third Party Payments          ,Private Contractors           ,EH01,Miscellaneous Agency Services           ,"1,486.25",18/03/2016,R,BUPA CARE HOMES               
628,Adult Social Care,PS u65 Nursing Care Placements,PD EAST TEAM-Nursing,W2JJ53,Third Party Payments          ,Private Contractors           ,EH01,Miscellaneous Agency Services           ,"1,486.25",18/03/2016,R,BUPA CARE HOMES               
629,Adult Social Care,PS u65 Nursing Care Placements,PD EAST TEAM-Nursing,W2JJ53,Third Party Payments          ,Private Contractors           ,EH01,Miscellaneous Agency Services           ,"1,486.25",25/02/2016,R,BUPA CARE HOMES               
630,Adult Social Care,PS u65 Nursing Care Placements,PD EAST TEAM-Nursing,W2JJ53,Third Party Payments          ,Private Contractors           ,EH01,Miscellaneous Agency Services           ,"1,486.25",18/03/2016,R,BUPA CARE HOMES               
631,Adult Social Care,PS u65 Nursing Care Placements,PD EAST TEAM-Nursing,W2JJ53,Third Party Payments          ,Private Contractors           ,EH01,Miscellaneous Agency Services           ,"1,486.25",18/03/2016,R,BUPA CARE HOMES               
632,Adult Social Care,PS u65 Nursing Care Placements,PD EAST TEAM-Nursing,W2JJ53,Third Party Payments          ,Private Contractors           ,EH01,Miscellaneous Agency Services           ,"1,486.25",25/02/2016,R,BUPA CARE HOMES               
633,Adult Social Care,PS u65 Nursing Care Placements,PD EAST TEAM-Nursing,W2JJ53,Third Party Payments          ,Private Contractors           ,EH01,Miscellaneous Agency Services           ,"1,486.25",25/02/2016,R,BUPA CARE HOMES               
634,Adult Social Care,PS u65 Nursing Care Placements,PD EAST TEAM-Nursing,W2JJ53,Third Party Payments          ,Private Contractors           ,EH01,Miscellaneous Agency Services           ,"1,486.25",25/02/2016,R,BUPA CARE HOMES               
635,Adult Social Care,OP 65&Over NursingCarePlacemts,OP R/Park - Nursing Care,W2LR53,Third Party Payments          ,Private Contractors           ,EH01,Miscellaneous Agency Services           ,"1,971.80",04/03/2016,R,BUPA CARE HOMES               
636,Adult Social Care,PS u65 Residentl Care Placemnt,PS ResidentialCare Ext- NRTPF,W7AD55,Third Party Payments          ,Private Contractors           ,EH01,Miscellaneous Agency Services           ,504.00,29/02/2016,R,BUPA CARE HOMES (ANS) LTD     
637,Adult Social Care,PS u65 Residentl Care Placemnt,PS ResidentialCare Ext- NRTPF,W7AD55,Third Party Payments          ,Private Contractors           ,EH01,Miscellaneous Agency Services           ,504.00,29/02/2016,R,BUPA CARE HOMES (ANS) LTD     
638,Adult Social Care,PS u65 Residentl Care Placemnt,PS ResidentialCare Ext- NRTPF,W7AD55,Third Party Payments          ,Private Contractors           ,EH01,Miscellaneous Agency Services           ,504.00,29/02/2016,R,BUPA CARE HOMES (ANS) LTD     
639,Adult Social Care,PS u65 Residentl Care Placemnt,PS ResidentialCare Ext- NRTPF,W7AD55,Third Party Payments          ,Private Contractors           ,EH01,Miscellaneous Agency Services           ,504.00,29/02/2016,R,BUPA CARE HOMES (ANS) LTD     
640,Adult Social Care,PS u65 Home Care,PD EAST TEAM-Homecare,W2JJ49,Third Party Payments          ,Private Contractors           ,EH01,Miscellaneous Agency Services           ,552.72,29/02/2016,R,BUPA CARE HOMES (ANS) LTD     
641,Adult Social Care,PS u65 Home Care,PD EAST TEAM-Homecare,W2JJ49,Third Party Payments          ,Private Contractors           ,EH01,Miscellaneous Agency Services           ,552.72,29/02/2016,R,BUPA CARE HOMES (ANS) LTD     
642,Adult Social Care,PS u65 Home Care,PD EAST TEAM-Homecare,W2JJ49,Third Party Payments          ,Private Contractors           ,EH01,Miscellaneous Agency Services           ,552.72,29/02/2016,R,BUPA CARE HOMES (ANS) LTD     
643,Adult Social Care,PS u65 Home Care,PD EAST TEAM-Homecare,W2JJ49,Third Party Payments          ,Private Contractors           ,EH01,Miscellaneous Agency Services           ,552.72,29/02/2016,R,BUPA CARE HOMES (ANS) LTD     
644,Adult Social Care,PS u65 Nursing Care Placements,PS Nursing Care - NRTPF,W7AD53,Third Party Payments          ,Private Contractors           ,EH01,Miscellaneous Agency Services           ,922.50,29/02/2016,R,BUPA CARE HOMES (ANS) LTD     
645,Adult Social Care,PS u65 Nursing Care Placements,PS Nursing Care - NRTPF,W7AD53,Third Party Payments          ,Private Contractors           ,EH01,Miscellaneous Agency Services           ,922.50,29/02/2016,R,BUPA CARE HOMES (ANS) LTD     
646,Adult Social Care,PS u65 Nursing Care Placements,PS Nursing Care - NRTPF,W7AD53,Third Party Payments          ,Private Contractors           ,EH01,Miscellaneous Agency Services           ,922.50,29/02/2016,R,BUPA CARE HOMES (ANS) LTD     
647,Adult Social Care,PS u65 Nursing Care Placements,PS Nursing Care - NRTPF,W7AD53,Third Party Payments          ,Private Contractors           ,EH01,Miscellaneous Agency Services           ,922.50,29/02/2016,R,BUPA CARE HOMES (ANS) LTD     
648,Adult Social Care,PS u65 Nursing Care Placements,PD EAST TEAM-Nursing,W2JJ53,Third Party Payments          ,Private Contractors           ,EH01,Miscellaneous Agency Services           ,"1,025.00",29/02/2016,R,BUPA CARE HOMES (ANS) LTD     
649,Adult Social Care,PS u65 Nursing Care Placements,PD EAST TEAM-Nursing,W2JJ53,Third Party Payments          ,Private Contractors           ,EH01,Miscellaneous Agency Services           ,"1,025.00",29/02/2016,R,BUPA CARE HOMES (ANS) LTD     
650,Adult Social Care,PS u65 Nursing Care Placements,PD EAST TEAM-Nursing,W2JJ53,Third Party Payments          ,Private Contractors           ,EH01,Miscellaneous Agency Services           ,"1,025.00",29/02/2016,R,BUPA CARE HOMES (ANS) LTD     
651,Adult Social Care,PS u65 Nursing Care Placements,PD EAST TEAM-Nursing,W2JJ53,Third Party Payments          ,Private Contractors           ,EH01,Miscellaneous Agency Services           ,"1,025.00",29/02/2016,R,BUPA CARE HOMES (ANS) LTD     
652,Adult Social Care,PS u65 Nursing Care Placements,PD EAST TEAM-Nursing,W2JJ53,Third Party Payments          ,Private Contractors           ,EH01,Miscellaneous Agency Services           ,"1,890.36",22/03/2016,R,BUPA CARE SERVICES BACS RECEIP
653,Adult Social Care,PS u65 Nursing Care Placements,PD EAST TEAM-Nursing,W2JJ53,Third Party Payments          ,Private Contractors           ,EH01,Miscellaneous Agency Services           ,"1,890.36",22/03/2016,R,BUPA CARE SERVICES BACS RECEIP
654,Adult Social Care,PS u65 Nursing Care Placements,PD EAST TEAM-Nursing,W2JJ53,Third Party Payments          ,Private Contractors           ,EH01,Miscellaneous Agency Services           ,"1,890.36",22/03/2016,R,BUPA CARE SERVICES BACS RECEIP
655,Adult Social Care,PS u65 Nursing Care Placements,PD EAST TEAM-Nursing,W2JJ53,Third Party Payments          ,Private Contractors           ,EH01,Miscellaneous Agency Services           ,"1,890.36",22/03/2016,R,BUPA CARE SERVICES BACS RECEIP
656,,,Town Centre Investment                  ,CE061FB,New Construction Conversion and Renovation,,B4,Contractor - Site works                 ,"10,500.00",31/03/2016,C,BURRAS LIMITED                
657,,,Colliers Wd- Regeneration Fund          ,CE006FB,New Construction Conversion and Renovation,,B4,Contractor - Site works                 ,"11,230.00",31/03/2016,C,BURRAS LIMITED                
658,Cultural Env Reg&Plan Services,Economic Dev (Not separated),Capt Ambition-Suburban Opprt Z,H01231,Supplies & Services           ,Grants and Subscriptions      ,DJ01,Grants                                  ,"7,706.25",30/03/2016,R,C JAMES & CO                  
659,Cultural Env Reg&Plan Services,Economic Dev (Not separated),Capt Ambition-Suburban Opprt Z,H01231,Supplies & Services           ,Grants and Subscriptions      ,DJ01,Grants                                  ,"10,895.85",30/03/2016,R,C JAMES & CO                  
660,Central Services,SupS Legal,Sutton Legal                            ,E10293,Supplies & Services           ,Services                      ,DF14,Doctors and Other Fees                  ,"1,419.87",23/10/2015,R,C.A.T.T. PARTNERSHIP          
661,Childrens & Education Services,Support for SEN Pupils,ART SEN Residential (DSG),K90050,Third Party Payments          ,Other Establishments          ,EG51,Ind Resid Schs Payments                 ,"4,369.20",12/10/2015,R,CAMBIAN ASPERGER SYNDROME SERV
662,Childrens & Education Services,Support for SEN Pupils,ART SEN Residential (DSG),K90050,Third Party Payments          ,Other Establishments          ,EG51,Ind Resid Schs Payments                 ,"4,369.20",10/09/2015,R,CAMBIAN ASPERGER SYNDROME SERV
663,Childrens & Education Services,Support for SEN Pupils,ART SEN Residential (DSG),K90050,Third Party Payments          ,Other Establishments          ,EG51,Ind Resid Schs Payments                 ,"4,369.20",14/03/2016,R,CAMBIAN ASPERGER SYNDROME SERV
664,Childrens & Education Services,Support for SEN Pupils,ART SEN Residential (DSG),K90050,Third Party Payments          ,Other Establishments          ,EG51,Ind Resid Schs Payments                 ,"4,514.84",17/02/2016,R,CAMBIAN ASPERGER SYNDROME SERV
665,Childrens & Education Services,Support for SEN Pupils,ART SEN Residential (DSG),K90050,Third Party Payments          ,Other Establishments          ,EG51,Ind Resid Schs Payments                 ,"4,514.84",13/09/2015,R,CAMBIAN ASPERGER SYNDROME SERV
666,Childrens & Education Services,Support for SEN Pupils,ART SEN Residential (DSG),K90050,Third Party Payments          ,Other Establishments          ,EG51,Ind Resid Schs Payments                 ,"4,514.84",15/12/2015,R,CAMBIAN ASPERGER SYNDROME SERV
667,Childrens & Education Services,Support for SEN Pupils,ART SEN Residential (DSG),K90050,Third Party Payments          ,Other Establishments          ,EG51,Ind Resid Schs Payments                 ,"20,653.82",21/10/2015,R,CAMBIAN AUTISM SERVICES LTD   
668,Childrens & Education Services,Support for SEN Pupils,Non-Maintained Post 16 SEN              ,K90052,Third Party Payments          ,Other Establishments          ,EG53,Ind Specialist Providers                ,"8,761.39",14/03/2016,R,CAMBIAN WHINFELL SCHOOL       
669,Central Services,SupS Health & Safety,Learning and Development,B06146,Employees                     ,Indirect Employee Expenses    ,AB57,EXTERNAL TRAINING COSTS                 ,900.00,17/03/2016,R,CAMDEN&ISLINGTON NHS FDN TRUST
670,Childrens & Education Services,Fostering Services,CL Fostering Services,W1DD47,Supplies & Services           ,Expenses                      ,DH03,Hospitality                             ,"1,000.00",03/03/2016,R,CANNIZARO HOUSE               
671,Adult Social Care,LD u65 Residentl Care Placemnt,LD Residential Care External,W2KB55,Third Party Payments          ,Private Contractors           ,EH01,Miscellaneous Agency Services           ,745.00,01/03/2016,R,CANTERBURY OAST TRUST LTD     
672,Adult Social Care,LD u65 Residentl Care Placemnt,LD Residential Care External,W2KB55,Third Party Payments          ,Private Contractors           ,EH01,Miscellaneous Agency Services           ,745.00,01/03/2016,R,CANTERBURY OAST TRUST LTD     
673,Adult Social Care,LD u65 Residentl Care Placemnt,LD Residential Care External,W2KB55,Third Party Payments          ,Private Contractors           ,EH01,Miscellaneous Agency Services           ,745.00,01/03/2016,R,CANTERBURY OAST TRUST LTD     
674,Adult Social Care,LD u65 Residentl Care Placemnt,LD Residential Care External,W2KB55,Third Party Payments          ,Private Contractors           ,EH01,Miscellaneous Agency Services           ,745.00,01/03/2016,R,CANTERBURY OAST TRUST LTD     
675,Central Services,SupS IT,Distributed Services,E14368,Supplies & Services           ,Comms and Computing           ,DG65,Application Licences                    ,"1,500.00",27/01/2016,R,CAPITA IT SERVICES            
676,Central Services,SupS IT,Distributed Services,E14368,Supplies & Services           ,Comms and Computing           ,DG65,Application Licences                    ,"2,188.24",27/01/2016,R,CAPITA IT SERVICES            
677,Central Services,SupS IT,Distributed Services,E14368,Supplies & Services           ,Comms and Computing           ,DG65,Application Licences                    ,"8,878.68",27/01/2016,R,CAPITA IT SERVICES            
678,CS -Oth Operating Inc & Expend,T/A Vehicle Maintenance etc,Transport-Workshop,J01376,Transport Related Expenditure ,Contract Hire and Op Leasing  ,CC60,Vehicle Hire for LB Sutton              ,"1,760.00",29/02/2016,R,CAPITAL CARS                  
679,,,Traffic Schemes                         ,CE142FA,New Construction Conversion and Renovation,,B2,Site Surveys D&S Structure              ,795.00,18/03/2016,C,CAPITAL TRAFFIC               
680,,,Rediscover Mitcham                      ,CE061FG,New Construction Conversion and Renovation,,B2,Site Surveys D&S Structure              ,"1,750.00",23/02/2016,C,CAPITAL TRAFFIC               
681,Childrens & Education Services,,ART Residential Secure accommo,W1DE58,Third Party Payments          ,Private Contractors           ,EH01,Miscellaneous Agency Services           ,835.00,24/02/2016,R,CARE ADVOCATES LTD            
682,Childrens & Education Services,,ART Residential Secure accommo,W1DE58,Third Party Payments          ,Private Contractors           ,EH01,Miscellaneous Agency Services           ,835.00,24/02/2016,R,CARE ADVOCATES LTD            
683,Childrens & Education Services,,ART Residential Secure accommo,W1DE58,Third Party Payments          ,Private Contractors           ,EH01,Miscellaneous Agency Services           ,835.00,24/02/2016,R,CARE ADVOCATES LTD            
684,Childrens & Education Services,,ART Residential Secure accommo,W1DE58,Third Party Payments          ,Private Contractors           ,EH01,Miscellaneous Agency Services           ,835.00,24/02/2016,R,CARE ADVOCATES LTD            
685,Adult Social Care,LD u65 Residentl Care Placemnt,LD Residential Care External,W2KB55,Third Party Payments          ,Private Contractors           ,EH01,Miscellaneous Agency Services           ,-769.26,05/02/2016,R,CARE ASPIRATIONS LIMITED      
686,Adult Social Care,LD u65 Residentl Care Placemnt,LD Residential Care External,W2KB55,Third Party Payments          ,Private Contractors           ,EH01,Miscellaneous Agency Services           ,769.26,07/03/2016,R,CARE ASPIRATIONS LIMITED      
687,Adult Social Care,LD u65 Residentl Care Placemnt,LD Residential Care External,W2KB55,Third Party Payments          ,Private Contractors           ,EH01,Miscellaneous Agency Services           ,"1,538.91",05/02/2016,R,CARE ASPIRATIONS LIMITED      
688,Adult Social Care,LD u65 Residentl Care Placemnt,LD Residential Care External,W2KB55,Third Party Payments          ,Private Contractors           ,EH01,Miscellaneous Agency Services           ,"1,795.54",05/02/2016,R,CARE ASPIRATIONS LIMITED      
689,Adult Social Care,LD u65 Residentl Care Placemnt,LD Residential Care External,W2KB55,Third Party Payments          ,Private Contractors           ,EH01,Miscellaneous Agency Services           ,"1,795.54",07/03/2016,R,CARE ASPIRATIONS LIMITED      
690,Adult Social Care,LD u65 Residentl Care Placemnt,LD Residential Care External,W2KB55,Third Party Payments          ,Private Contractors           ,EH01,Miscellaneous Agency Services           ,"1,795.54",05/02/2016,R,CARE ASPIRATIONS LIMITED      
691,Adult Social Care,LD u65 Residentl Care Placemnt,LD Residential Care External,W2KB55,Third Party Payments          ,Private Contractors           ,EH01,Miscellaneous Agency Services           ,"1,795.54",07/03/2016,R,CARE ASPIRATIONS LIMITED      
692,Adult Social Care,LD u65 Residentl Care Placemnt,LD Residential Care External,W2KB55,Third Party Payments          ,Private Contractors           ,EH01,Miscellaneous Agency Services           ,"1,795.54",07/03/2016,R,CARE ASPIRATIONS LIMITED      
693,Adult Social Care,LD u65 Residentl Care Placemnt,LD Residential Care External,W2KB55,Third Party Payments          ,Private Contractors           ,EH01,Miscellaneous Agency Services           ,"1,795.54",05/02/2016,R,CARE ASPIRATIONS LIMITED      
694,Adult Social Care,LD u65 Residentl Care Placemnt,LD Residential Care External,W2KB55,Third Party Payments          ,Private Contractors           ,EH01,Miscellaneous Agency Services           ,"1,795.54",05/02/2016,R,CARE ASPIRATIONS LIMITED      
695,Adult Social Care,LD u65 Residentl Care Placemnt,LD Residential Care External,W2KB55,Third Party Payments          ,Private Contractors           ,EH01,Miscellaneous Agency Services           ,"1,795.54",07/03/2016,R,CARE ASPIRATIONS LIMITED      
696,Adult Social Care,LD u65 Residentl Care Placemnt,LD Residential Care External,W2KB55,Third Party Payments          ,Private Contractors           ,EH01,Miscellaneous Agency Services           ,834.00,01/03/2016,R,CARE MANAGEMENT GROUP         
697,Adult Social Care,LD u65 Residentl Care Placemnt,LD Residential Care External,W2KB55,Third Party Payments          ,Private Contractors           ,EH01,Miscellaneous Agency Services           ,834.00,01/03/2016,R,CARE MANAGEMENT GROUP         
698,Adult Social Care,LD u65 Residentl Care Placemnt,LD Residential Care External,W2KB55,Third Party Payments          ,Private Contractors           ,EH01,Miscellaneous Agency Services           ,834.00,01/04/2016,R,CARE MANAGEMENT GROUP         
699,Adult Social Care,LD u65 Residentl Care Placemnt,LD Residential Care External,W2KB55,Third Party Payments          ,Private Contractors           ,EH01,Miscellaneous Agency Services           ,834.00,01/03/2016,R,CARE MANAGEMENT GROUP         
700,Adult Social Care,LD u65 Residentl Care Placemnt,LD Residential Care External,W2KB55,Third Party Payments          ,Private Contractors           ,EH01,Miscellaneous Agency Services           ,834.00,01/04/2016,R,CARE MANAGEMENT GROUP         
701,Adult Social Care,LD u65 Residentl Care Placemnt,LD Residential Care External,W2KB55,Third Party Payments          ,Private Contractors           ,EH01,Miscellaneous Agency Services           ,834.00,01/04/2016,R,CARE MANAGEMENT GROUP         
702,Adult Social Care,LD u65 Residentl Care Placemnt,LD Residential Care External,W2KB55,Third Party Payments          ,Private Contractors           ,EH01,Miscellaneous Agency Services           ,834.00,01/04/2016,R,CARE MANAGEMENT GROUP         
703,Adult Social Care,LD u65 Residentl Care Placemnt,LD Residential Care External,W2KB55,Third Party Payments          ,Private Contractors           ,EH01,Miscellaneous Agency Services           ,834.00,01/03/2016,R,CARE MANAGEMENT GROUP         
704,Adult Social Care,MH u65 Residentl Care Placemnt,MH ResidentialCare Ext - Wim,W2HC55,Third Party Payments          ,Private Contractors           ,EH01,Miscellaneous Agency Services           ,908.00,01/04/2016,R,CARE MANAGEMENT GROUP         
705,Adult Social Care,MH u65 Residentl Care Placemnt,MH ResidentialCare Ext - Wim,W2HC55,Third Party Payments          ,Private Contractors           ,EH01,Miscellaneous Agency Services           ,908.00,01/03/2016,R,CARE MANAGEMENT GROUP         
706,Adult Social Care,MH u65 Residentl Care Placemnt,MH ResidentialCare Ext - Wim,W2HC55,Third Party Payments          ,Private Contractors           ,EH01,Miscellaneous Agency Services           ,908.00,01/03/2016,R,CARE MANAGEMENT GROUP         
707,Adult Social Care,MH u65 Residentl Care Placemnt,MH ResidentialCare Ext - Wim,W2HC55,Third Party Payments          ,Private Contractors           ,EH01,Miscellaneous Agency Services           ,908.00,01/03/2016,R,CARE MANAGEMENT GROUP         
708,Adult Social Care,MH u65 Residentl Care Placemnt,MH ResidentialCare Ext - Wim,W2HC55,Third Party Payments          ,Private Contractors           ,EH01,Miscellaneous Agency Services           ,908.00,01/03/2016,R,CARE MANAGEMENT GROUP         
709,Adult Social Care,MH u65 Residentl Care Placemnt,MH ResidentialCare Ext - Wim,W2HC55,Third Party Payments          ,Private Contractors           ,EH01,Miscellaneous Agency Services           ,908.00,01/04/2016,R,CARE MANAGEMENT GROUP         
710,Adult Social Care,MH u65 Residentl Care Placemnt,MH ResidentialCare Ext - Wim,W2HC55,Third Party Payments          ,Private Contractors           ,EH01,Miscellaneous Agency Services           ,908.00,01/04/2016,R,CARE MANAGEMENT GROUP         
711,Adult Social Care,MH u65 Residentl Care Placemnt,MH ResidentialCare Ext - Wim,W2HC55,Third Party Payments          ,Private Contractors           ,EH01,Miscellaneous Agency Services           ,908.00,01/04/2016,R,CARE MANAGEMENT GROUP         
712,Adult Social Care,LD u65 Residentl Care Placemnt,LD Residential Care External,W2KB55,Third Party Payments          ,Private Contractors           ,EH01,Miscellaneous Agency Services           ,"1,190.00",01/03/2016,R,CARE MANAGEMENT GROUP         
713,Adult Social Care,LD u65 Residentl Care Placemnt,LD Residential Care External,W2KB55,Third Party Payments          ,Private Contractors           ,EH01,Miscellaneous Agency Services           ,"1,190.00",01/04/2016,R,CARE MANAGEMENT GROUP         
714,Adult Social Care,LD u65 Residentl Care Placemnt,LD Residential Care External,W2KB55,Third Party Payments          ,Private Contractors           ,EH01,Miscellaneous Agency Services           ,"1,190.00",01/04/2016,R,CARE MANAGEMENT GROUP         
715,Adult Social Care,LD u65 Residentl Care Placemnt,LD Residential Care External,W2KB55,Third Party Payments          ,Private Contractors           ,EH01,Miscellaneous Agency Services           ,"1,190.00",01/04/2016,R,CARE MANAGEMENT GROUP         
716,Adult Social Care,LD u65 Residentl Care Placemnt,LD Residential Care External,W2KB55,Third Party Payments          ,Private Contractors           ,EH01,Miscellaneous Agency Services           ,"1,190.00",01/04/2016,R,CARE MANAGEMENT GROUP         
717,Adult Social Care,LD u65 Residentl Care Placemnt,LD Residential Care External,W2KB55,Third Party Payments          ,Private Contractors           ,EH01,Miscellaneous Agency Services           ,"1,190.00",01/03/2016,R,CARE MANAGEMENT GROUP         
718,Adult Social Care,LD u65 Residentl Care Placemnt,LD Residential Care External,W2KB55,Third Party Payments          ,Private Contractors           ,EH01,Miscellaneous Agency Services           ,"1,190.00",01/03/2016,R,CARE MANAGEMENT GROUP         
719,Adult Social Care,LD u65 Residentl Care Placemnt,LD Residential Care External,W2KB55,Third Party Payments          ,Private Contractors           ,EH01,Miscellaneous Agency Services           ,"1,190.00",01/03/2016,R,CARE MANAGEMENT GROUP         
720,Adult Social Care,LD u65 Residentl Care Placemnt,LD Residential Care External,W2KB55,Third Party Payments          ,Private Contractors           ,EH01,Miscellaneous Agency Services           ,"1,261.00",01/03/2016,R,CARE MANAGEMENT GROUP         
721,Adult Social Care,LD u65 Residentl Care Placemnt,LD Residential Care External,W2KB55,Third Party Payments          ,Private Contractors           ,EH01,Miscellaneous Agency Services           ,"1,261.00",01/03/2016,R,CARE MANAGEMENT GROUP         
722,Adult Social Care,LD u65 Residentl Care Placemnt,LD Residential Care External,W2KB55,Third Party Payments          ,Private Contractors           ,EH01,Miscellaneous Agency Services           ,"1,261.00",01/03/2016,R,CARE MANAGEMENT GROUP         
723,Adult Social Care,LD u65 Residentl Care Placemnt,LD Residential Care External,W2KB55,Third Party Payments          ,Private Contractors           ,EH01,Miscellaneous Agency Services           ,"1,261.00",01/03/2016,R,CARE MANAGEMENT GROUP         
724,Adult Social Care,LD u65 Residentl Care Placemnt,LD Residential Care External,W2KB55,Third Party Payments          ,Private Contractors           ,EH01,Miscellaneous Agency Services           ,"1,261.00",01/04/2016,R,CARE MANAGEMENT GROUP         
725,Adult Social Care,LD u65 Residentl Care Placemnt,LD Residential Care External,W2KB55,Third Party Payments          ,Private Contractors           ,EH01,Miscellaneous Agency Services           ,"1,261.00",01/04/2016,R,CARE MANAGEMENT GROUP         
726,Adult Social Care,LD u65 Residentl Care Placemnt,LD Residential Care External,W2KB55,Third Party Payments          ,Private Contractors           ,EH01,Miscellaneous Agency Services           ,"1,261.00",01/04/2016,R,CARE MANAGEMENT GROUP         
727,Adult Social Care,LD u65 Residentl Care Placemnt,LD Residential Care External,W2KB55,Third Party Payments          ,Private Contractors           ,EH01,Miscellaneous Agency Services           ,"1,261.00",01/04/2016,R,CARE MANAGEMENT GROUP         
728,Adult Social Care,LD u65 Residentl Care Placemnt,LD Residential Care External,W2KB55,Third Party Payments          ,Private Contractors           ,EH01,Miscellaneous Agency Services           ,"1,375.00",01/03/2016,R,CARE MANAGEMENT GROUP         
729,Adult Social Care,LD u65 Residentl Care Placemnt,LD Residential Care External,W2KB55,Third Party Payments          ,Private Contractors           ,EH01,Miscellaneous Agency Services           ,"1,375.00",01/03/2016,R,CARE MANAGEMENT GROUP         
730,Adult Social Care,LD u65 Residentl Care Placemnt,LD Residential Care External,W2KB55,Third Party Payments          ,Private Contractors           ,EH01,Miscellaneous Agency Services           ,"1,375.00",01/04/2016,R,CARE MANAGEMENT GROUP         
731,Adult Social Care,LD u65 Residentl Care Placemnt,LD Residential Care External,W2KB55,Third Party Payments          ,Private Contractors           ,EH01,Miscellaneous Agency Services           ,"1,375.00",01/04/2016,R,CARE MANAGEMENT GROUP         
732,Adult Social Care,LD u65 Residentl Care Placemnt,LD Residential Care External,W2KB55,Third Party Payments          ,Private Contractors           ,EH01,Miscellaneous Agency Services           ,"1,375.00",01/03/2016,R,CARE MANAGEMENT GROUP         
733,Adult Social Care,LD u65 Residentl Care Placemnt,LD Residential Care External,W2KB55,Third Party Payments          ,Private Contractors           ,EH01,Miscellaneous Agency Services           ,"1,375.00",01/03/2016,R,CARE MANAGEMENT GROUP         
734,Adult Social Care,LD u65 Residentl Care Placemnt,LD Residential Care External,W2KB55,Third Party Payments          ,Private Contractors           ,EH01,Miscellaneous Agency Services           ,"1,375.00",01/04/2016,R,CARE MANAGEMENT GROUP         
735,Adult Social Care,LD u65 Residentl Care Placemnt,LD Residential Care External,W2KB55,Third Party Payments          ,Private Contractors           ,EH01,Miscellaneous Agency Services           ,"1,375.00",01/04/2016,R,CARE MANAGEMENT GROUP         
736,Adult Social Care,LD u65 Residentl Care Placemnt,LD Residential Care External,W2KB55,Third Party Payments          ,Private Contractors           ,EH01,Miscellaneous Agency Services           ,"1,495.00",01/03/2016,R,CARE MANAGEMENT GROUP         
737,Adult Social Care,LD u65 Residentl Care Placemnt,LD Residential Care External,W2KB55,Third Party Payments          ,Private Contractors           ,EH01,Miscellaneous Agency Services           ,"1,495.00",01/03/2016,R,CARE MANAGEMENT GROUP         
738,Adult Social Care,LD u65 Residentl Care Placemnt,LD Residential Care External,W2KB55,Third Party Payments          ,Private Contractors           ,EH01,Miscellaneous Agency Services           ,"1,495.00",01/03/2016,R,CARE MANAGEMENT GROUP         
739,Adult Social Care,LD u65 Residentl Care Placemnt,LD Residential Care External,W2KB55,Third Party Payments          ,Private Contractors           ,EH01,Miscellaneous Agency Services           ,"1,495.00",01/03/2016,R,CARE MANAGEMENT GROUP         
740,Adult Social Care,LD u65 Residentl Care Placemnt,LD Residential Care External,W2KB55,Third Party Payments          ,Private Contractors           ,EH01,Miscellaneous Agency Services           ,"1,495.00",01/04/2016,R,CARE MANAGEMENT GROUP         
741,Adult Social Care,LD u65 Residentl Care Placemnt,LD Residential Care External,W2KB55,Third Party Payments          ,Private Contractors           ,EH01,Miscellaneous Agency Services           ,"1,495.00",01/04/2016,R,CARE MANAGEMENT GROUP         
742,Adult Social Care,LD u65 Residentl Care Placemnt,LD Residential Care External,W2KB55,Third Party Payments          ,Private Contractors           ,EH01,Miscellaneous Agency Services           ,"1,495.00",01/04/2016,R,CARE MANAGEMENT GROUP         
743,Adult Social Care,LD u65 Residentl Care Placemnt,LD Residential Care External,W2KB55,Third Party Payments          ,Private Contractors           ,EH01,Miscellaneous Agency Services           ,"1,495.00",01/04/2016,R,CARE MANAGEMENT GROUP         
744,Adult Social Care,LD u65 Residentl Care Placemnt,LD Residential Care External,W2KB55,Third Party Payments          ,Private Contractors           ,EH01,Miscellaneous Agency Services           ,"1,495.31",01/03/2016,R,CARE MANAGEMENT GROUP         
745,Adult Social Care,LD u65 Residentl Care Placemnt,LD Residential Care External,W2KB55,Third Party Payments          ,Private Contractors           ,EH01,Miscellaneous Agency Services           ,"1,495.31",01/03/2016,R,CARE MANAGEMENT GROUP         
746,Adult Social Care,LD u65 Residentl Care Placemnt,LD Residential Care External,W2KB55,Third Party Payments          ,Private Contractors           ,EH01,Miscellaneous Agency Services           ,"1,495.31",01/04/2016,R,CARE MANAGEMENT GROUP         
747,Adult Social Care,LD u65 Residentl Care Placemnt,LD Residential Care External,W2KB55,Third Party Payments          ,Private Contractors           ,EH01,Miscellaneous Agency Services           ,"1,495.31",01/04/2016,R,CARE MANAGEMENT GROUP         
748,Adult Social Care,LD u65 Residentl Care Placemnt,LD Residential Care External,W2KB55,Third Party Payments          ,Private Contractors           ,EH01,Miscellaneous Agency Services           ,"1,495.31",01/03/2016,R,CARE MANAGEMENT GROUP         
749,Adult Social Care,LD u65 Residentl Care Placemnt,LD Residential Care External,W2KB55,Third Party Payments          ,Private Contractors           ,EH01,Miscellaneous Agency Services           ,"1,495.31",01/03/2016,R,CARE MANAGEMENT GROUP         
750,Adult Social Care,LD u65 Residentl Care Placemnt,LD Residential Care External,W2KB55,Third Party Payments          ,Private Contractors           ,EH01,Miscellaneous Agency Services           ,"1,495.31",01/04/2016,R,CARE MANAGEMENT GROUP         
751,Adult Social Care,LD u65 Residentl Care Placemnt,LD Residential Care External,W2KB55,Third Party Payments          ,Private Contractors           ,EH01,Miscellaneous Agency Services           ,"1,495.31",01/04/2016,R,CARE MANAGEMENT GROUP         
752,Adult Social Care,LD u65 Residentl Care Placemnt,LD Residential Care External,W2KB55,Third Party Payments          ,Private Contractors           ,EH01,Miscellaneous Agency Services           ,"1,511.00",01/03/2016,R,CARE MANAGEMENT GROUP         
753,Adult Social Care,LD u65 Residentl Care Placemnt,LD Residential Care External,W2KB55,Third Party Payments          ,Private Contractors           ,EH01,Miscellaneous Agency Services           ,"1,511.00",01/04/2016,R,CARE MANAGEMENT GROUP         
754,Adult Social Care,LD u65 Residentl Care Placemnt,LD Residential Care External,W2KB55,Third Party Payments          ,Private Contractors           ,EH01,Miscellaneous Agency Services           ,"1,511.00",01/03/2016,R,CARE MANAGEMENT GROUP         
755,Adult Social Care,LD u65 Residentl Care Placemnt,LD Residential Care External,W2KB55,Third Party Payments          ,Private Contractors           ,EH01,Miscellaneous Agency Services           ,"1,511.00",01/03/2016,R,CARE MANAGEMENT GROUP         
756,Adult Social Care,LD u65 Residentl Care Placemnt,LD Residential Care External,W2KB55,Third Party Payments          ,Private Contractors           ,EH01,Miscellaneous Agency Services           ,"1,511.00",01/04/2016,R,CARE MANAGEMENT GROUP         
757,Adult Social Care,LD u65 Residentl Care Placemnt,LD Residential Care External,W2KB55,Third Party Payments          ,Private Contractors           ,EH01,Miscellaneous Agency Services           ,"1,511.00",01/04/2016,R,CARE MANAGEMENT GROUP         
758,Adult Social Care,LD u65 Residentl Care Placemnt,LD Residential Care External,W2KB55,Third Party Payments          ,Private Contractors           ,EH01,Miscellaneous Agency Services           ,"1,511.00",01/03/2016,R,CARE MANAGEMENT GROUP         
759,Adult Social Care,LD u65 Residentl Care Placemnt,LD Residential Care External,W2KB55,Third Party Payments          ,Private Contractors           ,EH01,Miscellaneous Agency Services           ,"1,511.00",01/04/2016,R,CARE MANAGEMENT GROUP         
760,Adult Social Care,PS u65 Residentl Care Placemnt,PD EAST TEAM-Residential,W2JJ55,Third Party Payments          ,Private Contractors           ,EH01,Miscellaneous Agency Services           ,"1,774.00",01/03/2016,R,CARE MANAGEMENT GROUP         
761,Adult Social Care,PS u65 Residentl Care Placemnt,PD EAST TEAM-Residential,W2JJ55,Third Party Payments          ,Private Contractors           ,EH01,Miscellaneous Agency Services           ,"1,774.00",01/03/2016,R,CARE MANAGEMENT GROUP         
762,Adult Social Care,PS u65 Residentl Care Placemnt,PD EAST TEAM-Residential,W2JJ55,Third Party Payments          ,Private Contractors           ,EH01,Miscellaneous Agency Services           ,"1,774.00",01/03/2016,R,CARE MANAGEMENT GROUP         
763,Adult Social Care,PS u65 Residentl Care Placemnt,PD EAST TEAM-Residential,W2JJ55,Third Party Payments          ,Private Contractors           ,EH01,Miscellaneous Agency Services           ,"1,774.00",01/03/2016,R,CARE MANAGEMENT GROUP         
764,Childrens & Education Services,Family - Other Services,CS ChdDis Transport External,W1CF62,Transport Related Expenditure ,Recharge frm Transport Holding,CB04,Transport SLA/Rech-Dir Non Std          ,509.97,08/02/2016,R,CARE O LINE                   
765,Childrens & Education Services,Family - Other Services,CS ChdDis Transport External,W1CF62,Transport Related Expenditure ,Recharge frm Transport Holding,CB04,Transport SLA/Rech-Dir Non Std          ,527.20,08/02/2016,R,CARE O LINE                   
766,Childrens & Education Services,Standards Fund - Non Delegated,SWIS Section 17                         ,W1FA38,Transfer Payments             ,Schoolchildren/Students       ,FF02,Childr Act 1989 S17                     ,530.25,21/07/2015,R,CARE O LINE                   
767,Childrens & Education Services,Standards Fund - Non Delegated,SWIS Section 17                         ,W1FA38,Transfer Payments             ,Schoolchildren/Students       ,FF02,Childr Act 1989 S17                     ,550.00,13/04/2015,R,CARE O LINE                   
768,Childrens & Education Services,Standards Fund - Non Delegated,SWIS Section 17                         ,W1FA38,Transfer Payments             ,Schoolchildren/Students       ,FF02,Childr Act 1989 S17                     ,550.00,22/09/2014,R,CARE O LINE                   
769,Childrens & Education Services,Standards Fund - Non Delegated,SWIS Discretionary Payments             ,W1FA41,Third Party Payments          ,Private Contractors           ,EH01,Miscellaneous Contrct Services          ,550.00,29/12/2014,R,CARE O LINE                   
770,Childrens & Education Services,Standards Fund - Non Delegated,SWIS Discretionary Payments             ,W1FA41,Third Party Payments          ,Private Contractors           ,EH01,Miscellaneous Contrct Services          ,550.00,29/12/2014,R,CARE O LINE                   
771,Childrens & Education Services,Standards Fund - Non Delegated,SWIS Section 17                         ,W1FA38,Transfer Payments             ,Schoolchildren/Students       ,FF02,Childr Act 1989 S17                     ,564.69,01/03/2016,R,CARE O LINE                   
772,Childrens & Education Services,Standards Fund - Non Delegated,SWIS Discretionary Payments             ,W1FA41,Third Party Payments          ,Private Contractors           ,EH01,Miscellaneous Contrct Services          ,593.75,29/12/2014,R,CARE O LINE                   
773,Childrens & Education Services,Standards Fund - Non Delegated,SWIS Section 17                         ,W1FA38,Transfer Payments             ,Schoolchildren/Students       ,FF02,Childr Act 1989 S17                     ,596.83,21/07/2015,R,CARE O LINE                   
774,Childrens & Education Services,Standards Fund - Non Delegated,SWIS Discretionary Payments             ,W1FA41,Third Party Payments          ,Private Contractors           ,EH01,Miscellaneous Contrct Services          ,618.75,29/12/2014,R,CARE O LINE                   
775,Childrens & Education Services,Standards Fund - Non Delegated,SWIS Section 17                         ,W1FA38,Transfer Payments             ,Schoolchildren/Students       ,FF02,Childr Act 1989 S17                     ,665.60,01/03/2016,R,CARE O LINE                   
776,Childrens & Education Services,Standards Fund - Non Delegated,SWIS Section 17                         ,W1FA38,Transfer Payments             ,Schoolchildren/Students       ,FF02,Childr Act 1989 S17                     ,687.50,06/07/2015,R,CARE O LINE                   
777,Childrens & Education Services,Standards Fund - Non Delegated,SWIS Section 17                         ,W1FA38,Transfer Payments             ,Schoolchildren/Students       ,FF02,Childr Act 1989 S17                     ,708.75,01/03/2016,R,CARE O LINE                   
778,Childrens & Education Services,Standards Fund - Non Delegated,SWIS Discretionary Payments             ,W1FA41,Third Party Payments          ,Private Contractors           ,EH01,Miscellaneous Contrct Services          ,712.50,29/12/2014,R,CARE O LINE                   
779,Childrens & Education Services,Standards Fund - Non Delegated,SWIS Section 17                         ,W1FA38,Transfer Payments             ,Schoolchildren/Students       ,FF02,Childr Act 1989 S17                     ,793.62,21/07/2015,R,CARE O LINE                   
780,Childrens & Education Services,Standards Fund - Non Delegated,SWIS Section 17                         ,W1FA38,Transfer Payments             ,Schoolchildren/Students       ,FF02,Childr Act 1989 S17                     ,945.50,14/03/2016,R,CARE O LINE                   
781,Adult Social Care,OP 65&Over NursingCarePlacemts,OP East - Nursing Care,W2LH53,Third Party Payments          ,Private Contractors           ,EH01,Miscellaneous Agency Services           ,-542.94,01/03/2016,R,CARE UK                       
782,Adult Social Care,OP 65&Over NursingCarePlacemts,OP R/Park - Nursing Care,W2LR53,Third Party Payments          ,Private Contractors           ,EH01,Miscellaneous Agency Services           ,504.85,01/03/2016,R,CARE UK                       
783,Adult Social Care,OP 65&Over NursingCarePlacemts,OP East - Nursing Care,W2LH53,Third Party Payments          ,Private Contractors           ,EH01,Miscellaneous Agency Services           ,542.92,01/03/2016,R,CARE UK                       
784,Adult Social Care,OP 65&Over NursingCarePlacemts,OP East - Nursing Care,W2LH53,Third Party Payments          ,Private Contractors           ,EH01,Miscellaneous Agency Services           ,542.94,01/03/2016,R,CARE UK                       
785,Adult Social Care,OP 65&Over NursingCarePlacemts,OP East - Nursing Care,W2LH53,Third Party Payments          ,Private Contractors           ,EH01,Miscellaneous Agency Services           ,542.94,01/03/2016,R,CARE UK                       
786,Adult Social Care,OP 65&Over NursingCarePlacemts,OP East - Nursing Care,W2LH53,Third Party Payments          ,Private Contractors           ,EH01,Miscellaneous Agency Services           ,582.85,01/03/2016,R,CARE UK                       
787,Adult Social Care,OP 65&Over NursingCarePlacemts,OP West - Nursing Care,W2LG53,Third Party Payments          ,Private Contractors           ,EH01,Miscellaneous Agency Services           ,633.43,01/03/2016,R,CARE UK                       
788,Adult Social Care,OP 65&Over NursingCarePlacemts,OP West - Nursing Care,W2LG53,Third Party Payments          ,Private Contractors           ,EH01,Miscellaneous Agency Services           ,633.43,01/03/2016,R,CARE UK                       
789,Adult Social Care,OP 65&Over NursingCarePlacemts,OP West - Nursing Care,W2LG53,Third Party Payments          ,Private Contractors           ,EH01,Miscellaneous Agency Services           ,633.43,01/03/2016,R,CARE UK                       
790,Adult Social Care,OP 65&Over NursingCarePlacemts,OP West - Nursing Care,W2LG53,Third Party Payments          ,Private Contractors           ,EH01,Miscellaneous Agency Services           ,633.43,01/03/2016,R,CARE UK                       
791,Adult Social Care,OP 65&Over NursingCarePlacemts,OP East - Nursing Care,W2LH53,Third Party Payments          ,Private Contractors           ,EH01,Miscellaneous Agency Services           ,633.43,01/03/2016,R,CARE UK                       
792,Adult Social Care,OP 65&Over NursingCarePlacemts,OP East - Nursing Care,W2LH53,Third Party Payments          ,Private Contractors           ,EH01,Miscellaneous Agency Services           ,633.43,01/03/2016,R,CARE UK                       
793,Adult Social Care,OP 65&Over NursingCarePlacemts,OP East - Nursing Care,W2LH53,Third Party Payments          ,Private Contractors           ,EH01,Miscellaneous Agency Services           ,633.43,01/03/2016,R,CARE UK                       
794,Adult Social Care,OP 65&Over NursingCarePlacemts,OP East - Nursing Care,W2LH53,Third Party Payments          ,Private Contractors           ,EH01,Miscellaneous Agency Services           ,633.43,01/03/2016,R,CARE UK                       
795,Adult Social Care,OP 65&Over NursingCarePlacemts,OP East - Nursing Care,W2LH53,Third Party Payments          ,Private Contractors           ,EH01,Miscellaneous Agency Services           ,633.43,01/03/2016,R,CARE UK                       
796,Adult Social Care,OP 65&Over NursingCarePlacemts,OP East - Nursing Care,W2LH53,Third Party Payments          ,Private Contractors           ,EH01,Miscellaneous Agency Services           ,633.43,01/03/2016,R,CARE UK                       
797,Adult Social Care,OP 65&Over NursingCarePlacemts,OP East - Nursing Care,W2LH53,Third Party Payments          ,Private Contractors           ,EH01,Miscellaneous Agency Services           ,633.43,01/03/2016,R,CARE UK                       
798,Adult Social Care,OP 65&Over NursingCarePlacemts,OP East - Nursing Care,W2LH53,Third Party Payments          ,Private Contractors           ,EH01,Miscellaneous Agency Services           ,633.43,01/03/2016,R,CARE UK                       
799,Adult Social Care,OP 65&Over NursingCarePlacemts,OP West - Nursing Care,W2LG53,Third Party Payments          ,Private Contractors           ,EH01,Miscellaneous Agency Services           ,634.53,01/03/2016,R,CARE UK                       
800,Adult Social Care,OP 65&Over NursingCarePlacemts,OP West - Nursing Care,W2LG53,Third Party Payments          ,Private Contractors           ,EH01,Miscellaneous Agency Services           ,634.53,01/03/2016,R,CARE UK                       
801,Adult Social Care,OP 65&Over NursingCarePlacemts,OP West - Nursing Care,W2LG53,Third Party Payments          ,Private Contractors           ,EH01,Miscellaneous Agency Services           ,634.53,01/03/2016,R,CARE UK                       
802,Adult Social Care,OP 65&Over NursingCarePlacemts,OP West - Nursing Care,W2LG53,Third Party Payments          ,Private Contractors           ,EH01,Miscellaneous Agency Services           ,634.53,01/03/2016,R,CARE UK                       
803,Adult Social Care,OP 65&Over NursingCarePlacemts,OP West - Nursing Care,W2LG53,Third Party Payments          ,Private Contractors           ,EH01,Miscellaneous Agency Services           ,634.53,01/03/2016,R,CARE UK                       
804,Adult Social Care,OP 65&Over NursingCarePlacemts,OP West - Nursing Care,W2LG53,Third Party Payments          ,Private Contractors           ,EH01,Miscellaneous Agency Services           ,634.53,01/03/2016,R,CARE UK                       
805,Adult Social Care,OP 65&Over NursingCarePlacemts,OP West - Nursing Care,W2LG53,Third Party Payments          ,Private Contractors           ,EH01,Miscellaneous Agency Services           ,634.53,05/01/2016,R,CARE UK                       
806,Adult Social Care,OP 65&Over NursingCarePlacemts,OP West - Nursing Care,W2LG53,Third Party Payments          ,Private Contractors           ,EH01,Miscellaneous Agency Services           ,634.53,01/03/2016,R,CARE UK                       
807,Adult Social Care,OP 65&Over NursingCarePlacemts,OP West - Nursing Care,W2LG53,Third Party Payments          ,Private Contractors           ,EH01,Miscellaneous Agency Services           ,634.53,01/03/2016,R,CARE UK                       
808,Adult Social Care,OP 65&Over NursingCarePlacemts,OP West - Nursing Care,W2LG53,Third Party Payments          ,Private Contractors           ,EH01,Miscellaneous Agency Services           ,634.53,05/01/2016,R,CARE UK                       
809,Adult Social Care,OP 65&Over NursingCarePlacemts,OP West - Nursing Care,W2LG53,Third Party Payments          ,Private Contractors           ,EH01,Miscellaneous Agency Services           ,634.53,05/01/2016,R,CARE UK                       
810,Adult Social Care,OP 65&Over NursingCarePlacemts,OP West - Nursing Care,W2LG53,Third Party Payments          ,Private Contractors           ,EH01,Miscellaneous Agency Services           ,634.53,05/01/2016,R,CARE UK                       
